Workbook

Sheet PRESENTACION
A22: Autoridades: | E22: Esta publicación ha sido elaborada por los Integrantes del Departamento de Estadística Educativa y de las Secciones de Reportes Internacionales e Investigación Educativa de la División de Investigación y Estadística de la Dirección de Educación:

Sheet RESUMEN DE ESTADÍSTICAS EDUCATI
C5: RESUMEN DE ESTADISTICAS EDUCATIVAS
B12: Organigrama 1.1 | C12: SISTEMA NACIONAL DE EDUCACIÓN
B13: Organigrama 1.2 | C13: ESTRUCTURA ORGANIZACIONAL DEL SISTEMA NACIONAL DE EDUCACIÓN
B14: Organigrama 2.1 | C14: ESTRUCTURA ORGANIZACIONAL DEL SISTEMA NACIONAL DE EDUCACIÓN EN LA PRIMERA INFANCIA
B16: Cuadro 1.1 | C16: UNIVERSO CUBIERTO POR FORMA DE ADMINISTRACIÓN, MATRÍCULA Y FUENTE DE INFORMACIÓN SEGÚN TIPO DE OFERTA Y NIVEL EDUCATIVO.
B17: Cuadro 2.1 | C17: MATRÍCULA DEL SISTEMA EDUCATIVO POR AÑO LECTIVO SEGÚN NIVEL, FORMA DE ADMINISTRACIÓN Y MODALIDAD
B18: Cuadro 2.2 | C18: PRINCIPALES INDICADORES ESTADÍSTICOS.

Sheet Organigrama 1.1
B2: Organigrama 1.1 SISTEMA NACIONAL DE EDUCACIÓN - 2014
BO4: SISTEMA NACIONAL DE EDUCACIÓN - 2012
K6: ESCOLARIDAD OBLIGATORIA
BI7: CAMPO LABORAL
K11: EDUC. INICIAL | P11: EDUCACIÓN PRIMARIA | Y11: EDUCACIÓN MEDIA | AX11: EDUCACIÓN TERCIARIA
C14: 0 | D14: 1 | E14: 2 | F14: 3 | K14: 4 | L14: 5 | P14: 1º | Q14: 2º | R14: 3º | S14: 4º | T14: 5º | U14: 6º | AH14: Formación profesional técnica y tecnológica | AX14: EDUCACIÓN UNIVERSITARIA
C15: EDUCACIÓN EN LA PRIMERA INFANCIA | K15: EDUCACIÓN INICIAL | P15: EDUCACIÓN PRIMARIA | R15: Incluye: - Urbana común - Rural común - T.C. - Especial - Escuelas Aprender - Práctica
AA16: 1º | AB16: 2º | AC16: 3º
Y17: EDUCACIÓN MEDIA BÁSICA | Z17: Educación media básica general (incluye 7º, 8º y 9º rural)
AL19: 1º | AM19: 2º | AN19: 3º
AH20: EDUCACIÓN MEDIA SUPERIOR | AL20: Educación media tecnológica superior
AZ21: 1º | BA21: 2º | BB21: 3º | BC21: 4º
AX22: FORMACIÓN EN EDUCACIÓN
AA26: 1º | AB26: 2º | AC26: 3º
Z27: Educación media básica tecnológica | AZ27: 1º | BA27: 2º | BB27: 3º | BC27: 4º
AL28: 4º | AM28: 5º | AN28: 6º | AX28: EDUCACIÓN TERCIARIA NO UNIVERSITARIA (técnicas, policial, militar, artística, etc.)
AL29: Educación media general superior
C35: 0-3 años | K35: 4-5 años | P35: 6 años | Y35: 12 años | AH35: 15 años | AX35: 18 años
C38: EDUCACIÓN NO FORMAL
B47: Fuente: | C47: Elaboración propia. División de Investigación y Estadística, Dirección de Educación, MEC.

Sheet Organigrama 1.2
B70: Fuente: Elaboración propia. División de Investigación y Estadística, Dirección de Educación, MEC.

Sheet Cuadro 1.1
A1: Ministerio de Educación y Cultura Dirección de Educación
A5: Cuadro 1.1
A6: UNIVERSO CUBIERTO POR EL ANUARIO ESTADÍSTICO DE EDUCACIÓN 2013 POR FORMA DE ADMINISTRACIÓN, MATRÍCULA Y FUENTE DE INFORMACIÓN SEGÚN TIPO DE OFERTA Y NIVEL EDUCATIVO
A7: Nivel (Edad teórica) | B7: Descripción (Oferta por forma de administración) | D7: 2014 | E7: Fuentes de información
A8: EDUCACIÓN EN LA PRIMERA INFANCIA 0 a 2 años | B8: PÚBLICO: centros de educación infantil gestionados por organismos públicos (por ej. centros de INAU o intendencias). | D8: 52269 | E8: · Área de Educación en la Primera Infancia y Área de Investigación y Estadística de la Dirección de Educación del Ministerio de Educación y Cultura – Registro Nacional de Centros de Educación en la Primera Infancia; · Sistema de Información Para la Infancia (SIPI) de INAU
B9: PRIVADO: Centros de Educación Infantil Privados bajo supervisión del MEC En todos los casos la matrícula reportada excluye a los niños matriculados en centros que ya han sido habilitados por ANEP.
B10: PÚBLICO/PRIVADO: CAIF (modalidad diaria)
A11: EDUCACIÓN INICIAL 3 a 5 años (4 y 5 años obligatorio) | B11: PUBLICO:Esta.del Consejo de Educación Inicial y Primaria (CEIP) Jardines y clases jardineras en escuelas de educación común. | D11: 110910 | E11: · Área de Educación en la Primera Infancia, AIEde la Dir. de Edu. del MEC; · Depto. de Estadística Educativa del CEIP; · SIPI de INAU.
B12: PRIVADO: jardines de infantes privados, jardines en colegios privados y clases jardineras en colegios privados (bajo supervisión de ANEP).
A13: EDUCACIÓN PRIMARIA 6 a 11 años (obligatorio) | B13: PUBLICO: Establecimientos del Consejo de Educación Inicial y Primaria. | D13: 319408 | E13: · Departamento de Estadística Educativa del CEIP.
B14: PRIVADO: Establecimientos privados bajo supervisión de ANEP.
A15: EDUCACIÓN FORMAL DE JÓVENES Y ADULTOS | B15: Dirección Sectorial de Educación de Jóvenes y Adultos de la ANEP (Niveles I y II y Acreditación). | D15: s/d | E15: · Dirección Sectorial de Educación de Jóvenes y Adultos de la ANEP
A16: EDUCACIÓN MEDIA BÁSICA 12 a 14 años | B16: PÚBLICO: establecimientos del Consejo de Educación Secundaria, del Consejo de Educación Técnico Profesional y del Ciclo Básico Rural (7º, 8º y 9º) | C16: MEDIA BÁSICA 12 a 14 años (obligatorio) | D16: 182236 | E16: · Departamento de Estadística del CES (oficiales, habilitados privados y habilitados militares); · Departamento de Estadística del CETP y · Departamento de Estadística del CEIP(para 7º, 8º y 9º) a través de planillas estadísticas.
B17: PRIVADO: liceos habilitados privados bajo supervisión de ANEP.
A18: EDUCACIÓN MEDIA SUPERIOR 15 a 17 años | B18: PÚBLICO: establecimientos del Consejo de Educación Secundaria, del Consejo de Educación Técnico Profesional y los Habilitados Liceo Militar y Escuela Naval. | C18: MEDIA SUPERIOR 15 a 17 años | D18: 157035
B19: PRIVADO: liceos habilitados privados bajo supervisión de ANEP.
A20: FORMACIÓN EN EDUCACIÓN | B20: PÚBLICOS: ANEP - CONSEJO DE FORMACIÓN EN EDUCACIÓN, CEN.FOR.ES - I.N.A.U. | D20: 24886 | E20: · Of. de información para la Gestión del CFE de ANEP; · CEN.FOR.ES - I.N.A.U. . C.I.E.P
B21: PRIVADOS: C.I.E.P
A22: EDUCACIÓN TERCIARIA (18 y más años) | B22: PÚBLICOS: Inst. Terc. Univ. y No Univ. (UdelaR; CFE, Esc. Mun. de Arte Dramático, Esc. Nacional de Policía, Esc. Militar, Esc. Militar de Aeronáutica, Esc. Naval), UTEC, | D22: 118050 | E22: · Div. de Estadística de la DGP de la UdelaR; . Unidades de planeamiento y/o asuntos estudiantiles de univ. e inst. univ. y no univ. públicos y privados.
B23: PRIVADOS: Univ. e Inst. Univ. Privados (UC, ORT, de Montevideo, de la Empresa; Fundación Politécnico de Punta del Este, Asociación Cristiana de Jóvenes, CLAEH, Crandon, Mariano Soler).
A24: EDUCACIÓN NO FORMAL | B24: Instituciones de Educación Técnico-Profesional públicas y privadas | D24: 82601
B25: Centros de Capacitación y Producción (CECAP) y Consejo De Capacitación Profesional (COCAP) del MEC. | D25: 3661 | E25: · Relevamiento propio de Instituciones de Educación Técnico-profesional (Área de Investigación y Estadística, Dir. Edu., MEC.) · Departamento de Estadística del CETP; · Área de Educación No Formal de la Dirección de Educación del MEC; · Gerencia de Programas Especiales de CODICEN; · Oficina Nacional del Servicio Civil; e · Información brindada por las instituciones universitarias.
B26: PÚBLICO: Establecimientos del Consejo de Educación Técnico Profesional | C26: TÉCNICO-PROFESIONAL DE INSERCIÓN LABORAL 15 y más años | D26: 9092
B27: INEFOP
B28: Dir. Sectorial de Edu.de Jóvenes y Adultos de la ANEP (Talleres).
B29: Escuela de Funcionarios Públicos de la ONSC. | D29: 11297
B30: Educación no terciaria en universidades e instituciones universitarias privadas. | D30: 3404
A31: Nota: Educación en la primera infancia de 0 a 3 años y Educación Inicial 3 a 5 años: Esta definición etaria responde a la lógica de los hechos: prácticamente la mitad de los niños atendidos en Centros de Educación Infantil Privados tienen 3 años (también existe una porción minoritaria de niños de 4 y 5 años). En términos teóricos, este nivel atendería a niños de 0 a 36 meses (o hasta 2 años cumplidos y 11 meses). Algo similar sucede en el caso del nivel “Educación Inicial”, donde la enorme mayoría de los niños tienen 4 o 5 años y cuya definición teórica apuntaría a aquellos de 3, 4 y 5. Educación Primaria: La matrícula de Educación Primaria Educación de Jóvenes y Adultos de la ANEP. Educación Media: Media Básica incluye Ciclo Básico Rural, Educación Media Básica General (CEM) y Educación Media Tecnológica Básica (CETP); y Media Superior incluye Ciclo Superior de Secundaria, Bachillerato Tecnológico y Educación Media Tecnológica. Instituciones de Educación Técnico-profesional públicas y privadas: incluye a todas las ofertas de educación técnico-profesional públicas y privadas; no incluye ofertas de ANEP o UdelaR. Técnico-profesional de inserción laboral: incluye a los cursos de las ofertas de Nivel de Formación Profesional del CETP.
A32: No se cuanta con el dato de educación Formal de Jóvenes y Adultos, el último dato disponible es 4287 para el año 2013

Sheet Cuadro 2.1
A1: Ministerio de Educación y Cultura Dirección de Educación
A6: Cuadro 2.1
A7: MATRÍCULA DEL SISTEMA EDUCATIVO POR AÑO LECTIVO SEGÚN NIVEL, FORMA DE ADMINISTRACIÓN Y MODALIDAD
A8: NIVEL/FORMA DE ADMINISTRACIÓN/MODALIDAD | D8: AÑO LECTIVO
D9: 2002 | E9: 2003 | F9: 2004 | G9: 2005 | H9: 2006 | I9: 2007 | J9: 2008 | K9: 2009 | L9: 2010 | M9: 2011 | N9: 2012 | O9: 2013 | P9: 2014
A11: TOTAL SISTEMA | D11: =D13+D18+D30+D44+D46 -> 942084 | E11: 948314 | F11: 953588 | G11: 937694 | H11: 947477 | I11: 949746 | J11: 973172 | K11: 986125 | L11: =K13+L18+L30+L44+L46 -> 983258 | M11: =M13+M18+M30+M44+M46 -> 966785 | N11: =N13+N18+N30+N44+N46 -> 992485 | O11: =O13+O18+O30+O44+O46 -> 993510 | P11: =P13+P18+P30+P44+P46 -> 996591
A13: Total Edu. en la Primera Infancia e Inicial | D13: 144319 | E13: 133964 | F13: 140628 | G13: 133640 | H13: 141065 | I13: 141307 | J13: 160934 | K13: 173003 | L13: 160504 | M13: 156089 | N13: =N15+N16 -> 176477 | O13: =O15+O16 -> 177733 | P13: =P15+P16 -> 181517
B15: Inicial de 0a 2 años | D15: S/D | E15: S/D | F15: S/D | G15: S/D | H15: S/D | I15: S/D | J15: S/D | K15: S/D | L15: S/D | M15: S/D | N15: 47500 | O15: 48530 | P15: 52269
B16: Primera Infancia de 3 a 5 años | N16: 128977 | O16: 129203 | P16: 129248
A18: Total Educación Primaria | D18: =D20+D23+D26 -> 365004 | E18: 365495 | F18: 367428 | G18: 365840 | H18: 365879 | I18: 360653 | J18: 354852 | K18: 349271 | L18: 347207 | M18: 341607 | N18: 334130 | O18: 329000 | P18: 323695
B20: Primaria Común | D20: =D21+D22 -> 353826 | E20: 354843 | F20: 355568 | G20: 354777 | H20: 353528 | I20: 348579 | J20: 342498 | K20: 336865 | L20: 330548 | M20: =M21+M22 -> 325509 | N20: =N21+N22 -> 319238 | O20: =O21+O22 -> 314760 | P20: =P21+P22 -> 309409
C21: Común pública | D21: 307756 | E21: 311141 | F21: 311350 | G21: 309286 | H21: 306030 | I21: 300143 | J21: 292542 | K21: 286092 | L21: 279445 | M21: 273440 | N21: 266349 | O21: 261188 | P21: 255451
C22: Común privada | D22: 46070 | E22: 43702 | F22: 44218 | G22: 45491 | H22: 47498 | I22: 48436 | J22: 49956 | K22: 50773 | L22: 51103 | M22: 52069 | N22: 52889 | O22: 53572 | P22: 53958
B23: Primaria Especial | D23: =D24+D25 -> 11178 | E23: 10652 | F23: 11860 | G23: 11063 | H23: 12351 | I23: 12074 | J23: 12354 | K23: 12406 | L23: 11808 | M23: =M24+M25 -> 11253 | N23: =N24+N25 -> 10504 | O23: =O24+O25 -> 9953 | P23: =P24+P25 -> 9999
C24: Especial pública | D24: 9076 | E24: 8884 | F24: 8553 | G24: 8379 | H24: 8221 | I24: 7913 | J24: 7778 | K24: 7535 | L24: 7416 | M24: 7286 | N24: 6910 | O24: 6813 | P24: 6638
C25: Especial privada | D25: 2102 | E25: 1768 | F25: 3307 | G25: 2684 | H25: 4130 | I25: 4161 | J25: 4576 | K25: 4871 | L25: 4392 | M25: 3967 | N25: 3594 | O25: 3140 | P25: 3361
B26: Programa Jóvenes y Adultos ANEP8 | L26: =L27+L28 -> 4851 | M26: =M27+M28 -> 4845 | N26: =N27+N28 -> 4388 | O26: =O27+O28 -> 4287 | P26: =P27+P28 -> 4287
C27: Educación Primaria (Niveles I y II y Programa de Alfabetización) | L27: 3827 | M27: 3804 | N27: 3234 | O27: 3136 | P27: 3136
C28: Pruebas de Acreditación | L28: 1024 | M28: 1041 | N28: 1154 | O28: 1151 | P28: 1151
A30: Total Educación Media | D30: =D32+D38 -> 295399 | E30: 306417 | F30: 306778 | G30: 302311 | H30: 300681 | I30: 298925 | J30: 310128 | K30: 320420 | L30: 322977 | M30: 331659 | N30: 335126 | O30: 337634 | P30: 339271
B32: Total Educación Media Básica | D32: =D33+D34+D37 -> 162664 | E32: 164180 | F32: 161736 | G32: 158131 | H32: 160028 | I32: 160367 | J32: 171502 | K32: 177015 | L32: 177619 | M32: =M33+M34+M37 -> 182175 | N32: =N33+N34+N37 -> 181444 | O32: =O33+O34+O37 -> 182087 | P32: =P33+P34+P37 -> 182236
C33: Ciclo Básico Rural (7º, 8º y 9º) | D33: 1498 | E33: 1771 | F33: 1869 | G33: 1797 | H33: 1818 | I33: 1784 | J33: 2028 | K33: 1991 | L33: 1934 | M33: 1966 | N33: 1916 | O33: 1812 | P33: 1798
C34: Total Media Básica General | D34: 146588 | E34: 147146 | F34: 144374 | G34: 140743 | H34: 142350 | I34: 142420 | J34: 151798 | K34: 155409 | L34: 155444 | M34: =M35+M36 -> 156418 | N34: =N35+N36 -> 153287 | O34: =O35+O36 -> 151201 | P34: =P35+P36 -> 149622
A35: Pública | D35: 125367 | E35: 127162 | F35: 123869 | G35: 120487 | H35: 121195 | I35: 120960 | J35: 127681 | K35: 130013 | L35: 130073 | M35: 130978 | N35: 127593 | O35: 124749 | P35: 122896
A36: Privada3 | D36: 21221 | E36: 19984 | F36: 20505 | G36: 20256 | H36: 21155 | I36: 21460 | J36: 24117 | K36: 25396 | L36: 25371 | M36: 25440 | N36: 25694 | O36: 26452 | P36: 26726
C37: Media Básica Tecnológica | D37: 14578 | E37: 15263 | F37: 15493 | G37: 15591 | H37: 15860 | I37: 16163 | J37: 17676 | K37: 19615 | L37: 20241 | M37: 23791 | N37: 26241 | O37: 29074 | P37: 30816
B38: Total Educación Media Superior | D38: =D39+D42 -> 132735 | E38: 142237 | F38: 145042 | G38: 144180 | H38: 140653 | I38: 138558 | J38: 138626 | K38: 143405 | L38: 145358 | M38: 149484 | N38: 153682 | O38: 155547 | P38: 157035
C39: Total Media Superior General | D39: 122617 | E39: 129454 | F39: 127356 | G39: 124512 | H39: 119418 | I39: 112877 | J39: 110507 | K39: 112664 | L39: 113327 | M39: =M40+M41 -> 116117 | N39: =N40+N41 -> 117497 | O39: =O40+O41 -> 116552 | P39: =P40+P41 -> 115619
A40: Pública | D40: 108589 | E40: 115157 | F40: 112669 | G40: 108459 | H40: 103938 | I40: 97136 | J40: 94506 | K40: 96319 | L40: 96902 | M40: 99175 | N40: 100265 | O40: 99510 | P40: 98241
A41: Privada3 | D41: 14028 | E41: 14297 | F41: 14687 | G41: 16053 | H41: 15480 | I41: 15741 | J41: 16001 | K41: 16345 | L41: 16425 | M41: 16942 | N41: 17232 | O41: 17042 | P41: 17378
C42: Total Media Superior Tecnológica | D42: 10118 | E42: 12783 | F42: 17686 | G42: 19668 | H42: 21235 | I42: 25681 | J42: 28119 | K42: 30741 | L42: 32031 | M42: 33367 | N42: 36185 | O42: 38995 | P42: 41416
A44: Total Edu. Técnica (s/cont. educativa) | D44: 36416 | E44: 37219 | F44: 32372 | G44: 27146 | H44: 28840 | I44: 24419 | J44: 19957 | K44: 16769 | L44: 11912 | M44: 7546 | N44: 9859 | O44: 8632 | P44: 9092
L45: .
A46: Total Educación Terciaria | D46: =D48+D55+D61 -> 100946 | E46: 105219 | F46: 106382 | G46: 108757 | H46: 111012 | I46: 124442 | J46: 127301 | K46: 126662 | L46: 128159 | M46: 129884 | N46: 136893 | O46: 140511 | P46: 143016
B48: Terciaria No Universitaria | D48: =D49+D53 -> 5496 | E48: =E49+E53 -> 7238 | F48: =F49+F53 -> 6437 | G48: =G49+G53 -> 5454 | H48: =H49 -> 5726 | I48: =I49 -> 5786 | J48: 6718 | K48: 7179 | L48: 7560 | M48: 7339 | N48: 8308 | O48: 9253 | P48: 10384
C49: Terciaria No Universitaria Pública | D49: =D50+D51+D52 -> 5148 | E49: 6107 | F49: 6129 | G49: 5297 | H49: 5726 | I49: 5786 | J49: 6718 | K49: 7179 | L49: 7560 | M49: =M50+M51+M52 -> 7339 | N49: =N50+N51+N52 -> 8308 | O49: =O50+O51+O52 -> 9253 | P49: =P50+P51+P52 -> 10384
A50: CETP | D50: 2564 | E50: 3514 | F50: 3671 | G50: 4024 | H50: 3961 | I50: 3896 | J50: 4650 | K50: 4964 | L50: 6158 | M50: 6780 | N50: 7610 | O50: 8511 | P50: 9489
A51: Terciaria Policial o Militar | D51: 620 | E51: 623 | F51: 653 | G51: 679 | H51: 724 | I51: 652 | J51: 557 | K51: 649 | L51: 603 | M51: 470 | N51: 572 | O51: 626 | P51: 777
A52: Otras terciaria pública4 | D52: 1964 | E52: 1970 | F52: 1805 | G52: 594 | H52: 1041 | I52: 1238 | J52: 1511 | K52: 1566 | L52: 799 | M52: 89 | N52: 126 | O52: 116 | P52: 118
C53: Terciaria No Universitaria Privada7 | D53: 348 | E53: 1131 | F53: 308 | G53: 157 | H53: n/c | I53: n/c | J53: n/c | K53: n/c | L53: n/c | M53: n/c | N53: n/c | O53: n/c | P53: n/c
B55: Formación en Educación | D55: =D56+D59 -> 16735 | E55: =E56+E59 -> 19411 | F55: 21397 | G55: 20779 | H55: 21537 | I55: 22609 | J55: 22747 | K55: 20951 | L55: 20703 | M55: 21242 | N55: 22754 | O55: 24239 | P55: 24966
C56: Publica | D56: =D57 -> 16610 | E56: =E57 -> 19298 | F56: =F57+F58 -> 21260 | G56: =G57+G58 -> 20631 | H56: 21406 | I56: 22456 | J56: 22572 | K56: 20855 | L56: 20655 | M56: 21149 | N56: 22649 | O56: 24120 | P56: 24886
A57: Consejo de Formación en Educación (CFE) | D57: 16610 | E57: 19298 | F57: 20968 | G57: 20435 | H57: 21175 | I57: 21992 | J57: 22108 | K57: 20391 | L57: 20191 | M57: 20919 | N57: 22331 | O57: 24067 | P57: 24729
A58: CENFORES - INAU | D58: n/c | E58: n/c | F58: 292 | G58: 196 | H58: 231 | I58: 464 | J58: 464 | K58: 464 | L58: 464 | M58: 230 | N58: 318 | O58: 53 | P58: 157
C59: Privada | D59: =D60 -> 125 | E59: =E60 -> 113 | F59: 137 | G59: 148 | H59: 131 | I59: 153 | J59: 175 | K59: 96 | L59: 48 | M59: 93 | N59: 105 | O59: 119 | P59: 80
A60: Centro de Inv. y Experim. Pedagógica (CIEP) | D60: 125 | E60: 113 | F60: 137 | G60: 148 | H60: 131 | I60: 153 | J60: 175 | K60: 96 | L60: 48 | M60: 93 | N60: 105 | O60: 119 | P60: 80
B61: Total Educación Universitaria6 | D61: =D62+D64 -> 78715 | E61: 78570 | F61: 78548 | G61: 82524 | H61: 83749 | I61: 96047 | J61: 97836 | K61: 98532 | L61: 99896 | M61: 101303 | N61: =N62+N64+N65 -> 105831 | O61: =O62+O64+O65 -> 107019 | P61: =P62+P63+P64+P65 -> 107666
C62: Universitaria Pública (UdelaR)7 | D62: 70156 | E62: 70156 | F62: 70156 | G62: 70156 | H62: 70156 | I62: 81774 | J62: 81774 | K62: 81774 | L62: 81774 | M62: 81774 | N62: 85905 | O62: 85905 | P62: 85905
C63: Universidad Tecnológica (UTEC) | D63: n/c | E63: n/c | F63: n/c | G63: n/c | H63: n/c | I63: n/c | J63: n/c | K63: n/c | L63: n/c | M63: n/c | N63: n/c | O63: n/c | P63: 55
C64: Universitaria Privada | D64: 8559 | E64: 8414 | F64: 8392 | G64: 12368 | H64: 13593 | I64: 14273 | J64: 16062 | K64: 16758 | L64: 18122 | M64: 19529 | N64: 19824 | O64: 21062 | P64: 21679
C65: Seguridad y Defensa | D65: n/c | E65: n/c | F65: n/c | G65: n/c | H65: n/c | I65: n/c | J65: n/c | K65: n/c | L65: n/c | M65: s/d | N65: 102 | O65: 52 | P65: 27
B67: Fuentes: Departamentos de Estadística (u oficinas productoras de información) del CEIP, CES y CETP y de la Universidad de la República, Dirección de Formación y Perfeccionamiento Docente, e instituciones privadas de educación terciaria Notas: 1-A partir de 2012, Primera Infancia incluye niños de 0 y 1 año de CAIF. 2-El dato de Educación Primaria Común Pública para 2011 incluyen 1.041 acreditados por el Programa Nacional de Jóvenes y Adultos de ANEP(Acreditación de Primaria). 3-Los datos de secundaria privada corresponden a la educación secundaria habilitada, que se componen en su gran mayoría por liceos privados a los que se suma el Liceo Militar y el bachillerato de la Escuela Naval. 4-La baja significativa de matriculados en la categoría “Otras terciaria pública” en 2005, responde a que el ISEF no reportó información para dicho año sí lo había hecho en 2004 (1181 matriculados). En 2006 y 2007 reportó en UdelaR, institución a la pasó a formar parte. 5-Algunas instituciones de educación terciaria no universitaria privada fueron reportadas en distintos niveles a lo largo de la serie o bien no reportaron en algunos de los años, lo que explica la irregularidad de la evolución de la matrícula en este nivel. 6-Los datos de enseñanza terciaria universitaria pública y privada corresponden a carreras cortas y de grado (excluyen carreras de postgrado). 7-Los datos de UdelaR del 2000 a 2006 corresponden a una proyección realizada del Censo 1999 de carreras de grado. El dato de 2007 corresponde al Censo 2007 y los datos 2008 a 2011 responden a la proyección del Censo 2007. El dato de 2012 corresponde al VII Censo de Estudiantes Universitarios de Grado 2012 (no incluyen carreras de postgrado). 8- Los datos de 2014 corresponden a 2013 dado que son los últimos disponibles

Sheet Cuadro 2.2
A1: Ministerio de Educación y Cultura Dirección de Educación
A3: Cuadro 2.2
A4: PRINCIPALES INDICADORES ESTADÍSTICOS.
A5: PRIMERA INFANCIA E INICIAL
A6: Cantidad de Establecimientos de Primera Infancia e Inicial (Sup. por CEIP, públicos y privados) | D6: 245
A7: Cantidad de Centros CAIF (Supervisados por el INAU) | D7: 385
A8: Cantidad de Centros de Educación Infantil Privados (Supervisados por el MEC) | D8: 421
A9: Cantidad de alumnos en Primera Infancia e Inicial (Supervisados por CEIP públicos y privados) | D9: 110910
A10: Cantidad de alumnos en Centros CAIF y DIURNOS (Supervisados por el INAU) | D10: 49654
A11: Cantidad de alumnos en Centros de Educación Infantil Privados (Supervisados por el MEC) | D11: 20953
A12: EDUCACIÓN PRIMARIA
A13: Cantidad de establecimientos de Educación Primaria Común pública y privada (incluye JICI) | D13: 2405
A14: Cantidad de alumnos de Educación Primaria Común pública y privada (incluye JICI) | D14: 309409
A15: Porcentaje de alumnos de educación pública | D15: 82.56094684
A16: Porcentaje de alumnos de educación pública que se encuentran en Áreas Urbanas | D16: 30.82548121
A17: Porcentaje de alumnos de educación pública que se encuentran en Montevideo | D17: 94.15152025
A18: Razón Público/Privado en Educación Primaria | D18: 4.7
A19: Porcentaje de alumnos que no aprobaron en 1ero | D19: 13.5
A20: Porcentaje de alumnos que no aprobaron de 1ero a 6to | D20: 5.2
A21: Porcentaje de personas de 14 a 15 años de edad que culminaron primaria | D21: 97.1
A22: Porcentaje de personas de 25 y más años de edad que culminaron primaria | D22: 88.6
A23: EDUCACIÓN MEDIA
A24: Cantidad de establecimientos dependientes del CES | D24: 489
A25: Cantidad de establecimientos dependientes del CETP (UTU) | D25: 282
A26: Porcentaje de establecimientos dependientes del CES en Montevideo | D26: 37.2
A27: Porcentaje de establecimientos dependientes del CETP (UTU) en Montevideo | D27: 21.3
A28: Cantidad de alumnos en Educación Media Básica | D28: 182236
A29: Cantidad de alumnos en Educación Media Superior | D29: 157035
A30: Razón Público/Privado en Educación Media Básica | D30: 4.7
A31: Razón Público/Privado en Educación Media Superior | D31: 5.7
A32: Porcentaje de no promoción de 1º a 3º año diurno público en Educación Media Básica General | D32: 25.8
A33: Porcentaje de no promoción en Educación Media Tecnológica Básica | D33: 19
A34: Porcentaje de personas de 17 a 18 años que culminaron ciclo básico | D34: 65.9
A35: Porcentaje de personas de 21 a 22 años que culminaron segundo ciclo | D35: 37.6
A36: EDUCACIÓN TERCIARIA
A37: Cantidad de matriculados en cursos de grado en universidades e institutos universitarios | D37: 152627
A38: Cantidad de matriculados en ofertas terciarias de Formación en Educación | D38: 24966
A39: Cantidad de matriculados en ofertas terciarias de los Ministerios del Interior y Defensa Nacional | D39: 777
A40: Cantidad de ingresos en cursos de grado en universidades e institutos universitarios | D40: 25906
A41: Cantidad de egresos en cursos de grado en universidades e institutos universitarios | D41: 7205
A42: CONTEXTO DE LA EDUCACIÓN
A43: Cantidad de alumnos atendidos por el Programa Maestros Comunitarios (último dato disponible: 2012) | D43: 16758
A44: Cantidad de beneficiarios con equipo Ceibal | D44: 665145
A45: Cantidad de alumnos atendidos por los CECAP’s | D45: 2965
A46: Alumnos atendidos por el Programa de Educación Física Escolar | D46: 298404
A47: Total de becas otorgadas (todos los niveles educativos) | D47: 16464
A48: GASTO
A49: Gasto público en educación como porcentaje de gasto del Gobierno Central | D49: 21.9
A50: Gasto público en educación como % del PBI (Uruguay) | D50: 4.6
A51: Notas: La categoría Centros de Educación Infantil Privados incluye el Proyecto Nuestros Niños de la Intendencia de Montevideo. Para Educación Primaria, en todos los casos se consideró educación común. Para Educación Media, la relación matriculados en educación pública, matriculados en educación privada, se realiza sin incorporar en el sector público la matrícula del CETP (UTU), por no contar con información sobre la matrícula técnico-vocacional en educación media del sector privado.

Sheet Organigrama 2.1
A1: Ministerio de Educación y Cultura Dirección de Educación
A5: Organigrama 2.1
A6: ESTRUCTURA ORGANIZACIONAL DEL SISTEMA NACIONAL DE EDUCACIÓN EN LA PRIMERA INFANCIA Y EN EDUCACIÓN INICIAL - 2012
Z10: EDUCACIÓN EN LA PRIMERA INFANCIA | AH10: EDUCACIÓN INICIAL
Z12: 0 a 24 meses | AC12: 2 años | AH12: 3 a 5 años
U15: Experiencias Oportunas | Z15: Talleres
L16: CAIF
G18: INAU | U18: Modalidad Diaria | Z18: Diseño Básico Curricular (0 a 36 meses)
B20: EDUCACIÓN EN LA PRIMERA INFANCIA E INICIAL
Z21: Diseño Básico Curricular (0 a 36 meses)
L22: Centros Diurnos
U23: Modalidad Diaria
AH24: Programa de Educación Inicial y Primaria
Z28: Diseño Básico Curricular (0 a 36 meses)
L29: Centros Educativos Privados | P29: Colegios y Jardines de Infantes Habilitados o Autorizados
AH31: Programa de Educación Inicial y Primaria
P35: Centros Educativos Primera Infancia (CEPI) | Z35: Diseño Básico Curricular (0 a 36 meses)
U38: Común
G40: ANEP CEIP
U41: Tiempo extendido
P42: Grupos de Educación Inicial en Escuelas (urbanas y rurales)
L44: Centros Educativos Públicos | U44: Tiempo completo
AH45: Programa de Educación Inicial y Primaria
P48: Grupos de Educación Inicial en Jardines de Infantes | U48: APRENDER
U51: JICI
U54: Práctica o Hab. de Prác.
G57: Primera Infancia MEC | L57: Centros de Educación Infantil Privados (incluye Programa Nuestros Niños - IM y otros) | Z57: Diseño Básico Curricular (0 a 36 meses)
AH58: Programa de Educación Inicial y Primaria

Sheet ESTADÍSTICAS POR NIVEL
B3: ESTADÍSTICAS POR NIVEL
B9: 1. PRIMERA INFANCIA E INICIAL | E9: 5. TÉCNICO PROFESIONAL
B11: 2. EDUCACIÓN PRIMARIA | E11: 6. TERCIARIA NO UNIVERSITARIA
B13: 3. EDUCACIÓN MEDIA BÁSICA | E13: 7. FORMACION EN EDUCACION
B15: 4. EDUCACIÓN MEDIA SUPERIOR | E15: 8. EDUCACIÓN UNIVERSITARIA
E17: 9. EDUCACIÓN JÓVENES Y ADULTOS

Sheet 1. PRIMERA INFANCIA E INICIAL
B2: PRIMERA INFANCIA
A7: Cuadro I-1.1.1 | B7: TASA NETA DE MATRICULACIÓN ENTRE LOS NIÑOS DE 3 A 5 AÑOS POR AÑO LECTIVO Y TRAMOS DE EDAD
A9: Gráfico I-1.1.1 | B9: MATRÍCULA DE EDUCACIÓN EN LA PRIMERA INFANCIA POR EDAD SEGÚN FORMA DE ADMINISTRACIÓN (TODO EL PAÍS, AÑO 2014)
A10: Gráfico I-1.1.2 | B10: MATRÍCULA DE NIÑOS DE 0 A 5 AÑOS POR MODALIDAD SEGÚN GRANDES ÁREAS AÑO 2014
A11: Gráfico I-1.1.3 | B11: MATRÍCULA DE EDUCACIÓN EN LA PRIMERA INFANCIA E INICIAL POR FORMA DE ADMINISTRACIÓN SEGÚN AÑO LECTIVO (2008-2014).
A12: Gráfico I-1.1.4 | B12: MATRÍCULA DE PRIMERA INFANCIA Y EDUCACIÓN INICIAL (ÓRBITA ANEP POR GRANDES ÁREAS).
A13: Gráfico I-1.1.5 | B13: MATRÍCULA EN EDUCACIÓN INICIAL (ÓRBITA ANEP POR FORMA DE ADMINISTRACIÓN 2000-2014)

Sheet Cuadro I-1.1.1
A1: Ministerio de Educación y Cultura Dirección de Educación
A3: Cuadro I-1.1.1 TASA NETA DE MATRICULACIÓN ENTRE LOS NIÑOS DE 3 A 5 AÑOS POR AÑO LECTIVO Y TRAMOS DE EDAD. AÑO 2014.
A4: TRAMOS DE EDAD | B4: AÑO LECTIVO | H4: TOTAL
B5: 2008 | C5: 2009 | D5: 2010 | E5: 2011 | F5: 2012 | G5: 2013 | H5: 2014
A6: 3 a 5 años | B6: 76.8 | C6: 81.2 | D6: 81.9 | E6: 81.5 | F6: 83.9 | G6: 84.4 | H6: 85.4
A7: 4 y 5 años | B7: 88.9 | C7: 92 | D7: 91.9 | E7: 91.2 | F7: 93.6 | G7: 94.4 | H7: 93.4
A8: Fuente: Elaboración propia en base en las ECH 2008 a 2014.

Sheet Gráfico I-1.1.1
A1: Ministerio de Educación y Cultura Dirección de Educación
A5: Gráfico I-1.1.1
A31: Fuente: Elaboración propia en base en datos del Departamento de Estadística del CEIP, Sistema de Información para la Infancia de INAU y Área de Primera Infancia del MEC.

Sheet Gráfico I-1.1.2
A1: Ministerio de Educación y Cultura Dirección de Educación
A5: Gráfico I-1.1.2
A34: Fuente: Elaboración propia en base a datos del Departamento de Estadística del CEIP, Sistema de Información para la Infancia de INAU y Área de Primera Infancia del MEC.

Sheet Gráfico I -1.1.3
A1: Ministerio de Educación y Cultura Dirección de Educación
A5: Gráfico I- 1.1.3
A28: Fuente: Elaboración propia en base a datos del Departamento de Estadística del CEIP, Sistema de Información para la Infancia de INAU y Área de Primera Infancia del MEC.

Sheet Gráfico I-1.1.4
A1: Ministerio de Educación y Cultura Dirección de Educación
A4: Gráfico I-1.1.4
A29: Fuente: Elaboración propia en base a información del Departamento de Estadística del CEIP.

Sheet Gráfico I-1.1.5
A1: Ministerio de Educación y Cultura Dirección de Educación
A3: Gráfico I-1.1.5
A29: Fuente: Elaboración propia en base a información del Departamento de Estadística del CEIP.

Sheet 2. EDUCACIÓN PRIMARIA
B8: PRIMARIA
A12: Cuadro I-1.2.1 | B12: MATRÍCULA EN EDUCACIÓN PRIMARIA ESPECIAL SEGÚN REGIÓN Y FORMA DE ADMINISTRACIÓN
A13: Cuadro I-1.2.2 | B13: MATRÍCULA Y PORCENTAJE DE MATRÍCULA URBANA EN EDUCACIÓN PRIMARIA PÚBLICA COMÚN POR AÑO LECTIVO SEGÚN ÁREAS DEMOGRÁFICAS (2001-2012).
A15: Gráfico I-1.2.1 | B15: EVOLUCIÓN PORCENTUAL DE LA MATRICULA DE EDUCACIÓN PRIMARIA PÚBLICA
A16: Gráfico I-1.2.2 | B16: RAZÓN PÚBLICO PRIVADO Y MATRÍCULA DE EDUCACIDÓN PRIMARIA COMÚN POR FORMA DE ADMINISTRACIÓN (2000-2014).
A17: Gráfico I-1.2.3 | B17: MATRÍCULA DE ENSEÑANZA COMÚN POR GRANDES ÁREAS SEGÚN FORMA DE ADMINISTRACIÓN (AÑO 2014).
A18: Gráfico I-1.2.4 | B18: PORCENTAJE DE NO PROMOVIDOS EN PRIMER AÑO Y DE PRIMERO A SEXTO (ESCUELAS PÚBLICAS, 2004-2014)
A19: Gráfico I- 1.2.5 | B19: TASAS NETAS DE ASISTENCIA Y MATRÍCULA EN EDUCACIÓN PRIMARIA (2006-2014).
A20: Gráfico I-1.2.6 | B20: DIFERENCIA PORCENTUAL DE NO APROBACIÓN ENTRE EL PRIEMER QUINTIL Y EL QUINTIL MAYOR DE CONTEXTO SOCIOCULTURAL SEGÚN REGIÓN (PRIMERO A SEXTO . ESCUELAS PÚBLICAS 2004-2014)
A21: Gráfico I-1.2.7 | B21: EVOLUCIÓN DE LA TASA BRUTA DE NATALIDAD (TOTAL DEL PAÍS POR MIL, 1995 -2006)

Sheet Cuadro I-1.2.1
A1: Ministerio de Educación y Cultura Dirección de Educación
A3: Cuadro I- 1.2.1 MATRÍCULA EN EDUCACIÓN PRIMARIA ESPECIAL SEGÚN REGIÓN Y FORMA DE ADMINISTRACIÓN. AÑO 2014.
A4: REGIÓN Y FORMA DE ADMINISTRACIÓN | B4: Cantidad absoluta | C4: Porcentaje
A5: TOTAL | B5: =SUM(B8+B9) -> 9999 | C5: =SUM(C8+C9) -> 100
A7: GRANDES ÁREAS
A8: Montevideo | B8: 4889 | C8: 48.89488949
A9: Resto del país | B9: 5110 | C9: 51.10511051
A10: FORMA DE ADMINISTRACIÓN
A11: Público | B11: 6638 | C11: 66.38663866
A12: Privado | B12: 3361 | C12: 33.61336134
A13: Fuente: Elaboración propia en base a información del Departamento de Estadística del CEIP.

Sheet Cuadro I-1.2.2
A1: Ministerio de Educación y Cultura Dirección de Educación
A3: Cuadro I-1.2.2 MATRÍCULA EN EDUCACIÓN PRIMARIA PÚBLICA COMÚN POR AÑO LECTIVO SEGÚN ÁREAS DEMOGRÁFICAS. AÑOS 2001 A 2014.
A5: ÁREAS DEMOGRÁFICAS | B5: AÑO LECTIVO
B6: 2000 | C6: 2001 | D6: 2002 | E6: 2003 | F6: 2004 | G6: 2005 | H6: 2006 | I6: 2007 | J6: 2008 | K6: 2009 | L6: 2010 | M6: 2011 | N6: 2012 | O6: 2013 | P6: 2014
A7: TOTAL | B7: =SUM(B9+B8) -> 301182 | C7: =SUM(C9+C8) -> 304452 | D7: 307756 | E7: 311141 | F7: 311350 | G7: 309286 | H7: 306030 | I7: 300143 | J7: 292542 | K7: 286092 | L7: 279445 | M7: 273440 | N7: 266349 | O7: 261188 | P7: 255451
A8: Urbana | B8: 285077 | C8: 288168 | D8: 291484 | E8: 294182 | F8: 293879 | G8: 292143 | H8: 285826 | I8: 280554 | J8: 273491 | K8: 267638 | L8: 262192 | M8: 256775 | N8: 249885 | O8: 245840 | P8: 240511
A9: Rural | B9: 16105 | C9: 16284 | D9: 16272 | E9: 16959 | F9: 17471 | G9: 17143 | H9: 20204 | I9: 19589 | J9: 19051 | K9: 18454 | L9: 17253 | M9: 16665 | N9: 16464 | O9: 15348 | P9: 14940
A10: % Urbana | B10: 94.7 | C10: 94.7 | D10: 94.7 | E10: 94.5 | F10: 94.4 | G10: 94.5 | H10: 93.4 | I10: 93.5 | J10: 93.5 | K10: 93.6 | L10: 93.8 | M10: 93.9 | N10: 93.81863645 | O10: =O8*100/O7 -> 94.12377291 | P10: =P8*100/P7 -> 94.15152025
A11: Fuente: Elaboración propia en base a información del Departamento de Estadística del CEIP.

Sheet Gráfico I-1.2.1
A1: Ministerio de Educación y Cultura Dirección de Educación
A3: Gráfico I- 1.2.1
A24: Fuente: Elaboración propia en base a información del Departamento de Estadística del CEIP para el período 2000 a 2013 y A 140 años de La Educación del
A25: Pueblo: Aportes para la reflexión sobre la educación en Uruguay. Tomo I Educación Pre primaria, Primaria y Media, para el período 1885 a 1999.

Sheet Gráfico I-1.2.2
A1: Ministerio de Educación y Cultura Dirección de Educación
A3: Gráfico I- 1.2.2
A40: Fuente: | B40: Elaboración propia en base a datos del Departamento de Estadística del CEIP.
A41: Nota: | B41: Educación primaria común incluye la matrícula de educación en Jardines de Infantes con Ciclo Inicial (JICI).

Sheet Gráfico I-1.2.3
A1: Ministerio de Educación y Cultura Dirección de Educación
A6: Gráfico I-1.2.3
A33: Fuente: Elaboración propia en base a datos proporcionados por el Departamento de Estadística del CEIP.

Sheet Gráfico I-1.2.4
A1: Ministerio de Educación y Cultura Dirección de Educación
A5: Gráfico I-1.2.4
A29: Fuente: Monitor Educativo de Enseñanza Primaria ANEP.

Sheet Gráfico I-1.2.5
A1: Ministerio de Educación y Cultura Dirección de Educación
A5: Gráfico I-1.2.5
A31: Fuente: Monitor Educativo de Enseñanza Primaria. ANEP

Sheet Gráfico I-1.2.6
A1: Ministerio de Educación y Cultura Dirección de Educación
A5: Gráfico I-1.2.6
A31: Fuente: Monitor Educativo de Enseñanza Primaria. ANEP

Sheet Gráfico I-1.2.7
A1: Ministerio de Educación y Cultura
A2: Dirección de Educación
A5: Gráfico I-1.2.6
A23: Fuente: Instituto Nacional de Estadística (INE). Proyecciones de población, versión 2005.

Sheet 3. EDUCACIÓN MEDIA BÁSICA
C2: EDUCACIÓN MEDIA BÁSICA
A6: Cuadro I-1.3.1 | B6: PORCENTAJE DE PROMOCIÓN, NO PROMOCIÓN Y DESVINCULACIÓN DE 1ERO A 3ER GRADO DE EDUCACIÓN MEDIA BÁSICA TÉCNICO PROFESIONAL PÚBLICA SEGÚN TIPO DE CURSO (AÑO 2012).
A7: Cuadro I-1.3.2 | B7: PORCENTAJE DE PROMOCIÓN, NO PROMOCIÓN Y DESVINCULACIÓN DE 1ERO A 3ER GRADO DE EDUCACIÓN MEDIA SUPERIOR TÉCNICO PROFESIONAL PÚBLICA SEGÚN TIPO DE CURSO (AÑO 2012 2012).
A9: Gráfico I-1.3.1 | B9: TASAS NETAS DE ASISTENCIA Y MATRÍCULA EN EDUCACIÓN MEDIA BÁSICA (2006 Y 2014)
A10: Gráfico I-1.3.2 | B10: MATRÍCULA DE EDUCACIÓN MEDIA POR AÑO LECTIVO (2000- 2014)
A11: Gráfico I- 1.3.3 | B11: MATRÍCULA DE EDUCACIÓN MEDIA BÁSICA (PÚBLICO /PRIVADO) POR MODALIDAD DE ENSEÑANZA Y RAZÓN GENERAL /TÉCNICO PROFESIONAL (TODO EL PAÍS, 2000-2014)
A12: Gráfico I-1.3.4 | B12: MATRÍCULA DE EDUCACIÓN MEDIA GENERAL, TÉCNICA Y TECONOLÓGICA POR CICLO (Todo el país, 2000-2014)
A13: Gráfico I-1.3.5 | B13: MATRÍCULA DE EDUCACIÓN MEDIA TÉCNICO-PROFESIONAL POR CICLO SEGÚN AÑO LECTIVO
A14: Gráfico I-1.3.6 | B14: MATRÍCULA DE EDUCACIÓN MEDIA BÁSICO (PÙBLICO/PRIVADO) POR MODALIDAD DE ENSEÑANZA Y RAZÓN GENERAL/TÉCNICO PROFESIONAL (Todo el país 2000-2014)
A15: Gráfico I- 1.3.7 | B15: MATRÍCULA DE EDUCACIÓN MEDIA BÁSICA POR FORMA DE ADMINISTRACIÓN Y RAZÓN PÚBLICO /PRIVADO (TODO EL PAÍS, AÑO 2000-2014)
A16: Gráfico I-1.3.8 | B16: MATRÍCULA DE LA EDUCACIÓN MEDIA BÁSICA GENERAL (PÚBLICO /PRIVADO) POR REGIÓN SEGÚN FORMA DE ADMINISTRACIÓN (TODO EL PAÍS AÑO 2014)
A17: Gráfico I-1.3.9 | B17: PORCENTAJE DE NO PROMOCIÓN,DESVINCULACIÓN Y ENVÍOS A EXÁMENES LIBRES DE EDUCACIÓN MEDI A BÁSICA GENERAL PÚBLICA ( TODO EL PAÍS, AÑO 2000-2014)
A18: Gráfico I-1.3.10 | B18: APROBADOS, NO APROBADOS Y DESVINCULADOS EN EDUCACIÓN MEDIA BÁSICA DEL CTP POR AÑO LECTIVO (AÑOS 2009 Y 2014)
A19: Gráfico I-1.3.11 | B19: PORCENTAJE DE ALUMNOS DE EXTRADAD DE EDUCACIÓN MEDIA BÁSICA CES (Años 2011 y 2014)
A20: Gráfico I-1.3.12 | B20: EXTRAEDAD DE EDUCACIÓN MEDIA BÁSICA CTP –UTU ( AÑOS 2011Y 2014)

Sheet Infografía 1.3.1
A1: Ministerio de Educación y Cultura Dirección de Educación
A5: Infografía 1.3.1
A31: La siguiente infografía presenta un grupo de indicadores de educación media básica, dado el caracter de su orientación.
A32: Permite considerar tanto la evolución individual de cada indicador, como la emergencia de relaciones derivadas de su interacción.
A33: - La matricula en educación media continua creciendo como consecuencia de la tendencia al alza registrada en eduación tecnico profesional, que logra compensar la disminución en edución media general.
A34: - La no promoción desciende en abas orientaciones y logra el punto más bajo en la serie desde el año 1993.
A35: - La extraedad registra nuevamente un crecimento en comparación con el año anterior, lo cual explica parte de la disminución de la matricula pese al incremento en la cobertura.
A36: - La desafiliación crece en educación media general, pero logra una reducción en educación técnica, que opera en un incremento de eduación media general.

Sheet Cuadro I-1.3.1
A1: Ministerio de Educación y Cultura Dirección de Educación
A3: Cuadro I-1.3.1 PORCENTAJE DE PROMOCIÓN, NO PROMOCIÓN Y DESVINCULACIÓN DE 1º A 3º GRADO DE EDUCACIÓN MEDIA BÁSICA TÉCNICO PROFESIONAL PÚBLICA SEGÚN TIPO DE CURSO. AÑO 2014.
A4: TIPO DE CURSO | B4: % DE PROMOCIÓN | C4: % DE NO PROMOCIÓN | D4: % DE DESVINCULADOS | E4: TOTAL | F4: % DE LA MATRÍCULA
A5: TOTAL | B5: 0.611 | C5: 0.19 | D5: 0.199 | E5: =B5+C5+D5 -> 1 | F5: 1
A6: Ciclo básico Tecnológico | B6: 0.629 | C6: 0.207 | D6: 0.164 | E6: =B6+C6+D6 -> 1 | F6: 0.5524078401
A7: C.B.T Agario | B7: 0.8223776224 | C7: 0.05804195804 | D7: 0.1195804196 | E7: 1 | F7: 0.04646936656
A8: Formación Profesional Básica | B8: 0.581 | C8: 0.161 | D8: 0.257 | E8: =B8+C8+D8 -> 0.999 | F8: 0.3563408619
A10: Fuente: Departamento de Estadística del CETP
A11: Nota: No se tienen los datos de no promoción para Articulación Media Básica que representa un 4,4% de la matrícula faltante

Sheet Cuadro I-1.3.2
A1: Ministerio de Educación y Cultura Dirección de Educación
A3: Cuadro I-1.3.2
A4: PORCENTAJE DE PROMOCIÓN, NO PROMOCIÓN Y DESVINCULACIÓN DE 1º A 3º GRADO DE EDUCACIÓN MEDIA BÁSICA TÉCNICO PROFESIONAL PÚBLICA SEGÚN DEPARTAMENTO. AÑO 2014
A5: TIPO DE CURSO | B5: % DE PROMOCIÓN | C5: % DE NO PROMOCIÓN | D5: % DE DESVINCULADOS | E5: TOTAL
A6: Artigas | B6: 0.645 | C6: 0.177 | D6: 0.179 | E6: 1
A7: Canelones | B7: 0.556 | C7: 0.217 | D7: 0.227 | E7: 1
A8: Cerro Largo | B8: 0.657 | C8: 0.181 | D8: 0.161 | E8: 1
A9: Colonia | B9: 0.616 | C9: 0.203 | D9: 0.18 | E9: 1
A10: Durazno | B10: 0.636 | C10: 0.167 | D10: 0.197 | E10: 1
A11: Flores | B11: 0.45 | C11: 0.26 | D11: 0.29 | E11: 1
A12: Florida | B12: 0.549 | C12: 0.259 | D12: 0.192 | E12: 1
A13: Lavalleja | B13: 0.563 | C13: 0.196 | D13: 0.24 | E13: 1
A14: Maldonado | B14: 0.657 | C14: 0.155 | D14: 0.188 | E14: 1
A15: Montevideo | B15: 0.582 | C15: 0.191 | D15: 0.227 | E15: 1
A16: Paysandú | B16: 0.713 | C16: 0.15 | D16: 0.137 | E16: 1
A17: Rfo Negro | B17: 0.578 | C17: 0.196 | D17: 0.226 | E17: 1
A18: Rivera | B18: 0.735 | C18: 0.128 | D18: 0.137 | E18: 1
A19: Rocha | B19: 0.556 | C19: 0.192 | D19: 0.251 | E19: 1
A20: Salto | B20: 0.67 | C20: 0.153 | D20: 0.177 | E20: 1
A21: San Jose | B21: 0.657 | C21: 0.174 | D21: 0.168 | E21: 1
A22: Soriano | B22: 0.599 | C22: 0.231 | D22: 0.17 | E22: 1
A23: Tacuarembó | B23: 0.677 | C23: 0.152 | D23: 0.17 | E23: 1
A24: Treinta y Tres | B24: 0.504 | C24: 0.228 | D24: 0.268 | E24: 1
A25: Fuente: Departamento de Estadística del CETP

Sheet Gráfico I-1.3.1
A1: Ministerio de Educación y Cultura Dirección de Educación
A5: Gráfico I-1.3.1

Sheet Gráfico I-1.3.2
A1: Ministerio de Educación y Cultura Dirección de Educación
A5: Gráfico I-1.3.2
A33: Fuente: Departamentos de Estadísticas del CEIP, CES y CETP.
A34: Nota: Incluye Ciclo Básico Rural, Media General y Media Técnico-profesional.
A35: Nota: incluye matrícula por forma de administración pública y privada

Sheet Gráfico I-1.3.3
A1: Ministerio de Educación y Cultura Dirección de Educación
A5: Gráfico I-1.3.3
A30: Fuente: Departamentos de Estadísticas del CEIP, CES y CETP
A31: Nota: Incluye Ciclo Básico Rural, Media General y Media Técnica.
A32: Nota: incluye matrícula por forma de administración pública y privada

Sheet Gráfico I-1.3.4
A1: Ministerio de Educación y Cultura Dirección de Educación
A5: Gráfico I-1.3.4
A33: Fuente: Departamentos de Estadísticas del CEIP, CES y CETP
A34: Nota: incluye matrícula por forma de administración pública y privada

Sheet Gráfico I-1.3.5
A1: Ministerio de Educación y Cultura Dirección de Educación
A5: Gráfico I-1.3.5
A28: Fuente: Departamentos de Estadísticas del CEIP, CES y CETP.

Sheet Gráfico I-1.3.6
A1: Ministerio de Educación y Cultura Dirección de Educación
A5: Gráfico I-1.3.6
A28: Fuente: Departamentos de Estadística del CEIP, CES y del CETP.
A29: Nota: Media Básica General incluye Ciclo Básico Rural y por forma de administración pública y privada

Sheet Gráfico I-1.3.7
A1: Ministerio de Educación y Cultura Dirección de Educación
A5: Gráfico I-1.3.7
A37: Fuente:Departamento de Estadística del CES.

Sheet Gráfico I- 1.3.8
A1: Ministerio de Educación y Cultura Dirección de Educación
A5: Gráfico I-1.3.8
A32: Fuente: Departamento de Estadística del CES.

Sheet Gráfico I-1.3.9
A1: Ministerio de Educación y Cultura Dirección de Educación
A5: Gráfico I-1.3.9
A30: Fuente: Departamento de Estadística del CES.

Sheet Gráfico I-1.3.10
A1: Ministerio de Educación y Cultura Dirección de Educación
A5: Gráfico I-1.3.10
A30: Fuente: Departamento de Estadística del CES.

Sheet Gráfico I- 1.3.11
A1: Ministerio de Educación y Cultura Dirección de Educación
A5: Gráfico I-1.3.11
A32: Fuente: Departamento de Estadística del CES.

Sheet Gráfico I-1.3.12
A1: Ministerio de Educación y Cultura Dirección de Educación
A5: Gráfico I-1.3.12
A32: Fuente: Departamento de Estadística del CES.

Sheet 4. EDUCACIÓN MEDIA SUPERIOR
A2: EDUCACIÓN MEDIA SUPERIOR
A5: Cuadro I-1.4.1 | C5: PORCENTAJE DE PROMOCIÓN, NO PROMOCIÓN Y DESVINCULACIÓN DE 1ERO A 3ER GRADO DE EDUCACIÓN MEDIA SUPERIOR TÉCNICO PROFESIONAL PÚBLICA SEGÚN TIPO DE CURSO (AÑO 2014).
A6: Cuadro I-1.4.2 | C6: PORCENTAJE DE PROMOCIÓN, NO PROMOCIÓN Y DESVINCULACIÓN DE 1º A 3º GRADO DE EDUCACIÓN MEDIA SUPERIOR TÉCNICO PROFESIONAL PÚBLICA SEGÚN DEPARTAMENTO. AÑO 2014.
A8: Gráfico I-1.4.1 | C8: TASAS NETAS DE ASISTENCIA Y MATRÍCULA EN EDUCACIÒN MEDIA SUPERIOR (2006-2014)
A9: Gráfico I-1.4.2 | C9: PORCENTAJE DE NO PROMOCIÓN, NO PROMOCIÓN PARCIAL, DESVINCULACIÓN Y EXÁMENES LIBRES DE PRIMER AÑO DE BACHILLERATO DIVERSIFICADO (Liceos oficiales diurnos, Todo el país, años 2001-2014)
A10: Gráfico I-1.4.3 | C10: PORCENTAJE DE NO PROMOVIDOS SOBRE EL TOTAL DE MATRÍCULADOS EN SEGUNDO DE BACHILLERATO SEGÚN ORIENTACIÓN POR AÑO LECTIVO. LICEOS OFICIALES DIURNOS (Todo el país, año 2011 a 2014)
A11: Gráfico I-1.4.4 | C11: PORCENTAJE DE NO PROMOVIDOS, REINSCRIPOTOS Y NO INSCRIPTOS SOBRE EL TOTAL DE MATRICULADOS DE SEGUNDO GRADO DE BACHILLERATO DIVERSIFICADO, POR AÑO LECTIVO. LICEOS OFICIALES DIURNOS (Todo el país, año 2011 a 2014)
A12: Gráfico I-1.4.5 | C12: PORCENTAJE DE APROBACIÓN Y NO APROBACIÓN DE ASIGNATURAS EN SEGUNDO DE BACHILLERATO, SEGÚN ORIENTACIONES (Todo el país, año 2014)
A13: Gráfico I-1.4.6 | C13: CANTIDAD DE EGRESOS MATRICULADOS Y NO MATRICULADOS DE BACHILLERATO POR AÑO LECTIVO. LICEOS OFICIALES DIURNOS. (Todo el país, año 2014)
A14: Gráfico I-1.4.7 | C14: PORCENTAJE DE APROBACIÓN Y NO APROBACIÓN DE ASIGNATURAS EN TERCERO DE BACHILLERATO SEGÚN ORIENTACIONES (Todo el país, año 2014)
A15: Gráfico I-1.4.8 | C15: PORCENTAJE DE EXTRAEDAD EN EDUCACIÓN MEDIA SUPERIOR (Todo el paìs, años 2011 y 2014)
A16: Gráfico I-1.4.9 | C16: MATRÍCULA DE EDUCACIÓN MEDIA SUPERIOR (PÚBLICO/PRIVADO) POR MODALIDAD, SEGÚN AÑO LECTIVO (Todo el país, 2000-2014)
A17: Gráfico I-1.4.10 | C17: MATRICULA DE EDUCACIÒN MEDIA SUPERIOR GENERAL (PÚBLICO/ PRIVADO) POR FORMA DE ADMINISTRACIÓN (Todo el país, años 2000-2014)
A18: Gráfico I-1.4.11 | C18: MATRICULA EDUCACIÓN TÉCNICO-PROFESIONAL POR MODALIDAD SEGÚN GRANDES ÁREAS (Todo el país, año 2014)

Sheet Infografía 1.4.1
A1: Ministerio de Educación y Cultura Dirección de Educación
A5: INFOGRAFÍA 2
A26: Fuente: Elaboración propia con base en información del los Departamentos de Estadística del CES y del CETP y ECH 2014 del INE.
A27: Nota: Cobertura se calcula en base a la ECH. Matrícula y Extra edad en base a datos de los Departamentos de Estadística de los Desconcentrados. Promoción y Desvinculación de CETP en base a información del Departamento de Estadística, mientras que en el caso del CES, cuarto se calcula con datos del Departamento de Estadística y quinto y sexto con datos del Monitor Educativo. La metodología de cálculo de la desvinculación difiere en los desconcentrados, por lo tanto, no podemos obtener un dato total sobre Media Superior. Para el CES no se pudo calcular el desvinculación en sexto grado.

Sheet Cuadro I-1.4.1
A1: Ministerio de Educación y Cultura Dirección de Educación
A3: Cuadro I-1.4.1 PORCENTAJE DE PROMOCIÓN, NO PROMOCIÓN Y DESVINCULACIÓN DE 1º A 3º GRADO DE EDUCACIÓN MEDIA SUPERIOR TÉCNICO PROFESIONAL PÚBLICA SEGÚN TIPO DE CURSO. AÑO 2014.
A4: TIPO DE CURSO | B4: % DE PROMOCIÓN | C4: % DE NO PROMOCIÓN | D4: % DE DESVINCULADOS | E4: TOTAL | F4: % DE LA MATRICULA
A5: TOTAL | B5: 0.63 | C5: 0.128 | D5: 0.242 | E5: 1 | F5: 1
A6: Bachillerato Figari | B6: 0.611 | C6: 0.138 | D6: 0.251 | E6: 1 | F6: 0.006084604984
A7: Bachillerato profesional | B7: 0.691 | C7: 0.086 | D7: 0.223 | E7: 1 | F7: 0.02199632992
A8: Educación Media Profesional | B8: 0.65 | C8: 0.078 | D8: 0.272 | E8: 1 | F8: 0.3401101024
A9: Educación Media Tecnológica | B9: 0.617 | C9: 0.157 | D9: 0.226 | E9: 1 | F9: 0.6167181766
A10: Formación Profesional Superior | B10: 0.633 | C10: 0.07 | D10: 0.297 | E10: 1 | F10: 0.005722426116
A11: Fuente: Departamento de Estadística del CETP
A12: Nota: No se tienen los datos de no promoción de los cursos de EMP especialiazación que representa 0,07 % de la matricula y los cursos técnicos que representan 0,8
A13: En educación Media tecnologica esta incluido el curso Educación Media Tecnológica Finest que cuenta con 17 alumnos

Sheet Cuadro I-1.4.2
A1: Ministerio de Educación y Cultura Dirección de Educación
A3: Cuadro I-1.4.2 PORCENTAJE DE PROMOCIÓN, NO PROMOCIÓN Y DESVINCULACIÓN DE 1º A 3º GRADO DE EDUCACIÓN MEDIA SUPERIOR TÉCNICO PROFESIONAL PÚBLICA SEGÚN DEPARTAMENTO. AÑO 2014.
A4: TIPO DE CURSO | B4: % DE PROMOCIÓN | C4: % DE NO PROMOCIÓN | D4: % DE DESVINCULADOS | E4: TOTAL
A5: Artigas | B5: 0.631 | C5: 0.098 | D5: 0.271 | E5: =B5+C5+D5 -> 1
A6: Canelones | B6: 0.65 | C6: 0.099 | D6: 0.251 | E6: 1
A7: Cerro Largo | B7: 0.73 | C7: 0.05 | D7: 0.22 | E7: 1
A8: Colonia | B8: 0.718 | C8: 0.073 | D8: 0.209 | E8: 1
A9: Durazno | B9: 0.603 | C9: 0.102 | D9: 0.295 | E9: 1
A10: Flores | B10: 0.656 | C10: 0.08 | D10: 0.264 | E10: 1
A11: Florida | B11: 0.698 | C11: 0.092 | D11: 0.21 | E11: 1
A12: Lavalleja | B12: 0.665 | C12: 0.091 | D12: 0.244 | E12: 1
A13: Maldonado | B13: 0.625 | C13: 0.119 | D13: 0.256 | E13: 1
A14: Montevideo | B14: 0.579 | C14: 0.169 | D14: 0.252 | E14: =B14+C14+D14 -> 1
A15: Paysandú | B15: 0.664 | C15: 0.127 | D15: 0.209 | E15: 1
A16: Rfo Negro | B16: 0.624 | C16: 0.134 | D16: 0.242 | E16: 1
A17: Rivera | B17: 0.65 | C17: 0.083 | D17: 0.267 | E17: 1
A18: Rocha | B18: 0.639 | C18: 0.06 | D18: 0.301 | E18: 1
A19: Salto | B19: 0.674 | C19: 0.122 | D19: 0.204 | E19: 1
A20: San Jose | B20: 0.722 | C20: 0.078 | D20: 0.201 | E20: 1.001
A21: Soriano | B21: 0.721 | C21: 0.09 | D21: 0.188 | E21: 0.999
A22: Tacuarembó | B22: 0.647 | C22: 0.116 | D22: 0.237 | E22: 1
A23: Treinta y Tres | B23: 0.703 | C23: 0.097 | D23: 0.2 | E23: 1
A24: Fuente: Departamento de Estadística del CETP

Sheet Gráfico I-1.4.1
A1: Ministerio de Educación y Cultura Dirección de Educación
A5: Gráfico I-1.4.1
A30: Fuente: Departamento de Estadística del CES.

Sheet Gráfico I-1.4.2
A1: Ministerio de Educación y Cultura Dirección de Educación
A5: Gráfico I-1.4.2
A22: Fuente: Elaboración propia en base a información del Departamento de Estadística del CES.
A23: Nota: Desvinculado (Fallo ANEP-CES: “Desertor”): alumno con más de 50 inasistencias, que se desconoce su destino. No promoción parcial (Fallo ANEP-CES: “Recursante”): alumno que
A24: no habiendo obtenido la promoción, concurre a alguna asignatura previa.
A25: No promoción (Fallo ANEP-CES: “Repetidor”): alumno que no habiendo obtenido la promoción debe cursar la totalidad de las asignaturas nuevamente.
A26: Examen libre: alumno que le fue aprobada la solicitud para brindar examen libre.
A27: Estos fallos aplican para 1.° año de Bachillerato Diversificado.
A30: Fuente: Departamento de Estadística del CES.

Sheet Gráfico I-1.4.3
A1: Ministerio de Educación y Cultura Dirección de Educación
A5: Gráfico I-1.4.3
A28: Fuente: Departamento de Estadística del CES.

Sheet Gráfico I-1.4.4
A1: Ministerio de Educación y Cultura Dirección de Educación
A5: Gráfico I-1.4.4
A26: Fuente: Departamento de Estadística del CES.

Sheet Gráfico I-1.4.5
A1: Ministerio de Educación y Cultura Dirección de Educación
A5: Gráfico I-1.4.5
A25: Fuente: Departamento de Estadística del CES.

Sheet Gráfico I-1.4.6
A1: Ministerio de Educación y Cultura Dirección de Educación
A5: Gráfico I-1.4.6
A27: Fuente: Departamento de Estadística del CES.

Sheet Gráfico I-1.4.7
A1: Ministerio de Educación y Cultura Dirección de Educación
A5: Gráfico I-1.4.7
A26: Fuente: Departamento de Estadística del CES.

Sheet Gráfico I-1.4.8
A1: Ministerio de Educación y Cultura Dirección de Educación
A5: Gráfico I-1.4.8
A25: Fuente: Departamento de Estadística del CES.

Sheet Gráfico I-1.4.9
A1: Ministerio de Educación y Cultura Dirección de Educación
A5: Gráfico I-1.4.9
A30: Fuente: Departamento de Estadística del CES.

Sheet Gráfico I-1.4.10
A1: Ministerio de Educación y Cultura Dirección de Educación
A5: Gráfico I-1.4.10
A27: Fuente: Departamento de Estadística del CES.

Sheet Gráfico I-1.4.11
A1: Ministerio de Educación y Cultura Dirección de Educación
A5: Gráfico I- 1.4.11
A34: Fuente:Elaboración propia en base a información del Departamento de Estadística del CETP.

Sheet 5. TÉCNICO PROFESIONAL
B21: EDUCACIÓN TÉCNICO - PROFESIONAL
A24: Cuadro I-1.5.1 | B24: ESTABLECIMIENTOS DE EDUCACIÓN TÉCNICO PROFESIONAL SEGÚN NIVEL EDUCATIVO IMPARTIDO EN EL ESTABLECIMIENTO SEGÚN GRANDES ÁREAS. AÑO 2014.
A25: Cuadro I- 1.5.2 | B25: ALUMNOS MATRICULADOS EN EDUCACIÓN TÉCNICA POR GRANDES ÁREAS Y SEXO SEGÚN NIVEL Y TIPO DE CURSO. AÑO 2014.
A26: Cuadro I-1.5.3 | B26: ALUMNOS MATRICULADOS EN EDUCACIÓN MEDIA, TÉCNICA Y TERCIARIA POR NIVEL DEL CURSO SEGÚN SECTORES DE ESTUDIO. AÑO 2014.
A28: Gráfico 1.5.1 | B28: MATRÍCULA DE CONSEJO DE EDUCACIÓN TÉCNICO PROFESIONAL POR NIVEL EDUCATIVO (2000 – 2014).

Sheet Cuadro I-1.5.1
A1: Ministerio de Educación y Cultura Dirección de Educación
A4: Cuadro I-1.5.1 ESTABLECIMIENTOS DE EDUCACIÓN TÉCNICO PROFESIONAL POR NIVEL EDUCATIVO IMPARTIDO EN EL ESTABLECIMIENTO SEGÚN GRANDES ÁREAS. AÑO 2014.
B5: TOTAL | C5: GRANDES ÁREAS
C6: Resto del País | D6: Montevideo
A7: TOTAL | B7: =C7+D7 -> 282 | C7: =SUM(C8:C20) -> 222 | D7: =SUM(D8:D20) -> 60
A8: básica | B8: 69 | C8: 58 | D8: 11
A9: basica y superior | B9: 20 | C9: 19 | D9: 1
A10: superior | B10: 13 | C10: 13 | D10: 0
A11: terciaria | B11: 11 | C11: 7 | D11: 4
A12: jya | B12: 47 | C12: 36 | D12: 11
A13: superior y terciaria | B13: 8 | C13: 4 | D13: 4
A14: superior y jya | B14: 12 | C14: 7 | D14: 5
A15: basico superior y jya | B15: 37 | C15: 27 | D15: 10
A16: superior terc y jya | B16: 10 | C16: 3 | D16: 7
A17: basico superior y terciaria | B17: 5 | C17: 4 | D17: 1
A18: basico superior jya y terciaria | B18: 41 | C18: 39 | D18: 2
A19: terciaria y jya | B19: 2 | C19: 2 | D19: 0
A20: basica y jya | B20: 7 | C20: 3 | D20: 4
A22: Fuente: Departamento de Estadísticas CETP-UTU
A23: Nota: En este cuadro fueron contabilizadas las "reparticiones" [locales en los cuales se imparten cursos administrados por el CETP-UTU y que no forman parte de los activos de ANEP]

Sheet Cuadro I-1.5.2
A1: Ministerio de Educación y Cultura Dirección de Educación
A3: Cuadro I -1.5.2 ALUMNOS MATRICULADOS EN EDUCACIÓN TÉCNICA POR GRANDES ÁREAS Y SEXO SEGÚN NIVEL Y TIPO DE CURSO. AÑO 2014.
A4: NIVEL DEL CURSO | C4: GRANDES ÁREAS
C5: TOTAL | F5: MONTEVIDEO | I5: RESTO DEL PAÍS
D6: Sexo | G6: Sexo | J6: Sexo
C7: Total | D7: Femenino | E7: Masculino | F7: Total | G7: Femenino | H7: Masculino | I7: Total | J7: Femenino | K7: Masculino
A8: TOTAL | C8: =D8+E8 -> 90813 | D8: =SUM(D9:D12) -> 39156 | E8: =SUM(E9:E12) -> 51657 | F8: =G8+H8 -> 33032 | G8: =SUM(G9:G12) -> 13428 | H8: =SUM(H9:H12) -> 19604 | I8: =J8+K8 -> 57781 | J8: =SUM(J9:J12) -> 25728 | K8: =SUM(K9:K12) -> 32053
A9: Educación Media Básica | C9: =+D9+E9 -> 30816 | D9: =+G9+J9 -> 12522 | E9: 18294 | F9: =+G9+H9 -> 5723 | G9: 2272 | H9: 3451 | I9: =+J9+K9 -> 25093 | J9: 10250 | K9: 14843
A10: Educación Media Superior | C10: =+D10+E10 -> 41416 | D10: 18047 | E10: 23369 | F10: =+G10+H10 -> 17294 | G10: 6796 | H10: 10498 | I10: =+J10+K10 -> 24122 | J10: 11251 | K10: 12871
A11: Nivel de Formación Profesional | C11: =+D11+E11 -> 9092 | D11: 4800 | E11: 4292 | F11: =+G11+H11 -> 4044 | G11: 2102 | H11: 1942 | I11: =+J11+K11 -> 5048 | J11: 2698 | K11: 2350
A12: Nivel Terciario | C12: =+D12+E12 -> 9489 | D12: 3787 | E12: 5702 | F12: =+G12+H12 -> 5971 | G12: 2258 | H12: 3713 | I12: =+J12+K12 -> 3518 | J12: 1529 | K12: 1989
A13: Fuente: Elaboración propia en base a información del Departamento de Estadísticas CETP - U.T.U
A14: Nota: La presente clasificación de niveles refiere a la adoptada por el CETP (UTU) y no a la presentada en otros apartados, que se organiza en base a los niveles del artículo 22 de la Ley General de Educación 18.437. El lector deberá tenerpresente estas condicionantes de la clasificación, ya que se producen diferencias en los valores que se observan en otros apartados y capítulos.

Sheet Cuadro I-1.5.3
A1: Ministerio de Educación y Cultura Dirección de Educación
A3: Cuadro I-1.5.3 ALUMNOS MATRICULADOS EN EDUCACIÓN MEDIA, TÉCNICA Y TERCIARIA POR NIVEL DEL CURSO SEGÚN SECTORES DE ESTUDIO. AÑO 2014.
A4: ÁREAS DE ESTUDIO | C4: TOTAL | D4: NIVEL DEL CURSO
D5: Educación Media Básica | E5: Educación Media Superior | F5: Nivel de Formación Profesional | G5: Nivel Terciario
A6: TOTAL | C6: =SUM(C7:C18) -> 90813 | D6: =SUM(D7:D18) -> 30816 | E6: =SUM(E7:E18) -> 41416 | F6: =SUM(F7:F18) -> 9092 | G6: =SUM(G7:G18) -> 9489
A7: Agricultura y pesca | C7: =+D7+E7+F7+G7 -> 3822 | D7: 312 | E7: 2534 | F7: 427 | G7: 549
A8: Artes y Humanidades | C8: =+D8+E8+F8+G8 -> 1281 | D8: 0 | E8: 233 | F8: 1048 | G8: 0
A9: Comercio y administración | C9: 14330 | D9: 0 | E9: 12300 | F9: 268 | G9: 1762
A10: Construcción | C10: 3507 | D10: 276 | E10: 2451 | F10: 433 | G10: 347
A11: Industria | C11: 22587 | D11: 4647 | E11: 9421 | F11: 4014 | G11: 4505
A12: Informática | C12: 9141 | D12: 1178 | E12: 6013 | F12: 1175 | G12: 775
A13: Periodismo y comunicación | C13: 1298 | D13: 96 | E13: 63 | F13: 34 | G13: 1105
A14: Programas generales | C14: 19812 | D14: 19812 | E14: 0 | F14: 0 | G14: 0
A15: Servicios - Hotelería, gastronomía y turismo | C15: 7069 | D15: 1716 | E15: 4185 | F15: 1061 | G15: 107
A16: Servicios - Medio ambiente | C16: 245 | D16: 0 | E16: 25 | F16: 0 | G16: 220
A17: Servicios - Recreación | C17: 3945 | D17: 1220 | E17: 2688 | F17: 21 | G17: 16
A18: Servicios personales | C18: 3776 | D18: 1559 | E18: 1503 | F18: 611 | G18: 103

Sheet Cuadro I-1.8.9
A1: Ministerio de Educación y Cultura
A2: Dirección de Educación
A5: Cuadro I-1.8.9
A6: TOTAL DE INSTITUCIONES Y CURSOS DEL RELEVAMIENTO TÉCNICO-PROFESIONAL POR FORMA DE ADMINISTRACIÓN, GRANDES ÁREAS SEGÚN ÁREA DE CONOCIMIENTO. AÑO 2014
A7: AREA DE CONOCIMIENTO | B7: TOTAL | C7: FORMA DE ADMINISTRACIÓN | E7: ÁREA GEOGRÁFICA
C8: PRIVADO | D8: PÚBLICA | E8: MONTEVIDEO | F8: RESTO DEL PAÍS
A9: TOTAL INSTITUCIONES | B9: =C9+D9 -> 249 | C9: 209 | D9: 40 | E9: 160 | F9: 89
A11: TOTAL CURSOS | B11: =C11+D11 -> 2649 | C11: =SUM(C12:C34) -> 2360 | D11: =SUM(D12:D34) -> 289 | E11: 1724 | F11: 925
A12: ADMINISTRACION -COMERCIALIZACION | B12: =C12+D12 -> 424 | C12: 422 | D12: 2 | E12: 307 | F12: 117
A13: AERONÁUTICA | B13: =C13+D13 -> 22 | C13: 6 | D13: 16 | E13: 7 | F13: 15
A14: AGRARIA | B14: 33 | C14: 33 | D14: 0 | E14: 16 | F14: 17
A15: ARTES-ARTESANIAS | B15: 159 | C15: 153 | D15: 6 | E15: 123 | F15: 36
A16: COMUNICACIONES | B16: 37 | C16: 30 | D16: 7 | E16: 33 | F16: 4
A17: CONSTRUCCION -ARQUITECTURA | B17: 54 | C17: 54 | D17: 0 | E17: 40 | F17: 14
A18: DEPORTES Y AFINES | B18: 34 | C18: 32 | D18: 2 | E18: 19 | F18: 15
A19: DISEÑOS | B19: 40 | C19: 40 | D19: 0 | E19: 28 | F19: 12
A20: ELECTROTECNIA Y ELECTRONICA | B20: 34 | C20: 33 | D20: 1 | E20: 31 | F20: 3
A21: GASTRONOMIA | B21: 102 | C21: 98 | D21: 4 | E21: 84 | F21: 18
A22: GRAFICOS | B22: 12 | C22: 12 | D22: 0 | E22: 12 | F22: 0
A23: HOTELERIA Y TURISMO | B23: 24 | C23: 24 | D23: 0 | E23: 15 | F23: 9
A24: IDIOMAS | B24: 868 | C24: 855 | D24: 13 | E24: 467 | F24: 401
A25: INFORMATICA | B25: 251 | C25: 243 | D25: 8 | E25: 85 | F25: 166
A26: MARITIMA | B26: 5 | C26: 0 | D26: 5 | E26: 4 | F26: 1
A27: METAL-MECANICA | B27: 28 | C27: 21 | D27: 7 | E27: 25 | F27: 3
A28: QUIMICA | B28: 3 | C28: 3 | D28: 0 | E28: 3 | F28: 0
A29: SALUD SEGURIDAD E HIGIENE | B29: 54 | C29: 34 | D29: 20 | E29: 43 | F29: 11
A30: SEGURIDAD Y DEFENSA | B30: 202 | C30: 6 | D30: 196 | E30: 164 | F30: 38
A31: SERVICIOS PERSONALES -ESTETICA | B31: 62 | C31: 62 | D31: 0 | E31: 59 | F31: 3
A32: TECNOLÓGICA | B32: 6 | C32: 5 | D32: 1 | E32: 2 | F32: 4
A33: VESTIMENTA | B33: 47 | C33: 47 | D33: 0 | E33: 42 | F33: 5
A34: OTROS | B34: 148 | C34: 147 | D34: 1 | E34: 115 | F34: 33
A35: Fuente: Elaboración propia en base a la información del Relevamiento de Instituciones de Formación Técnico-Profesional. Realizado por el División de Investigación y Estadística.

Sheet Gráfico I-1.5.1
A1: Ministerio de Educación y Cultura Dirección de Educación
A5: Gráfico I-1.5.1
A40: Fuente: Elaboración propia en base a información del Departamento de Estadística del CETP.

Sheet 6. TERCIARIA NO UNIVERSITARIA
C3: TERCIARIA NO UNIVERSITARIA
B9: ALUMNOS MATRICULADOS EN EDUCACIÓN TERCIARIA NO UNIVERSITARIA DEL CETP SEGÚN AÑO LECTIVO (TODO EL PAÍS AÑO 2001-2014).
A10: Gráfico I-1.6.1
B11: ALUMNOS MATRICULADOS EN EDUCACIÓN TERCIARIA NO UNIVERSITARIA, DE OTRAS PÚBLICAS Y PRIVADAS SEGÚN AÑO LECTVO (TODO EL PAÍS AÑO 2001-2014).
A12: Gráfico I-1.6.2
B13: MATRÍCULA DE NIVEL TERCIARIO NO UNIVERSITARIO DEL ÁREA DE SEGURIDAD Y DEFENSA POR MINISTERIOS SEGÚN AÑO (2000-2014).
A14: Gráfico I-1.6.3
B15: MATRÍCULA DE NIVEL TERCIARIO NO UNIVERSITARIO DEL ÁREA DE SEGURIDAD Y DEFENSA POR INSTITUCIÓN SEGÚN AÑO (2000-2014).
A16: Gráfico I-1.6.4

Sheet Gráfico I-1.6.1
A1: Ministerio de Educación y Cultura Dirección de Educación
A5: Gráfico I- 1.6.1
B31: Elaboración propia en base a información del Departamento de Estadística del CETP
A32: Fuente:

Sheet Gráfico I-1.6.2
A1: Ministerio de Educación y Cultura Dirección de Educación
A5: Gráfico I-1.6.2
B31: Elaboración propia en base a información del Departamento de Estadística del CETP
A34: Fuente:
A35: Notas: | B35: No incluye las ofertas del Consejo de Formación en Educación (CFE) de ANEP ni Seguridad y Defensa, que se presentan aparte más adelante.

Sheet Gráfico I -1.6.3
A1: Ministerio de Educación y Cultura Dirección de Educación
A5: Gráfico I-1.6.3
A23: Fuente: Elaboración propia en base a información proporcionada por las oficinas productoras de estadísticas de cada una de las instituciones

Sheet Gráfico I-1.6.4
A1: Ministerio de Educación y Cultura Dirección de Educación
A5: Gráfico I-1.6.4
A24: Fuente: Elaboración propia en base a información proporcionada por las oficinas productoras de estadísticas de cada una de las instituciones.
A25: Nota: En esta serie no se toman en cuenta las matrículas de los cursos OMI de la Escuela Naval.

Sheet 7. FORMACION EN EDUCACION
E4: FORMACIÓN EN EDUCACIÓN
A9: Gráfico I-1.7.1 | C9: ALUMNOS MATRICULADOS EN FORMACIÓN EN EDUCACIÓN POR AÑO LECTIVO SEGÚN TIPO DE OFERTA (TODO EL PAÍS, AÑOS 2000-2014).
A10: Gráfico I-1.7.2 | C10: ALUMNOS MATRICULADOS EN FORMACIÓN EN EDUACIÓN POR AÑO LECTIVO SEGÚN GRANDES ÁREAS (TODO EL PAÍS AÑOS 2000-2014).
A11: Grafico I-1.7.3 | C11: EGRESOS DE FORMACIÓN EN EDUCACIÓN POR AÑO LECTIVO SEGÚN TIPO DE CURSO
A12: Grafico I-1.7.4 | C12: PORCENTAJE DE ESTUDIANTES CENSADOS EN CFE SEGÚN SEXO Y TRAMOS DE EDAD

Sheet Gráfico I-1.7.1
A1: Ministerio de Educación y Cultura
A2: Dirección de Educación
A5: Gráfico I-1.7.1
A36: Fuente: Consejo de Formación en Educación de ANEP

Sheet Gráfico I-1.7.2
A1: Ministerio de Educación y Cultura Dirección de Educación
A5: Gráfico I-1.7.1
A33: Fuente: Consejo de Formación en Educación de ANEP

Sheet Gráfico I-1.7.3
A1: Ministerio de Educación y Cultura Dirección de Educación
A5: Gráfico I-1.7.3
A36: Fuente: Consejo de Formación en Educación de ANEP

Sheet Gráfico I-1.7.4
A1: Ministerio de Educación y Cultura Dirección de Educación
A5: Gráfico I-1.7.4
A36: Fuente: Consejo de Formación en Educación de ANEP

Sheet 8. EDUCACIÓN UNIVERSITARIA
B2: EDUCACIÓN UNIVERSITARIA
A5: Cuadro I-1.8.1 | B5: INGRESOS A INSTITUCIONES UNIVERSITARIAS POR AÑO LECTIVO SEGÚN ÁREA DE CONOCIMIENTO. AÑOS 2000 A 2012
A6: Cuadro I-1.8.2 | B6: EGRESOS DE INSTITUCIONES UNIVERSITARIAS POR AÑO LECTIVO SEGÚN ÁREA DE CONOCIMIENTO. AÑOS 2000 A 2012
A7: Cuadro I-1.8.3 | B7: EGRESOS DE INSTITUCIONES UNIVERSITARIAS POR NIVEL ACADÉMICO SEGÚN ÁREA DE CONOCIMIENTO. Año 2012
A8: Cuadro I-1.8.4 | B8: INGRESOS A INSTITUCIONES UNIVERSITARIAS POR NIVEL ACADÉMICO SEGÚN ÁREA DE CONOCIMIENTO. Año 2012
A9: Cuadro I-1.8.5 | B9: INGRESOS, MATRÍCULA Y EGRESOS SEGÚN FORMA DE ADMINISTRACIÓN EN CANTIDADES ABSOLUTAS Y PORCENTAJES. Año 2012.
A10: Cuadro I-1.8.6 | B10: EGRESADOS DE GRADO POR NIVEL Y SEXO SEGÚN TRAMOS DE EDAD. AÑO 2014.
A11: Cuadro I-1.8.7 | B11: EGRESADOS DE POSGRADO POR NIVEL Y SEXO SEGÚN TRAMOS DE EDAD. AÑO 2014.
A13: Gráfico 1.8.1 | B13: EVOLUCIÓN COMPARADA DE LA MATRICULA DE GRADO Y POSTGRADO POR UNIVERSIDADES E INSTITUTOS UNIVERSITARIOS PRIVADOS SEGÚN AÑO LECTIVO ( 2000-2014)
A14: Gráfico 1.8.2 | B14: EVOLUCIÓN D ELA TASA D ECRECIMIENTO EN LA MATRÍCULA D ELA SUNIVERSIDADES E INSTITUTOS UNIVERSITARIOS PRIVADOS CON BASE AL AÑO 2000(2001-2014)
A15: Gráfico 1.8.3 | B15: PORCENTAJE DE MATRICULADOS EN LAS UNIVERSIDADES E INSTITUTOS UNIVERSITARIO PRIVADOS SEGÚN INSTITUCIÓN (AÑO2014)
A16: Gráfico 1.8.4 | B16: EVOLUCIÓN COMPARADA DEL INGRESO DE GRADO ENLA UDELAR Y UNIVERSIDADES E INSTITUTOS UNIVERSITARIOS PRIVADO (2000-2014)
A17: Gráfico 1.8.5 | B17: EVOLUCIÓN COMPARADA DEL INGRESO Y DEL EGRESO EN CARRERAS DE GRADO EN UNIVERSIDADES E INSTITUTOS UNIVERSITARIOS PRIVADOS (2000-2014)
A18: Gráfico 1.8.6 | B18: EVOLUCIÓN COMPOARADA DEL INGRESO Y DEL EGRESO EN CARRERAS DE GRADO EN LA UDELAR (2000-2014)
A19: Gráfico 1.8.7 | B19: EVOLUCIÓN COMPARADA DEL EGRESO EN CARRERAS DE GRADO EN LA UDELAR Y EN UNIVERSIDADES E INSTITUTOS UNIVERSITARIOS PRIVADOS (2000 -2014)
A20: Gráfico 1.8.8 | B20: PORCENTAJE TOTAL DE EGRESADOS DE CARRERA DE GRADO SEGÚN TRAMO DE EDAD (AÑO 2014).
A21: Gráfico 1.8.9 | B21: PIRÁMIDE DE EGRESADOS DE GRADO DE INSTITUCIONES TERCIARIAS UNIVERSITARIAS PÚBLICAS Y PRIVADAS (AÑO 2014)
A22: Gráfico 1.8.10 | B22: EVOLUCIÓN COMPARADA DEL INGRESO Y DEL EGRESO DE POSTGRADO –INSTITUCIONES PÚBLICAS Y PRIVADAS- (2000-2014)
A23: Gráfico 1.8.11 | B23: EVOLUCIÓN COMPARADA DEL INGRESO Y DEL EGRESO DE POSTGRADO EN INSTITUCIONES UNIVERSITARIAS PÚBLICAS (2000-2014)
A24: Gráfico 1.8.12 | B24: EVOLUCIÓN COMPARADA DEL INGRESO Y DEL EGRESO DE POSTGRADO EN UNIVERSIDADES E INSTITUTOS UNIVERSITARIOS PRIVADOS (2000-2014)
A25: Gráfico 1.8.13 | B25: PORCENTAJE TOTAL DE EGRESADOS DE CARRERAS DE POSTGRADO SEGÚN TRAMO DE EDAD (AÑO 2014)
A26: Gráfico 1.8.14 | B26: PIRÁMIDE DE EGRESADOS DE POSTGRADO DE INSTITUCIONES TERCIARIAS UNIVERSITARIAS PÚBLICAS Y PRIVADAS. (AÑO 2014).

Sheet Cuadro I-1.8.1
A1: Ministerio de Educación y Cultura Dirección de Educación
A3: Cuadro I-1.8.1
A4: INGRESOS A INSTITUCIONES UNIVERSITARIAS PÚBLICAS Y PRIVADAS DE GRADO POSTGRADO, POR AÑO LECTIVO SEGÚN ÁREA DE CONOCIMIENTO. AÑOS 2000 A 2014.
A5: ÁREA DE CONOCIMIENTO | B5: AÑO LECTIVO
B6: 2000 | C6: 2001 | D6: 2002 | E6: 2003 | F6: 2004 | G6: 2005 | H6: 2006 | I6: 2007 | J6: 2008 | K6: 2009 | L6: 2010 | M6: 2011 | N6: 2012 | O6: 2013 | P6: 2014
A7: TOTAL | B7: =SUM(B8:B29) -> 18131 | C7: 19265 | D7: 20090 | E7: 21169 | F7: 21558 | G7: 21964 | H7: 22798 | I7: 23014 | J7: 23566 | K7: 24981 | L7: =SUM(L8:L30) -> 26357 | M7: 26283 | N7: 26854 | O7: =SUM(O8:O30) -> 32178 | P7: =SUM(P8:P30) -> 33321
A8: Agricultura, silvicultura y pesca | B8: 210 | C8: 225 | D8: 176 | E8: 252 | F8: 283 | G8: 398 | H8: 362 | I8: 414 | J8: 436 | K8: 638 | L8: 806 | M8: 864 | N8: 608 | O8: 724 | P8: 779
A9: Arquitectura y construcción | B9: 788 | C9: 704 | D9: 756 | E9: 645 | F9: 602 | G9: 628 | H9: 648 | I9: 665 | J9: 646 | K9: 832 | L9: 770 | M9: 754 | N9: 688 | O9: 932 | P9: 876
A10: Artes | B10: 488 | C10: 539 | D10: 574 | E10: 642 | F10: 710 | G10: 809 | H10: 744 | I10: 752 | J10: 746 | K10: 839 | L10: 1219 | M10: 997 | N10: 895 | O10: 1205 | P10: 1167
A11: Ciencias de la vida | B11: 474 | C11: 492 | D11: 515 | E11: 633 | F11: 815 | G11: 785 | H11: 955 | I11: 939 | J11: 818 | K11: 581 | L11: 650 | M11: 649 | N11: 473 | O11: 489 | P11: 625
A12: Ciencias físicas | B12: 505 | C12: 374 | D12: 545 | E12: 540 | F12: 653 | G12: 624 | H12: 771 | I12: 653 | J12: 687 | K12: 760 | L12: 636 | M12: 667 | N12: 711 | O12: 877 | P12: 777
A13: Ciencias sociales y del comportamiento | B13: 2965 | C13: 2466 | D13: 3152 | E13: 2933 | F13: 3126 | G13: 3353 | H13: 2987 | I13: 3057 | J13: 4830 | K13: 5692 | L13: 5936 | M13: 5399 | N13: 3774 | O13: 5044 | P13: 3638
A14: Deportes** | L14: 450 | M14: 544 | N14: 591 | O14: 733 | P14: 763
A15: Derecho | B15: 2378 | C15: 2033 | D15: 2047 | E15: 2087 | F15: 1828 | G15: 2000 | H15: 1837 | I15: 1754 | J15: 1850 | K15: 1855 | L15: 2031 | M15: 2005 | N15: 2911 | O15: 3104 | P15: 3296
A16: Enseñanza comercial y administración | B16: 2546 | C16: 4252 | D16: 3903 | E16: 4132 | F16: 3942 | G16: 3828 | H16: 4292 | I16: 4885 | J16: 3127 | K16: 3253 | L16: 4176 | M16: 3661 | N16: 5462 | O16: 5657 | P16: 5517
A17: Formación de personal docente y ciencias de la educación | B17: 315 | C17: 505 | D17: 542 | E17: 588 | F17: 515 | G17: 766 | H17: 911 | I17: 901 | J17: 941 | K17: 709 | L17: 615 | M17: 241 | N17: 173 | O17: 667 | P17: 712
A18: Humanidades | B18: 568 | C18: 663 | D18: 709 | E18: 803 | F18: 899 | G18: 967 | H18: 1038 | I18: 889 | J18: 909 | K18: 791 | L18: 541 | M18: 707 | N18: 806 | O18: 1100 | P18: 1487
A19: Industria y producción | B19: 43 | C19: 151 | D19: 172 | E19: 214 | F19: 247 | G19: 114 | H19: 141 | I19: 104 | J19: 111 | K19: 115 | L19: 116 | M19: 219 | N19: 383 | O19: 441 | P19: 444
A20: Informática | B20: 792 | C20: 701 | D20: 749 | E20: 790 | F20: 813 | G20: 843 | H20: 917 | I20: 962 | J20: 1186 | K20: 1248 | L20: 1319 | M20: 1280 | N20: 1128 | O20: 1366 | P20: 1319
A21: Ingeniería y profesiones afines | B21: 720 | C21: 676 | D21: 672 | E21: 752 | F21: 767 | G21: 570 | H21: 701 | I21: 633 | J21: 671 | K21: 686 | L21: 856 | M21: 828 | N21: 891 | O21: 1494 | P21: 1518
A22: Matemáticas y estadística | B22: 107 | C22: 142 | D22: 113 | E22: 131 | F22: 324 | G22: 244 | H22: 328 | I22: 329 | J22: 238 | K22: 218 | L22: 155 | M22: 176 | N22: 132 | O22: 171 | P22: 135
A23: Medicina | B23: 3673 | C23: 3817 | D23: 3573 | E23: 3960 | F23: 4135 | G23: 3633 | H23: 3572 | I23: 3562 | J23: 3888 | K23: 4823 | L23: 4361 | M23: 4656 | N23: 4785 | O23: 6307 | P23: 6563
A24: Periodismo e información | B24: 945 | C24: 838 | D24: 1118 | E24: 1174 | F24: 972 | G24: 1170 | H24: 1219 | I24: 1036 | J24: 1038 | K24: 1049 | L24: 816 | M24: 1218 | N24: 1027 | O24: 1026 | P24: 1036
A25: Protección del medio ambiente | B25: n/c | C25: n/c | D25: n/c | E25: n/c | F25: n/c | G25: n/c | H25: n/c | I25: n/c | J25: n/c | K25: n/c | L25: n/c | M25: 6 | N25: 43 | O25: 151 | P25: 127
A26: Servicios de seguridad | B26: n/c | C26: n/c | D26: n/c | E26: n/c | F26: n/c | G26: n/c | H26: n/c | I26: n/c | J26: n/c | K26: n/c | L26: n/c | M26: s/d | N26: 102 | O26: 128 | P26: 185
A27: Servicios personales | B27: 8 | C27: 0 | D27: 0 | E27: 14 | F27: 8 | G27: 0 | H27: 318 | I27: 328 | J27: 331 | K27: 272 | L27: 146 | M27: 327 | N27: 84 | O27: 8 | P27: 0
A28: Servicios sociales | B28: 311 | C28: 367 | D28: 457 | E28: 498 | F28: 508 | G28: 724 | H28: 573 | I28: 626 | J28: 594 | K28: 87 | L28: 146 | M28: 82 | N28: 0 | O28: 19 | P28: 39
A29: Veterinaria | B29: 295 | C29: 320 | D29: 317 | E29: 381 | F29: 411 | G29: 508 | H29: 484 | I29: 525 | J29: 519 | K29: 533 | L29: 508 | M29: 578 | N29: 555 | O29: 535 | P29: 611
A30: Otros * | B30: n/c | C30: n/c | D30: n/c | E30: n/c | F30: n/c | G30: n/c | H30: n/c | I30: n/c | J30: n/c | K30: n/c | L30: 104 | M30: 327 | N30: 32 | O30: 0 | P30: 1707
A31: Fuente:Elaboración propia en base información de las oficinas productoras de las instituciones. Nota:Las áreas corresponden a la clasificación CINE 1997 de UNESCO.
A32: * En Otros se incluyen los cursos CIO (Ciclo Inicial Optativo) y estudios iniciales en Ciencias Sociales, dictados por la UDELAR
A33: ** Deportes abarca las ofertas terciarias del ISEF y IUACJ. El Área de Deportes hasta el año 2009 está distribuida entre las áreas de Servicios Personales y Docencia.

Sheet Cuadro I-1.8.2
A1: Ministerio de Educación y Cultura Dirección de Educación
A3: Cuadro I-1.8.2 EGRESOS DE INSTITUCIONES UNIVERSITARIAS PÚBLICAS Y PRIVADAS DE GRADO Y POSTGRADO, POR AÑO LECTIVO SEGÚN ÁREA DE CONOCIMIENTO. AÑOS 2000 A 2014.
A4: INSTITUCIONES UNIVERSITARIAS | B4: AÑO LECTIVO
B5: 2000 | C5: 2001 | D5: 2002 | E5: 2003 | F5: 2004 | G5: 2005 | H5: 2006 | I5: 2007 | J5: 2008 | K5: 2009 | L5: 2010 | M5: 2011 | N5: 2012 | O5: 2013 | P5: 2014
A6: TOTAL | B6: =SUM(B7:B28) -> 4646 | C6: 4402 | D6: 5902 | E6: 5697 | F6: 6177 | G6: 5514 | H6: 6151 | I6: 6381 | J6: 7018 | K6: 7185 | L6: 7223 | M6: =SUM(M7:M28) -> 7808 | N6: 9101 | O6: =SUM(O7:O28) -> 9766 | P6: =SUM(P7:P28) -> 8882
A7: Agricultura, silvicultura y pesca | B7: 226 | C7: 145 | D7: 164 | E7: 161 | F7: 213 | G7: 123 | H7: 126 | I7: 111 | J7: 164 | K7: 301 | L7: 279 | M7: 294 | N7: 216 | O7: 219 | P7: 239
A8: Arquitectura y construcción | B8: 233 | C8: 136 | D8: 294 | E8: 208 | F8: 308 | G8: 437 | H8: 324 | I8: 303 | J8: 280 | K8: 275 | L8: 341 | M8: 349 | N8: 362 | O8: 401 | P8: 356
A9: Artes | B9: 40 | C9: 33 | D9: 39 | E9: 60 | F9: 46 | G9: 42 | H9: 104 | I9: 120 | J9: 181 | K9: 184 | L9: 211 | M9: 162 | N9: 184 | O9: 177 | P9: 126
A10: Ciencias de la vida | B10: 97 | C10: 62 | D10: 72 | E10: 73 | F10: 107 | G10: 108 | H10: 141 | I10: 137 | J10: 183 | K10: 169 | L10: 166 | M10: 240 | N10: 242 | O10: 177 | P10: 221
A11: Ciencias físicas | B11: 110 | C11: 94 | D11: 153 | E11: 118 | F11: 162 | G11: 140 | H11: 105 | I11: 125 | J11: 143 | K11: 154 | L11: 158 | M11: 158 | N11: 141 | O11: 145 | P11: 136
A12: Ciencias sociales y del comportamiento | B12: 381 | C12: 534 | D12: 739 | E12: 671 | F12: 655 | G12: 634 | H12: 689 | I12: 641 | J12: 923 | K12: 720 | L12: 746 | M12: 930 | N12: 1262 | O12: 1043 | P12: 1094
A13: Deportes** | L13: 78 | M13: 250 | N13: 158 | O13: 229 | P13: 255
A14: Derecho | B14: 500 | C14: 613 | D14: 686 | E14: 676 | F14: 816 | G14: 781 | H14: 838 | I14: 777 | J14: 886 | K14: 806 | L14: 786 | M14: 910 | N14: 1013 | O14: 1041 | P14: 910
A15: Enseñanza comercial y administración | B15: 914 | C15: 865 | D15: 1328 | E15: 1509 | F15: 1205 | G15: 918 | H15: 1032 | I15: 1071 | J15: 1135 | K15: 1289 | L15: 1280 | M15: 1239 | N15: 1999 | O15: 1869 | P15: 1587
A16: Formación de personal docente y ciencias de la educación | B16: 66 | C16: 61 | D16: 81 | E16: 120 | F16: 113 | G16: 136 | H16: 291 | I16: 372 | J16: 399 | K16: 275 | L16: 196 | M16: 176 | N16: 202 | O16: 377 | P16: 182
A17: Humanidades | B17: 80 | C17: 33 | D17: 74 | E17: 33 | F17: 73 | G17: 64 | H17: 76 | I17: 75 | J17: 92 | K17: 90 | L17: 66 | M17: 75 | N17: 68 | O17: 115 | P17: 138
A18: Industria y producción | B18: 0 | C18: 12 | D18: 8 | E18: 16 | F18: 10 | G18: 26 | H18: 16 | I18: 31 | J18: 33 | K18: 24 | L18: 27 | M18: 25 | N18: 45 | O18: 117 | P18: 71
A19: Informática | B19: 285 | C19: 234 | D19: 257 | E19: 194 | F19: 237 | G19: 277 | H19: 235 | I19: 215 | J19: 242 | K19: 260 | L19: 250 | M19: 277 | N19: 288 | O19: 381 | P19: 354
A20: Ingeniería y profesiones afines | B20: 133 | C20: 124 | D20: 187 | E20: 201 | F20: 224 | G20: 214 | H20: 200 | I20: 204 | J20: 194 | K20: 257 | L20: 222 | M20: 232 | N20: 275 | O20: 345 | P20: 348
A21: Matemáticas y estadística | B21: 9 | C21: 4 | D21: 6 | E21: 9 | F21: 10 | G21: 12 | H21: 5 | I21: 13 | J21: 27 | K21: 19 | L21: 14 | M21: 11 | N21: 21 | O21: 19 | P21: 11
A22: Medicina | B22: 1323 | C22: 1311 | D22: 1476 | E22: 1276 | F22: 1578 | G22: 1243 | H22: 1537 | I22: 1726 | J22: 1532 | K22: 1874 | L22: 1962 | M22: 1953 | N22: 2027 | O22: 2462 | P22: 2147
A23: Periodismo e información | B23: 120 | C23: 78 | D23: 208 | E23: 249 | F23: 289 | G23: 174 | H23: 191 | I23: 213 | J23: 234 | K23: 242 | L23: 201 | M23: 241 | N23: 280 | O23: 260 | P23: 325
A24: Protección del medio ambiente | B24: s/d | C24: s/d | D24: s/d | E24: s/d | F24: s/d | G24: s/d | H24: s/d | I24: s/d | J24: s/d | K24: s/d | L24: s/d | M24: 5 | N24: 12 | O24: 10 | P24: 10
A25: Servicios de Seguridad | B25: n/c | C25: n/c | D25: n/c | E25: n/c | F25: n/c | G25: n/c | H25: n/c | I25: n/c | J25: n/c | K25: n/c | L25: n/c | M25: s/d | N25: 41 | O25: 81 | P25: 111
A26: Servicios personales | B26: 0 | C26: 0 | D26: 0 | E26: 16 | F26: 7 | G26: 19 | H26: 96 | I26: 145 | J26: 194 | K26: 67 | L26: 12 | M26: 1 | N26: 6 | O26: 1 | P26: 0
A27: Servicios sociales | B27: 17 | C27: 14 | D27: 23 | E27: 18 | F27: 33 | G27: 48 | H27: 51 | I27: 47 | J27: 106 | K27: 88 | L27: 123 | M27: 148 | N27: 139 | O27: 151 | P27: 154
A28: Veterinaria | B28: 112 | C28: 49 | D28: 107 | E28: 89 | F28: 91 | G28: 118 | H28: 94 | I28: 55 | J28: 70 | K28: 91 | L28: 105 | M28: 132 | N28: 120 | O28: 146 | P28: 107
A29: Fuente: Elaboración propia en base a información brindada por las oficinas productoras de las instituciones. Nota: Las áreas corresponden a la clasificación CINE 1997 de UNESCO.
A32: ** Deportes abarca las ofertas terciarias del ISEF y IUACJ. El Área de Deportes hasta el año 2009 está distribuida entre las áreas de Servicios Personales y Docencia.

Sheet Cuadro I-1.8.3
A1: Ministerio de Educación y Cultura Dirección de Educación
A3: Cuadro I-1.8.3 EGRESOS DE INSTITUCIONES UNIVERSITARIAS PÚBLICAS Y PRIVADAS DE GRADO POSTGRADO, POR NIVEL ACADÉMICO SEGÚN ÁREA DE CONOCIMIENTO. AÑO 2014.
A5: INSTITUCIONES UNIVERSITARIAS | B5: TOTAL | C5: % | D5: NIVEL ACADÉMICO
D6: Carrera corta o tecnicatura | E6: Carrera de grado, licenciatura | F6: Postgrado de especialización | G6: Maestría | H6: Doctorado
A7: TOTAL | B7: =SUM(D7:H7) -> 8882 | C7: =SUM(C8:C29) -> 100 | D7: =SUM(D8:D29) -> 657 | E7: 6570 | F7: 1021 | G7: 568 | H7: 66
A8: Agricultura, silvicultura y pesca | B8: =SUM(D8:H8) -> 239 | C8: =(B8*100)/$B$7 -> 2.690835397 | D8: 6 | E8: 185 | F8: 3 | G8: 41 | H8: 4
A9: Arquitectura y construcción | B9: 356 | C9: 4.008106282 | D9: 0 | E9: 351 | F9: 1 | G9: 4 | H9: 0
A10: Artes | B10: 126 | C10: 1.418599415 | D10: 1 | E10: 125 | F10: 0 | G10: 0 | H10: 0
A11: Ciencias de la vida | B11: 221 | C11: 2.488178338 | D11: 42 | E11: 108 | F11: 0 | G11: 49 | H11: 22
A12: Ciencias físicas | B12: 136 | C12: 1.53118667 | D12: 15 | E12: 98 | F12: 16 | G12: 5 | H12: 2
A13: Ciencias sociales y del comportamiento | B13: 1094 | C13: 12.31704571 | D13: 6 | E13: 881 | F13: 94 | G13: 105 | H13: 8
A14: Deportes** | B14: 255 | C14: 2.870975006 | D14: 56 | E14: 199 | F14: 0 | G14: 0 | H14: 0
A15: Derecho | B15: 910 | C15: 10.24544022 | D15: 39 | E15: 818 | F15: 11 | G15: 42 | H15: 0
A16: Enseñanza comercial y administración | B16: 1587 | C16: 17.86759739 | D16: 102 | E16: 1185 | F16: 184 | G16: 116 | H16: 0
A17: Formación de personal docente y ciencias de la educación | B17: 182 | C17: 2.049088043 | D17: 13 | E17: 33 | F17: 57 | G17: 61 | H17: 18
A18: Humanidades | B18: 138 | C18: 1.553704121 | D18: 85 | E18: 31 | F18: 0 | G18: 22 | H18: 0
A19: Industria y producción | B19: 71 | C19: 0.7993695114 | D19: 0 | E19: 67 | F19: 0 | G19: 4 | H19: 0
A20: Informática | B20: 354 | C20: 3.985588831 | D20: 35 | E20: 285 | F20: 21 | G20: 9 | H20: 4
A21: Ingeniería y profesiones afines | B21: 348 | C21: 3.918036478 | D21: 44 | E21: 255 | F21: 27 | G21: 20 | H21: 2
A22: Matemáticas y estadística | B22: 11 | C22: 0.1238459806 | D22: 0 | E22: 8 | F22: 0 | G22: 1 | H22: 2
A23: Medicina | B23: 2147 | C23: 24.17248367 | D23: 188 | E23: 1385 | F23: 530 | G23: 40 | H23: 4
A24: Periodismo e información | B24: 325 | C24: 3.659085791 | D24: 20 | E24: 279 | F24: 1 | G24: 25 | H24: 0
A25: Protección del medio ambiente | B25: =SUM(D25:H25) -> 10 | C25: =(B25*100)/$B$7 -> 0.1125872551 | D25: 5 | E25: 0 | F25: 0 | G25: 5 | H25: 0
A26: Servicios de seguridad | B26: 111 | C26: 1.249718532 | D26: 0 | E26: 27 | F26: 72 | G26: 12 | H26: 0
A27: Servicios personales | B27: 0 | C27: 0 | D27: 0 | E27: 0 | F27: 0 | G27: 0 | H27: 0
A28: Servicios sociales | B28: =SUM(D28:H28) -> 154 | C28: 1.733843729 | D28: 0 | E28: 145 | F28: 4 | G28: 5 | H28: 0
A29: Veterinaria | B29: 107 | C29: 1.20468363 | D29: 0 | E29: 105 | F29: 0 | G29: 2 | H29: 0
A30: Fuente: Elaboración propia en base información de las oficinas productoras de las instituciones Nota: Las áreas corresponden a la clasificación CINE 1997 de UNESCO.
A31: ** Deportes abarca las ofertas terciarias del ISEF y IUACJ.

Sheet Cuadro I-1.8.4
A1: Ministerio de Educación y Cultura Dirección de Educación
A3: Cuadro I-1.8.4 INGRESOS A INSTITUCIONES UNIVERSITARIAS PÚBLICAS Y PRIVADAS DE GRADO POSTGRADO, POR NIVEL ACADÉMICO SEGÚN ÁREA DE CONOCIMIENTO. AÑO 2014.
A4: INSTITUCIONES UNIVERSITARIAS | B4: NIVEL ACADÉMICO
B5: TOTAL | D5: Carrera corta o tecnicatura | E5: Carrera de grado, licenciatura | F5: Postgrado de especialización | G5: Maestría | H5: Doctorado
A7: TOTAL * | B7: =SUM(D7:H7) -> 31614 | C7: =SUM(C8:C28) -> 100 | D7: =SUM(D8:D28) -> 4404 | E7: =SUM(E8:E28) -> 22953 | F7: 2699 | G7: 1396 | H7: 162
A8: Agricultura, silvicultura y pesca | B8: =SUM(D8:H8) -> 779 | C8: =(B8*100)/$B$7 -> 2.464098184 | D8: 23 | E8: 678 | F8: 2 | G8: 58 | H8: 18
A9: Arquitectura y construcción | B9: 876 | C9: 2.770924274 | D9: 31 | E9: 797 | F9: 42 | G9: 5 | H9: 1
A10: Artes | B10: 1167 | C10: 3.691402543 | D10: 54 | E10: 1113 | F10: 0 | G10: 0 | H10: 0
A11: Ciencias de la vida | B11: 625 | C11: 1.976972227 | D11: 0 | E11: 512 | F11: 0 | G11: 63 | H11: 50
A12: Ciencias físicas | B12: 777 | C12: 2.457771873 | D12: 127 | E12: 585 | F12: 0 | G12: 41 | H12: 24
A13: Ciencias sociales y del comportamiento | B13: 3638 | C13: 11.50755994 | D13: 82 | E13: 2876 | F13: 423 | G13: 241 | H13: 16
A14: Deportes** | B14: 763 | C14: 2.413487695 | D14: 361 | E14: 402 | F14: 0 | G14: 0 | H14: 0
A15: Derecho | B15: 3296 | C15: 10.42576074 | D15: 0 | E15: 3142 | F15: 7 | G15: 147 | H15: 0
A16: Enseñanza comercial y administración | B16: 5517 | C16: 17.45112925 | D16: 1330 | E16: 3573 | F16: 341 | G16: 273 | H16: 0
A17: Formación de personal docente y ciencias de la educación | B17: 712 | C17: 2.252166762 | D17: 215 | E17: 98 | F17: 282 | G17: 117 | H17: 0
A18: Humanidades | B18: 1487 | C18: 4.703612324 | D18: 1240 | E18: 99 | F18: 0 | G18: 114 | H18: 34
A19: Industria y producción | B19: 444 | C19: 1.40444107 | D19: 21 | E19: 422 | F19: 0 | G19: 1 | H19: 0
A20: Informática | B20: 1319 | C20: 4.172202189 | D20: 204 | E20: 1060 | F20: 49 | G20: 6 | H20: 0
A21: Ingeniería y profesiones afines | B21: 1518 | C21: 4.801670146 | D21: 146 | E21: 1232 | F21: 48 | G21: 82 | H21: 10
A22: Matemáticas y estadística | B22: 135 | C22: 0.4270260011 | D22: 0 | E22: 135 | F22: 0 | G22: 0 | H22: 0
A23: Medicina | B23: 6563 | C23: 20.75978997 | D23: 570 | E23: 4485 | F23: 1333 | G23: 168 | H23: 7
A24: Periodismo e información | B24: 1036 | C24: =(B24*100)/$B$7 -> 3.277029164 | D24: 0 | E24: 1010 | F24: 24 | G24: 2 | H24: 0
A25: Protección del medio ambiente | B25: 127 | C25: 0.4017207566 | D25: 0 | E25: 124 | F25: 0 | G25: 3 | H25: 0
A26: Servicios de seguridad | B26: 185 | C26: 0.5851837793 | D26: 0 | E26: 27 | F26: 109 | G26: 49 | H26: 0
A27: Servicios sociales | B27: 39 | C27: 0.123363067 | D27: 0 | E27: 0 | F27: 39 | G27: 0 | H27: 0
A28: Veterinaria | B28: 611 | C28: 1.93268805 | D28: 0 | E28: 583 | F28: 0 | G28: 26 | H28: 2
A29: Fuente: Elaboración propia en base información de las oficinas productoras de las instituciones
A30: Nota: Las áreas corresponden a la clasificación CINE 1997 de UNESCO.
A31: * En el total de Ingreso no se tiene en cuenta a 1707 estudiantes que ingresaron a los CIOs (Ciclo Inicial Optativos) y Estudios Iniciales en Ciencias Sociales, dictados por UDELAR
A32: ** Deportes abarca las ofertas terciarias del ISEF y IUACJ.

Sheet Cuadro I-1.8.5
A1: Ministerio de Educación y Cultura Dirección de Educación
A3: Cuadro I-1.8.5 INGRESOS, MATRÍCULA Y EGRESOS DE OFERTAS DE GRADO SEGÚN FORMA DE ADMINISTRACIÓN EN CANTIDADES ABSOLUTAS Y PORCENTAJES. AÑO 2014.
A4: FORMA DE ADMINISTRACIÓN | B4: INGRESOS | C4: MATRÍCULA | D4: EGRESOS
A5: TOTAL VALORES ABSOLUTOS | B5: =SUM(B6:B9) -> 25961 | C5: =SUM(C6:C9) -> 158679 | D5: =SUM(D6:D9) -> 7205
A6: Universidad de la República * | B6: 22003 | C6: 136938 | D6: 5450
A7: UTEC | B7: 55 | C7: 55 | D7: 0
A8: Instituciones Universitarias Privadas | B8: 3876 | C8: 21659 | D8: 1728
A9: Área seguridad y defensa (oferta pública universitaria) ** | B9: 27 | C9: 27 | D9: 27
A10: TOTAL PORCENTAJES | B10: 1 | C10: 1 | D10: 1
A11: Universidad de la República | B11: =B6/B5*100% -> 0.8475405416 | C11: =C6/C5*100% -> 0.8629875409 | D11: =D6/D5*100% -> 0.7564191534
A12: UTEC | B12: =B7/B5*100% -> 0.002118562459 | C12: =C7/C5*100% -> 0.000346611713 | D12: 0
A13: Instituciones Universitarias Privadas | B13: =B8/B5*100% -> 0.1493008744 | C13: =C8/C5*100% -> 0.1364956926 | D13: 0.239833449
A14: Área seguridad y defensa (oferta pública universitaria) | B14: =B9/B5*100% -> 0.001040021571 | C14: =C9/C5*100% -> 0.0001701548409 | D14: 0.003747397641
A15: Fuentes: Elaboración propia en base a información brindada por las oficinas productoras de las instituciones.
A16: * Proyección de Matrícula de Estudiantes de Grado de la UdelaR (División de Estadística, año 2015).
A17: ** No incluye la información de cursos de nivel Universitario pertenecientes a la Escuela Naval
A19: Los datos de Egresos son PRELIMINARES.

Sheet Cuadro I-1.8.6
A1: Ministerio de Educación y Cultura Dirección de Educación
A3: Cuadro I-1.8.6 EGRESADOS DE GRADO POR NIVEL Y SEXO SEGÚN TRAMOS DE EDAD. AÑO 2014.
A4: Tramos de edad | B4: Carrera corta o tecnicatura | E4: Carrera de Grado o Licenciatura
B5: TOTAL | C5: M | D5: F | E5: TOTAL | F5: M | G5: F
A6: Total………………….. | B6: 100 | C6: 31.96850394 | D6: 68.03149606 | E6: 100 | F6: 34.67275495 | G6: 65.32724505
A7: Hasta 24 años…..…… | B7: 29.92125984 | C7: 8.188976378 | D7: 21.73228346 | E7: 24.35312024 | F7: 7.199391172 | G7: 17.15372907
A8: 25 a 29 años…………. | B8: 27.87401575 | C8: 6.456692913 | D8: 21.41732283 | E8: 42.87671233 | F8: 15.60121766 | G8: 27.27549467
A9: 30 a 34 años…………. | B9: 11.81102362 | C9: 3.622047244 | D9: 8.188976378 | E9: 14.35312024 | F9: 5.433789954 | G9: 8.919330289
A10: 35 a 39 años………….. | B10: 5.039370079 | C10: 0.7874015748 | D10: 4.251968504 | E10: 6.210045662 | F10: 2.085235921 | G10: 4.124809741
A11: más de 39 años……… | B11: 12.5984252 | C11: 2.834645669 | D11: 9.763779528 | E11: 7.245053272 | F11: 2.359208524 | G11: 4.885844749
A12: S/D………….…………… | B12: 12.75590551 | C12: 10.07874016 | D12: 2.677165354 | E12: 4.96194825 | F12: 1.99391172 | G12: 2.96803653
A13: Fuente: Elaboración propia en base a información proporcionada por la UdelaR y las oficinas productoras de estadísticas educativas de los Institutos Universitarios y de las Universidades Privadas

Sheet Cuadro I-1.8.7
A1: Ministerio de Educación y Cultura Dirección de Educación
A3: Cuadro I-1.8.7 EGRESADOS DE POSGRADO POR NIVEL Y SEXO SEGÚN TRAMOS DE EDAD. AÑO 2014.
A4: Tramos de edad | B4: Postgrado o especialización | E4: Maestría | H4: Doctorado
B5: TOTAL | C5: M | D5: F | E5: TOTAL | F5: M | G5: F | H5: TOTAL | I5: M | J5: F
A6: Total………………….. | B6: 100 | C6: 35.5704698 | D6: 64.4295302 | E6: 100 | F6: 44.8943662 | G6: 55.1056338 | H6: 100 | I6: 48.48484848 | J6: 51.51515152
A7: Hasta 29 años…..…… | B7: 9.971236817 | C7: 4.506232023 | D7: 5.465004794 | E7: 15.49295775 | F7: 5.633802817 | G7: 9.85915493 | H7: 4.545454545 | I7: 3.03030303 | J7: 1.515151515
A8: 30 a 34 años…………. | B8: 32.88590604 | C8: 10.73825503 | D8: 22.14765101 | E8: 28.87323944 | F8: 12.67605634 | G8: 16.1971831 | H8: 25.75757576 | I8: 18.18181818 | J8: 7.575757576
A9: 35 a 39 años………….. | B9: 16.2991371 | C9: 5.848513902 | D9: 10.4506232 | E9: 18.48591549 | F9: 10.03521127 | G9: 8.450704225 | H9: 25.75757576 | I9: 12.12121212 | J9: 13.63636364
A10: más de 39 años……… | B10: 31.63950144 | C10: 11.79290508 | D10: 19.84659636 | E10: 35.38732394 | F10: 16.02112676 | G10: 19.36619718 | H10: 37.87878788 | I10: 12.12121212 | J10: 25.75757576
A11: S/D………….…………… | B11: 9.2042186 | C11: 2.684563758 | D11: 6.519654842 | E11: 1.76056338 | F11: 0.5281690141 | G11: 1.232394366 | H11: 6.060606061 | I11: 3.03030303 | J11: 3.03030303
A12: Fuente: Elaboración propia en base a información proporcionada por la UdelaR y las oficinas productoras de estadísticas educativas de los Institutos Universitarios y de las Universidades Privadas

Sheet Gráfico I-1.8.1
A1: Ministerio de Educación y Cultura Dirección de Educación
A5: Gráfico I-1.8.1
A36: Fuente: Consejo de Formación en Educación de ANEP

Sheet Gráfico I-1.8.2
A1: Ministerio de Educación y Cultura Dirección de Educación
A5: Gráfico I-1.8.2
A24: Fuente: Elaboración propia en base a información proporcionada por las oficinas productoras de estadísticas de cada una de las instituciones.

Sheet Gráfico I-1.8.3
A1: Ministerio de Educación y Cultura Dirección de Educación
A5: Gráfico I-1.8.3
A23: Fuente: Elaboración propia en base a información proporcionada las oficinas productoras de estadísticas educativas de los Institutos Universitarios y de las Universidades Privadas.

Sheet Gráfico I-1.8.4
A1: Ministerio de Educación y Cultura Dirección de Educación
A5: Gráfico I-1.8.4
A23: Fuente: Elaboración propia en base a información proporcionada por UdelaR.
A24: Nota: Los ingresos a cursos de grado para UdelaR correspondientes al período 2000-2014 son extraídos de Estadísticas Básicas 2013-Dirección General de Planeamiento – UdelaR. “Según Res. N°15 del CDC de fecha 23/10/12, se entiende por Generación de Ingreso al Servicio a todos los estudiantes que ingresan por primera vez al Servicio, en un año dado, a alguna carrera terciaria y/o de grado. Se considera cada carrera compartida y C.I.O. como un servicio aparte.” Los datos de egresos de UdelaR son preliminares.

Sheet Gráfico I-1.8.5
A1: Ministerio de Educación y Cultura Dirección de Educación
A5: Gráfico I-1.8.5
A23: Fuente: Elaboración propia en base a información proporcionada por la UdelaR y las oficinas productoras de estadísticas educativas de los Institutos Universitarios y de las Universidades Privadas
A25: Notas: Los datos de egresos de UdelaR son preliminares.

Sheet Gráfico I-1.8.6
A1: Ministerio de Educación y Cultura Dirección de Educación
A5: Gráfico I-1.8.6
A23: Fuente: Elaboración propia en base a información reportada por las oficinas productoras de estadísticas de las instituciones

Sheet Gráfico I-1.8.7
A1: Ministerio de Educación y Cultura Dirección de Educación
A5: Gráfico I-1.8.7
A23: Fuente: Elaboración propia en base a información reportada por las oficinas productoras de estadísticas de las instituciones.

Sheet Gráfico I-1.8.8
A1: Ministerio de Educación y Cultura Dirección de Educación
A5: Gráfico I-1.8.8
A24: Fuente: Elaboración propia en base a información reportada por las oficinas productoras de estadísticas de las instituciones.

Sheet Gráfico I-1.8.9
A1: Ministerio de Educación y Cultura Dirección de Educación
A5: Gráfico I-1.8.9
A26: Fuente: Elaboración propia en base a información proporcionada por las oficinas productoras de estadísticas de cada una de las instituciones.

Sheet Gráfico I-1.8.10
A1: Ministerio de Educación y Cultura Dirección de Educación
A5: Gráfico I-1.8.10
A26: Fuente: Elaboración propia en base a información proporcionada por la UdelaR y las oficinas productoras de estadísticas educativas de los Institutos Universitarios y de las Universidades Privadas.

Sheet Gráfico I-1.8.11
A1: Ministerio de Educación y Cultura Dirección de Educación
A5: Gráfico I-1.8.11
A25: Fuente: Elaboración propia en base a información proporcionada por la UdelaR y las oficinas productoras de estadísticas educativas de los Institutos Universitarios y de las Universidades Privadas

Sheet Gráfico I-1.8.12
A1: Ministerio de Educación y Cultura Dirección de Educación
A5: Gráfico I-1.8.12
A27: Fuente: Elaboración propia en base a información reportada por las oficinas productoras de estadísticas de las instituciones.

Sheet Gráfico I-1.8.13
A1: Ministerio de Educación y Cultura Dirección de Educación
A5: Gráfico I-1.8.13
A25: Fuente: Elaboración propia en base a información reportada por las oficinas productoras de estadísticas de las instituciones.

Sheet Gráfico I-1.8.14
A1: Ministerio de Educación y Cultura Dirección de Educación
A5: Gráfico I-1.8.14
A27: Fuente: Elaboración propia en base a información reportada por las oficinas productoras de estadísticas de las instituciones.

Sheet 9. EDUCACIÓN JÓVENES Y ADULTOS
C2: EDUCACIÓN DE JÓVENES Y ADULTOS
A5: Cuadro I-1.9.1 | B5: ALUMNOS MATRICULADOS EN EL PROGRAMA NACIONAL DE JÓVENES Y ADULTOS POR MODALIDAD, NIVEL Y SEXO SEGÚN GRANDES ÁREAS. Año 2014.
A6: Cuadro I-1.9.2 | B6: ALUMNOS QUE RINDIERON LA PRUEBA DE ACREDITACIÓN EN EL PROGRAMA NACIONAL DE JÓVENES Y ADULTOS POR SEXO SEGÚN GRANDES ÁREAS. Año 2012
A7: Cuadro I-1.9.3 | B7: TOTAL DE INSTITUCIONES Y CURSOS DEL RELEVAMIENTO TÉCNICO-PROFESIONAL POR FORMA DE ADMINISTRACIÓN, GRANDES ÁREAS SEGÚN ÁREA DE CONOCIMIENTO. AÑO 2014
A8: Cuadro I-1.9.4 | B8: ALUMNOS MATRICULADOS EN CUROS DEL RELEVAMIENTO TÉCNICO PROFESIONAL POR ÁREAS DE CONOCIMIENTO, SEGÚN FORMAS DE ADMINISTRACIÓN Y GRANDES ÁREAS. 2014
A9: Cuadro I-1.9.5 | B9: ALUMNOS MATRICULADOS EN EL PROGRAMA NACIONAL DE JÓVENES Y ADULTOS POR MODALIDAD, NIVEL Y SEXO SEGÚN GRANDES ÁREAS. AÑO 2014.
A10: Cuadro I-1.9.6 | B10: ALUMNOS QUE RINDIERON LA PRUEBA DE ACREDITACIÓN EN EL PROGRAMA NACIONAL DE JÓVENES Y ADULTOS POR SEXO SEGÚN GRANDES ÁREAS. AÑO 2014.
A11: Cuadro I-1.9.7 | B11: CANTIDAD DE CURSOS POR TRAMOS DE DURACIÓN EN HORAS SEGÚN ÁREA DE CONOCIMIENTO. AÑO 2014.
A12: Cuadro I-1.9.8 | B12: ALUMNOS MATRICULADOS EN EL CETP (UTU) POR SEXO Y GRANDES ÁREAS SEGÚN TIPO DE CURSOS DE NIVEL DE FORMACIÓN PROFESIONAL. Año 2014
A13: Cuadro I-1.9.9 | B13: ALUMNOS INGRESADOS Y MATRICULADOS EN CECAP POR SEXO SEGÚN GRANDES ÁREAS. AÑO 2014.
A14: Cuadro I-1.9.10 | B14: ALUMNOS MATRICULADOS DEL COCAP SEGÚN TIPO DE CURSO Y ÁREA DE FORMACIÓN. AÑO 2014.
A15: Cuadro I-1.9.11 | B15: FUNCIONARIOS PARTICIPANTES EN LOS CURSOS DE LA ENAP DR. AQUILES LANZA, CANTIDAD DE CURSOS Y HORAS TIPO DE CURSO. AÑO 2014.
A16: Cuadro I-1.9.12 | B16: ALUMNOS INGRESADOS Y MATRICULADOS EN CARRERAS NO TERCIARIAS EN UNIVERSIDADES E INSTITUTOS UNIVERSITARIOS. AÑO 2014.
A17: Cuadro I-1.9.13 | B17: ALUMNOS INGRESADOS, MATRICULADOS Y EGRESADOS EN CURSOS TÉCNICOS, ESCUELAS DE ENFERMERÍA Y CARRERAS NO TERCIARIAS DE UNIVERSIDADES PRIVADAS POR FORMA DE ADMINISTRACIÓN Y NIVEL EDUCATIVO. AÑO 2014.

Sheet Cuadro I-1.9.1
A1: Ministerio de Educación y Cultura
A2: Dirección de Educación
A5: Cuadro I-1.9.1
A6: ALUMNOS MATRICULADOS EN EL PROGRAMA NACIONAL DE JÓVENES Y ADULTOS POR MODALIDAD, NIVEL Y SEXO SEGÚN GRANDES ÁREAS. AÑO 2013 (último dato disponible)
A7: GRANDES ÁREAS | B7: ALUMNOS MATRICULADOS EN EDUCACIÓN PRIMARIA | J7: ALUMNOS MATRICULADOS EN TALLERES
B8: TOTAL Ed Primaria | C8: PRIMER TRAMO: NIVEL I | F8: PRIMER TRAMO: NIVEL II
C9: TOTAL | D9: SEXO | F9: TOTAL | G9: SEXO | J9: TOTAL | K9: SEXO
D10: Masculino | E10: Femenino | G10: Masculino | H10: Femenino | K10: Masculino | L10: Femenino
A11: TOTAL | B11: =C11+F11 -> 3136 | C11: =SUM(D11:E11) -> 1097 | D11: =D12+D13 -> 543 | E11: =E12+E13 -> 554 | F11: =SUM(G11:H11) -> 2039 | G11: =G12+G13 -> 1075 | H11: =H12+H13 -> 964 | J11: =SUM(K11:L11) -> 4065 | K11: =K12+K13 -> 1587 | L11: =L12+L13 -> 2478
A12: Montevideo | B12: =C12+F12 -> 1557 | C12: =SUM(D12:E12) -> 538 | D12: 276 | E12: 262 | F12: =SUM(G12:H12) -> 1019 | G12: 564 | H12: 455 | J12: =SUM(K12:L12) -> 3248 | K12: 1119 | L12: 2129
A13: Resto del País | B13: =C13+F13 -> 1579 | C13: =SUM(D13:E13) -> 559 | D13: 267 | E13: 292 | F13: =SUM(G13:H13) -> 1020 | G13: 511 | H13: 509 | J13: =SUM(K13:L13) -> 817 | K13: 468 | L13: 349
A14: Fuentes: ANEP -CODICEN - Programa de Eduacación de Jóvenes y Adultos

Sheet Cuadro I-1.9.2
A1: Ministerio de Educación y Cultura
A2: Dirección de Educación
A5: Cuadro I-1.9.2
A6: ALUMNOS QUE RINDIERON LA PRUEBA DE ACREDITACIÓN EN EL PROGRAMA NACIONAL DE JÓVENES Y ADULTOS POR SEXO SEGÚN GRANDES ÁREAS. AÑO 2013(último dato disponible) .
A7: GRANDES ÁREAS | B7: ALUMNOS PARTICIPANTES EN PRUEBA DE ACREDITACIÓN
B8: TOTAL PRUEBAS DE ACREDITACIÓN | C8: SEXO
C10: Masculino | D10: Femenino
A11: TOTAL | B11: =SUM(C11:D11) -> 1151 | C11: =C12+C13 -> 591 | D11: =D12+D13 -> 560
A12: Montevideo | B12: =SUM(C12:D12) -> 263 | C12: 134 | D12: 129
A13: Resto del País | B13: =SUM(C13:D13) -> 888 | C13: 457 | D13: 431
A14: Fuentes : ANEP-CODICEN - Programa de Educación de jóvnes y Adultos .

Sheet Cuadro I-1.9.3
A1: Ministerio de Educación y Cultura
A2: Dirección de Educación
A5: Cuadro I-1.9.3
A6: TOTAL DE INSTITUCIONES Y CURSOS DEL RELEVAMIENTO TÉCNICO-PROFESIONAL POR FORMA DE ADMINISTRACIÓN, GRANDES ÁREAS SEGÚN ÁREA DE CONOCIMIENTO. AÑO 2014
A7: AREA DE CONOCIMIENTO | B7: TOTAL | C7: FORMA DE ADMINISTRACIÓN | E7: ÁREA GEOGRÁFICA
C8: PRIVADO | D8: PÚBLICA | E8: MONTEVIDEO | F8: RESTO DEL PAÍS
A9: TOTAL INSTITUCIONES | B9: =C9+D9 -> 249 | C9: 209 | D9: 40 | E9: 160 | F9: 89
A11: TOTAL CURSOS | B11: =C11+D11 -> 2649 | C11: =SUM(C12:C34) -> 2360 | D11: =SUM(D12:D34) -> 289 | E11: 1724 | F11: 925
A12: ADMINISTRACION -COMERCIALIZACION | B12: =C12+D12 -> 424 | C12: 422 | D12: 2 | E12: 307 | F12: 117
A13: AERONÁUTICA | B13: =C13+D13 -> 22 | C13: 6 | D13: 16 | E13: 7 | F13: 15
A14: AGRARIA | B14: 33 | C14: 33 | D14: 0 | E14: 16 | F14: 17
A15: ARTES-ARTESANIAS | B15: 159 | C15: 153 | D15: 6 | E15: 123 | F15: 36
A16: COMUNICACIONES | B16: 37 | C16: 30 | D16: 7 | E16: 33 | F16: 4
A17: CONSTRUCCION -ARQUITECTURA | B17: 54 | C17: 54 | D17: 0 | E17: 40 | F17: 14
A18: DEPORTES Y AFINES | B18: 34 | C18: 32 | D18: 2 | E18: 19 | F18: 15
A19: DISEÑOS | B19: 40 | C19: 40 | D19: 0 | E19: 28 | F19: 12
A20: ELECTROTECNIA Y ELECTRONICA | B20: 34 | C20: 33 | D20: 1 | E20: 31 | F20: 3
A21: GASTRONOMIA | B21: 102 | C21: 98 | D21: 4 | E21: 84 | F21: 18
A22: GRAFICOS | B22: 12 | C22: 12 | D22: 0 | E22: 12 | F22: 0
A23: HOTELERIA Y TURISMO | B23: 24 | C23: 24 | D23: 0 | E23: 15 | F23: 9
A24: IDIOMAS | B24: 868 | C24: 855 | D24: 13 | E24: 467 | F24: 401
A25: INFORMATICA | B25: 251 | C25: 243 | D25: 8 | E25: 85 | F25: 166
A26: MARITIMA | B26: 5 | C26: 0 | D26: 5 | E26: 4 | F26: 1
A27: METAL-MECANICA | B27: 28 | C27: 21 | D27: 7 | E27: 25 | F27: 3
A28: QUIMICA | B28: 3 | C28: 3 | D28: 0 | E28: 3 | F28: 0
A29: SALUD SEGURIDAD E HIGIENE | B29: 54 | C29: 34 | D29: 20 | E29: 43 | F29: 11
A30: SEGURIDAD Y DEFENSA | B30: 202 | C30: 6 | D30: 196 | E30: 164 | F30: 38
A31: SERVICIOS PERSONALES -ESTETICA | B31: 62 | C31: 62 | D31: 0 | E31: 59 | F31: 3
A32: TECNOLÓGICA | B32: 6 | C32: 5 | D32: 1 | E32: 2 | F32: 4
A33: VESTIMENTA | B33: 47 | C33: 47 | D33: 0 | E33: 42 | F33: 5
A34: OTROS | B34: 148 | C34: 147 | D34: 1 | E34: 115 | F34: 33
A35: Fuente: Elaboración propia en base a la información del Relevamiento de Instituciones de Formación Técnico-Profesional.Realizado por el Área de Investigación y Estadística.

Sheet Cuadro I-1.9.4
A1: Ministerio de Educación y Cultura
A2: Dirección de Educación
A5: Cuadro I-1.9.4
A6: ALUMNOS MATRICULADOS EN CUROS DEL RELEVAMIENTO TÉCNICO PROFESIONAL POR ÁREAS DE CONOCIMIENTO, SEGÚN FORMAS DE ADMINISTRACIÓN Y GRANDES ÁREAS. 2014
A8: ÁREAS DE CONOCIMIENTO | B8: TOTAL | C8: FORMA DE ADMINISTRACIÓN | E8: ÁREA GEOGRÁFICA
C9: PRIVADA | D9: PÚBLICA | E9: MONTEVIDEO | F9: INTERIOR
A10: TOTAL | B10: 82601 | C10: 70771 | D10: 11830 | E10: 60099 | F10: 22502
A11: ADMINISTRACION -COMERCIALIZACION | B11: 11274 | C11: 11248 | D11: 26 | E11: 8846 | F11: 2428
A12: AERONÁUTICA | B12: 533 | C12: 21 | D12: 512 | E12: 255 | F12: 278
A13: AGRARIA | B13: 1196 | C13: 1196 | D13: 0 | E13: 928 | F13: 268
A14: ARTES-ARTESANIAS | B14: 3598 | C14: 3532 | D14: 66 | E14: 2850 | F14: 748
A15: COMUNICACIONES | B15: 894 | C15: 796 | D15: 98 | E15: 815 | F15: 79
A16: CONSTRUCCION -ARQUITECTURA | B16: 1906 | C16: 1906 | D16: 0 | E16: 1654 | F16: 252
A17: DEPORTES Y AFINES | B17: 2296 | C17: 2244 | D17: 52 | E17: 1405 | F17: 891
A18: DISEÑOS | B18: 1596 | C18: 1596 | D18: 0 | E18: 1320 | F18: 276
A19: ELECTROTECNIA Y ELECTRONICA | B19: 973 | C19: 952 | D19: 21 | E19: 944 | F19: 29
A20: GASTRONOMIA | B20: 2519 | C20: 2473 | D20: 46 | E20: 2246 | F20: 273
A21: GRAFICOS | B21: 239 | C21: 239 | D21: 0 | E21: 239 | F21: .
A22: HOTELERIA Y TURISMO | B22: 570 | C22: 570 | D22: 0 | E22: 408 | F22: 162
A23: IDIOMAS | B23: 19345 | C23: 19046 | D23: 299 | E23: 8904 | F23: 10441
A24: INFORMATICA | B24: 8110 | C24: 7932 | D24: 178 | E24: 5634 | F24: 2476
A25: MARITIMA | B25: 625 | C25: 0 | D25: 625 | E25: 608 | F25: 17
A26: METAL-MECANICA | B26: 929 | C26: 819 | D26: 110 | E26: 913 | F26: 16
A27: QUIMICA | B27: 276 | C27: 276 | D27: 0 | E27: 276 | F27: .
A28: SALUD SEGURIDAD E HIGIENE | B28: 3984 | C28: 2453 | D28: 1531 | E28: 2576 | F28: 1408
A29: SEGURIDAD Y DEFENSA | B29: 8221 | D29: 8221 | E29: 7014 | F29: 1291
A30: SERVICIOS PERSONALES -ESTETICA | B30: 2003 | C30: 2003 | D30: 0 | E30: 1984 | F30: 19
A31: TECNOLÓGICA | B31: 93 | C31: 82 | D31: 11 | E31: 31 | F31: 62
A32: VESTIMENTA | B32: 207 | C32: 207 | D32: 0 | E32: 135 | F32: 72
A33: OTROS | B33: 11214 | C33: 11180 | D33: 34 | E33: 10114 | F33: 1016
A34: Fuente: Elaboración propia en base a la información del Relevamiento de Instituciones de Formación Técnico-Profesional. Realizado por el Área de Investigación y Estadística.

Sheet Cuadro I-1.9.5
A1: Ministerio de Educación y Cultura
A2: Dirección de Educación
A5: Cuadro I-1.9.5
A6: ALUMNOS MATRICULADOS EN EL PROGRAMA NACIONAL DE JÓVENES Y ADULTOS POR MODALIDAD, NIVEL Y SEXO SEGÚN GRANDES ÁREAS. AÑO 2013 (último dato disponible).
A7: GRANDES ÁREAS | B7: ALUMNOS MATRICULADOS EN EDUCACIÓN PRIMARIA | J7: ALUMNOS MATRICULADOS EN TALLERES
B8: TOTAL Ed Primaria | C8: PRIMER TRAMO: NIVEL I | F8: PRIMER TRAMO: NIVEL II
C9: TOTAL | D9: SEXO | F9: TOTAL | G9: SEXO | J9: TOTAL | K9: SEXO
D10: Masculino | E10: Femenino | G10: Masculino | H10: Femenino | K10: Masculino | L10: Femenino
A11: TOTAL | B11: =C11+F11 -> 3136 | C11: =SUM(D11:E11) -> 1097 | D11: =D12+D13 -> 543 | E11: =E12+E13 -> 554 | F11: =SUM(G11:H11) -> 2039 | G11: =G12+G13 -> 1075 | H11: =H12+H13 -> 964 | J11: =SUM(K11:L11) -> 4065 | K11: =K12+K13 -> 1587 | L11: =L12+L13 -> 2478
A12: Montevideo | B12: =C12+F12 -> 1557 | C12: =SUM(D12:E12) -> 538 | D12: 276 | E12: 262 | F12: =SUM(G12:H12) -> 1019 | G12: 564 | H12: 455 | J12: =SUM(K12:L12) -> 3248 | K12: 1119 | L12: 2129
A13: Resto del País | B13: =C13+F13 -> 1579 | C13: =SUM(D13:E13) -> 559 | D13: 267 | E13: 292 | F13: =SUM(G13:H13) -> 1020 | G13: 511 | H13: 509 | J13: =SUM(K13:L13) -> 817 | K13: 468 | L13: 349
A14: Fuentes: ANEP -CODICEN - Programa de Eduacación de Jóvenes y Adultos

Sheet Cuadro I-1.9.6
A1: Ministerio de Educación y Cultura
A2: Dirección de Educación
A5: Cuadro I-1.9.6
A6: ALUMNOS QUE RINDIERON LA PRUEBA DE ACREDITACIÓN EN EL PROGRAMA NACIONAL DE JÓVENES Y ADULTOS POR SEXO SEGÚN GRANDES ÁREAS. AÑO 2013 (último dato disponible).
A7: GRANDES ÁREAS | B7: ALUMNOS PARTICIPANTES EN PRUEBA DE ACREDITACIÓN
B8: TOTAL PRUEBAS DE ACREDITACIÓN | C8: SEXO
C10: Masculino | D10: Femenino
A11: TOTAL | B11: =SUM(C11:D11) -> 1151 | C11: =C12+C13 -> 591 | D11: =D12+D13 -> 560
A12: Montevideo | B12: =SUM(C12:D12) -> 263 | C12: 134 | D12: 129
A13: Resto del País | B13: =SUM(C13:D13) -> 888 | C13: 457 | D13: 431
A14: Fuentes : ANEP-CODICEN - Programa de Educación de jóvnes y Adultos .

Sheet Cuadro I-1.9.7
A1: Ministerio de Educación y Cultura
A2: Dirección de Educación
A6: Cuadro I-1.9.7
A7: CANTIDAD DE CURSOS POR TRAMOS DE DURACIÓN EN HORAS SEGÚN ÁREA DE CONOCIMIENTO. AÑO 2014.
A8: ÁREA DE | B8: TOTAL | C8: 0 a 40 | D8: 41 a 140 | E8: 141 a 320 | F8: 321 a 440 | G8: 441 y más
A9: CONOCIMIENTO
A10: TOTAL | B10: =SUM(C10:G10) -> 2649 | C10: =SUM(C11:C33) -> 617 | D10: =SUM(D11:D33) -> 1219 | E10: =SUM(E11:E33) -> 564 | F10: 80 | G10: 169
A11: ADMINISTRACIÓN -COMERCIALIZACIÓN | B11: =SUM(C11:G11) -> 424 | C11: 194 | D11: 148 | E11: 48 | F11: 21 | G11: 13
A12: AERONÁUTICA | B12: =SUM(C12:G12) -> 22 | C12: 4 | D12: 4 | E12: 3 | F12: 0 | G12: 11
A13: AGRARIA | B13: =SUM(C13:G13) -> 33 | C13: 8 | D13: 13 | E13: 7 | F13: 1 | G13: 4
A14: ARTES-ARTESANIAS | B14: 159 | C14: 37 | D14: 59 | E14: 31 | F14: 5 | G14: 27
A15: COMUNICACIONES | B15: 37 | C15: 16 | D15: 7 | E15: 7 | F15: 5 | G15: 2
A16: CONSTRUCCION -ARQUITECTURA | B16: 54 | C16: 11 | D16: 36 | E16: 5 | F16: 0 | G16: 2
A17: DEPORTES Y AFINES | B17: 34 | C17: 6 | D17: 4 | E17: 10 | F17: 0 | G17: 14
A18: DISEÑOS | B18: 40 | C18: 10 | D18: 16 | E18: 11 | F18: 1 | G18: 2
A19: ELECTROTECNIA Y ELECTRONICA | B19: 34 | C19: 12 | D19: 12 | E19: 6 | F19: 2 | G19: 2
A20: GASTRONOMIA | B20: 102 | C20: 21 | D20: 36 | E20: 17 | F20: 13 | G20: 15
A21: GRAFICOS | B21: 12 | C21: 7 | D21: 1 | E21: 2 | F21: 0 | G21: 2
A22: HOTELERIA Y TURISMO | B22: 24 | C22: 3 | D22: 9 | E22: 7 | F22: 3 | G22: 2
A23: IDIOMAS | B23: 868 | C23: 40 | D23: 539 | E23: 269 | F23: 8 | G23: 12
A24: INFORMATICA | B24: 251 | C24: 71 | D24: 161 | E24: 13 | F24: 1 | G24: 5
A25: MARITIMA | B25: 5 | C25: 0 | D25: 0 | E25: 0 | F25: 0 | G25: 5
A26: METAL-MECANICA | B26: 28 | C26: 1 | D26: 19 | E26: 5 | F26: 0 | G26: 3
A27: QUIMICA | B27: 3 | C27: 0 | D27: 2 | E27: 0 | F27: 0 | G27: 1
A28: SALUD SEGURIDAD E HIGIENE | B28: 54 | C28: 23 | D28: 10 | E28: 7 | F28: 7 | G28: 7
A29: SEGURIDAD Y DEFENSA | B29: 202 | C29: 54 | D29: 61 | E29: 64 | F29: 4 | G29: 19
A30: SERVICIOS PERSONALES -ESTÉTICA | B30: 62 | C30: 23 | D30: 27 | E30: 9 | F30: 1 | G30: 2
A31: TECNOLÓGICA | B31: 6 | C31: 1 | D31: 5 | E31: 0 | F31: 0 | G31: 0
A32: VESTIMENTA | B32: 47 | C32: 19 | D32: 19 | E32: 7 | F32: 1 | G32: 1
A33: OTROS | B33: =SUM(C33:G33) -> 148 | C33: 56 | D33: 31 | E33: 36 | F33: 7 | G33: 18
A34: Fuente: Elaboración propia en base a la información del Primer Censo Nacional de Instituciones de Formación Técnica Profesional.
A35: Nota: Las áreas de conocimiento corresponden a la clasificación CINE 1997 de UNESCO

Sheet Cuadro I-1.9.8
A1: Ministerio de Educación y Cultura
A2: Dirección de Educación
A6: Cuadro I-1.9.8
A7: ALUMNOS MATRICULADOS EN EL CETP (UTU) POR SEXO Y GRANDES ÁREAS SEGÚN TIPO DE CURSOS DE NIVEL DE FORMACIÓN PROFESIONAL. Año 2014
A8: CURSOS DE NIVEL DE FORMACIÓN PROFESIONAL | B8: TOTAL | C8: SEXO | E8: GRANDES ÁREAS
C9: Masculino | D9: Femenino | E9: Montevideo | F9: Resto del País
A10: TOTAL | B10: =SUM(B12:B21) -> 9092 | C10: =SUM(C12:C21) -> 4292 | D10: =SUM(D12:D21) -> 4800 | E10: =SUM(E12:E21) -> 4044 | F10: =SUM(F12:F21) -> 5048
A12: ACREDITACION DE SABERES | B12: =C12+D12 -> 15 | C12: 12 | D12: 3 | E12: 15 | F12: 0
A13: CAP. PROFUNDIZACION PROFESIONAL | B13: 315 | C13: 179 | D13: 136 | E13: 181 | F13: 134
A14: CAPACITACION PROFESIONAL | B14: 54 | C14: 33 | D14: 21 | E14: 26 | F14: 28
A15: CAPACITACION PROFESIONAL INICIAL | B15: 5319 | C15: 2501 | D15: 2818 | E15: 1595 | F15: 3724
A16: CAPACITACION TECNICA | B16: 36 | C16: 34 | D16: 2 | E16: 36 | F16: 0
A17: CURSO BASICO | B17: 784 | C17: 404 | D17: 380 | E17: 642 | F17: 142
A18: CURSO BASICO ESPECIALIZACION | B18: 372 | C18: 113 | D18: 259 | E18: 272 | F18: 100
A19: FORM. PROFES. EN ARTES Y ARTESANIAS | B19: 515 | C19: 178 | D19: 337 | E19: 496 | F19: 19
A20: FORMACION PROFESIONAL BASICA | B20: 1576 | C20: 743 | D20: 833 | E20: 675 | F20: 901
A21: FORMACION PROFESIONAL ESPECIALIZADA | B21: 106 | C21: 95 | D21: 11 | E21: 106 | F21: 0
B22: FUENTE : CTP

Sheet Cuadro I-1.9.9
A1: Ministerio de Educación y Cultura Dirección de Educación
A3: Cuadro I-1.9.9 ALUMNOS INGRESADOS Y MATRICULADOS EN CECAP POR SEXO SEGÚN GRANDES ÁREAS. AÑO 2014.
A4: ÁREA GEOGRÁFICA | B4: TOTAL | C4: INGRESADOS | F4: MATRICULADOS
C5: Masculino | D5: Femenino | E5: TOTAL | F5: Masculino | G5: Femenino
A6: TOTAL | B6: =B7+B8 -> 1486 | C6: 749 | D6: 737 | E6: 2177 | F6: 1139 | G6: 1038
A7: Montevideo | B7: =C7+D7 -> 328 | C7: 160 | D7: 168 | E7: =F7+G7 -> 533 | F7: 263 | G7: 270
A8: Resto del país | B8: 1158 | C8: 589 | D8: 569 | E8: =F8+G8 -> 1644 | F8: 876 | G8: 768
A9: Fuente: Área de Educación No Formal de la Dirección de Educación - MEC

Sheet Cuadro I-1.9.10
A1: Ministerio de Educación y Cultura Dirección de Educación
A3: Cuadro I-1.9.10
A4: ALUMNOS MATRICULADOS DEL COCAP SEGÚN TIPO DE CURSO Y ÁREA DE FORMACIÓN. AÑO 2014.
A5: TIPO DE CURSO | C5: TOTAL | D5: SEXO
D6: Masculino | E6: Femenino
A7: TOTAL | C7: =C8+C9 -> 1591 | D7: =D8+D9 -> 1063 | E7: =E8+E9 -> 528
A8: Cursos Abiertos | C8: =D8+E8 -> 845 | D8: 807 | E8: 38
A9: Cursos Cerrados | C9: =D9+E9 -> 746 | D9: 256 | E9: 490
A10: Fuente: COCAP

Sheet Cuadro I-1.9.11
A1: Ministerio de Educación y Cultura Dirección de Educación
A4: Cuadro I-1.9.11 FUNCIONARIOS PARTICIPANTES EN LOS CURSOS DE LA ENAP DR. AQUILES LANZA, CANTIDAD DE CURSOS Y HORAS TIPO DE CURSO. AÑO 2014.
A5: GRANDES ÁREAS | C5: FUNCIONARIOS PARTICIPANTES | D5: CANTIDAD DE CURSOS | E5: HORAS
A6: TOTAL | C6: =SUM(C7:C9) -> 11297 | D6: =SUM(D7:D9) -> 382 | E6: =SUM(E7:E9) -> 14388
A7: Programas de Formación: Programa de Dirección Media, Diploma en Gestión Humana y Programa de Desarrollo Administrativo | C7: 178 | D7: 7 | E7: 2271
A8: Cursos y Seminarios | C8: 5943 | D8: 215 | E8: 6900
A9: Cursos e-learning | C9: 5176 | D9: 160 | E9: 5217
A10: Fuentes: Oficina Nacional del Servicio Civil - Escuela Nacional de Administración Pública "Dr. Aquiles Lanza"
A11: Nota: Por no contar con información, no se incluye la "Maestría en Políticas y Gestión Pública".

Sheet Cuadro I-1.9.12
A1: Ministerio de Educación y Cultura Dirección de Educación
A3: Cuadro I-1.9.12 ALUMNOS INGRESADOS Y MATRICULADOS EN CARRERAS NO TERCIARIAS EN UNIVERSIDADES E INSTITUTOS UNIVERSITARIOS. AÑO 2014.
A4: UNIVERSIDADES E INSTITUTOS UNIVERSITARIOS | D4: INGRESADOS | G4: MATRICULADOS
C5: TOTAL | D5: SEXO | F5: TOTAL | G5: SEXO
D6: Masculino | E6: Femenino | G6: Masculino | H6: Femenino
A7: TOTAL | C7: =D7+E7 -> 3404 | D7: =SUM(D8:D11) -> 1714 | E7: =SUM(E8:E11) -> 1690 | F7: =G7+H7 -> 6994 | G7: =SUM(G8:G11) -> 4157 | H7: =SUM(H8:H11) -> 2837
A8: Universidad ORT Uruguay | C8: =D8+E8 -> 965 | D8: 602 | E8: 363 | F8: =G8+H8 -> 4288 | G8: 2893 | H8: 1395
A9: Universidad de la Empresa | C9: =D9+E9 -> 310 | D9: 143 | E9: 167 | F9: =G9+H9 -> 577 | G9: 291 | H9: 286
A10: UCUDAL | C10: 1854 | D10: 857 | E10: 997 | F10: 1854 | G10: 861 | H10: 993
A11: UDELAR | C11: 275 | D11: 112 | E11: 163 | F11: 275 | G11: 112 | H11: 163
A12: Fuente: Oficinas productoras de las instituciones.

Sheet Cuadro I-1.9.13
A1: Ministerio de Educación y Cultura Dirección de Educación | Q1: Ministerio de Educación y Cultura Dirección de Educación | Y1: Ministerio de Educación y Cultura Dirección de Educación | AG1: Ministerio de Educación y Cultura Dirección de Educación | AO1: Ministerio de Educación y Cultura Dirección de Educación | AW1: Ministerio de Educación y Cultura Dirección de Educación | BE1: Ministerio de Educación y Cultura Dirección de Educación | BM1: Ministerio de Educación y Cultura Dirección de Educación | BU1: Ministerio de Educación y Cultura Dirección de Educación | CC1: Ministerio de Educación y Cultura Dirección de Educación | CK1: Ministerio de Educación y Cultura Dirección de Educación | CS1: Ministerio de Educación y Cultura Dirección de Educación | DA1: Ministerio de Educación y Cultura Dirección de Educación | DI1: Ministerio de Educación y Cultura Dirección de Educación | DQ1: Ministerio de Educación y Cultura Dirección de Educación | DY1: Ministerio de Educación y Cultura Dirección de Educación | EG1: Ministerio de Educación y Cultura Dirección de Educación | EO1: Ministerio de Educación y Cultura Dirección de Educación | EW1: Ministerio de Educación y Cultura Dirección de Educación | FE1: Ministerio de Educación y Cultura Dirección de Educación | FM1: Ministerio de Educación y Cultura Dirección de Educación | FU1: Ministerio de Educación y Cultura Dirección de Educación | GC1: Ministerio de Educación y Cultura Dirección de Educación | GK1: Ministerio de Educación y Cultura Dirección de Educación | GS1: Ministerio de Educación y Cultura Dirección de Educación | HA1: Ministerio de Educación y Cultura Dirección de Educación | HI1: Ministerio de Educación y Cultura Dirección de Educación | HQ1: Ministerio de Educación y Cultura Dirección de Educación | HY1: Ministerio de Educación y Cultura Dirección de Educación | IG1: Ministerio de Educación y Cultura Dirección de Educación | IO1: Ministerio de Educación y Cultura Dirección de Educación | IW1: Ministerio de Educación y Cultura Dirección de Educación | JE1: Ministerio de Educación y Cultura Dirección de Educación | JM1: Ministerio de Educación y Cultura Dirección de Educación | JU1: Ministerio de Educación y Cultura Dirección de Educación | KC1: Ministerio de Educación y Cultura Dirección de Educación | KK1: Ministerio de Educación y Cultura Dirección de Educación | KS1: Ministerio de Educación y Cultura Dirección de Educación | LA1: Ministerio de Educación y Cultura Dirección de Educación | LI1: Ministerio de Educación y Cultura Dirección de Educación | LQ1: Ministerio de Educación y Cultura Dirección de Educación | LY1: Ministerio de Educación y Cultura Dirección de Educación | MG1: Ministerio de Educación y Cultura Dirección de Educación | MO1: Ministerio de Educación y Cultura Dirección de Educación | MW1: Ministerio de Educación y Cultura Dirección de Educación | NE1: Ministerio de Educación y Cultura Dirección de Educación | NM1: Ministerio de Educación y Cultura Dirección de Educación | NU1: Ministerio de Educación y Cultura Dirección de Educación | OC1: Ministerio de Educación y Cultura Dirección de Educación | OK1: Ministerio de Educación y Cultura Dirección de Educación | OS1: Ministerio de Educación y Cultura Dirección de Educación | PA1: Ministerio de Educación y Cultura Dirección de Educación | PI1: Ministerio de Educación y Cultura Dirección de Educación | PQ1: Ministerio de Educación y Cultura Dirección de Educación | PY1: Ministerio de Educación y Cultura Dirección de Educación | QG1: Ministerio de Educación y Cultura Dirección de Educación | QO1: Ministerio de Educación y Cultura Dirección de Educación | QW1: Ministerio de Educación y Cultura Dirección de Educación | RE1: Ministerio de Educación y Cultura Dirección de Educación | RM1: Ministerio de Educación y Cultura Dirección de Educación | RU1: Ministerio de Educación y Cultura Dirección de Educación | SC1: Ministerio de Educación y Cultura Dirección de Educación | SK1: Ministerio de Educación y Cultura Dirección de Educación | SS1: Ministerio de Educación y Cultura Dirección de Educación | TA1: Ministerio de Educación y Cultura Dirección de Educación | TI1: Ministerio de Educación y Cultura Dirección de Educación | TQ1: Ministerio de Educación y Cultura Dirección de Educación | TY1: Ministerio de Educación y Cultura Dirección de Educación | UG1: Ministerio de Educación y Cultura Dirección de Educación | UO1: Ministerio de Educación y Cultura Dirección de Educación | UW1: Ministerio de Educación y Cultura Dirección de Educación | VE1: Ministerio de Educación y Cultura Dirección de Educación | VM1: Ministerio de Educación y Cultura Dirección de Educación | VU1: Ministerio de Educación y Cultura Dirección de Educación | WC1: Ministerio de Educación y Cultura Dirección de Educación | WK1: Ministerio de Educación y Cultura Dirección de Educación | WS1: Ministerio de Educación y Cultura Dirección de Educación | XA1: Ministerio de Educación y Cultura Dirección de Educación | XI1: Ministerio de Educación y Cultura Dirección de Educación | XQ1: Ministerio de Educación y Cultura Dirección de Educación | XY1: Ministerio de Educación y Cultura Dirección de Educación | YG1: Ministerio de Educación y Cultura Dirección de Educación | YO1: Ministerio de Educación y Cultura Dirección de Educación | YW1: Ministerio de Educación y Cultura Dirección de Educación | ZE1: Ministerio de Educación y Cultura Dirección de Educación | ZM1: Ministerio de Educación y Cultura Dirección de Educación | ZU1: Ministerio de Educación y Cultura Dirección de Educación | AAC1: Ministerio de Educación y Cultura Dirección de Educación | AAK1: Ministerio de Educación y Cultura Dirección de Educación | AAS1: Ministerio de Educación y Cultura Dirección de Educación | ABA1: Ministerio de Educación y Cultura Dirección de Educación | ABI1: Ministerio de Educación y Cultura Dirección de Educación | ABQ1: Ministerio de Educación y Cultura Dirección de Educación | ABY1: Ministerio de Educación y Cultura Dirección de Educación | ACG1: Ministerio de Educación y Cultura Dirección de Educación | ACO1: Ministerio de Educación y Cultura Dirección de Educación | ACW1: Ministerio de Educación y Cultura Dirección de Educación | ADE1: Ministerio de Educación y Cultura Dirección de Educación | ADM1: Ministerio de Educación y Cultura Dirección de Educación | ADU1: Ministerio de Educación y Cultura Dirección de Educación | AEC1: Ministerio de Educación y Cultura Dirección de Educación | AEK1: Ministerio de Educación y Cultura Dirección de Educación | AES1: Ministerio de Educación y Cultura Dirección de Educación | AFA1: Ministerio de Educación y Cultura Dirección de Educación | AFI1: Ministerio de Educación y Cultura Dirección de Educación | AFQ1: Ministerio de Educación y Cultura Dirección de Educación | AFY1: Ministerio de Educación y Cultura Dirección de Educación | AGG1: Ministerio de Educación y Cultura Dirección de Educación | AGO1: Ministerio de Educación y Cultura Dirección de Educación | AGW1: Ministerio de Educación y Cultura Dirección de Educación | AHE1: Ministerio de Educación y Cultura Dirección de Educación | AHM1: Ministerio de Educación y Cultura Dirección de Educación | AHU1: Ministerio de Educación y Cultura Dirección de Educación | AIC1: Ministerio de Educación y Cultura Dirección de Educación | AIK1: Ministerio de Educación y Cultura Dirección de Educación | AIS1: Ministerio de Educación y Cultura Dirección de Educación | AJA1: Ministerio de Educación y Cultura Dirección de Educación | AJI1: Ministerio de Educación y Cultura Dirección de Educación | AJQ1: Ministerio de Educación y Cultura Dirección de Educación | AJY1: Ministerio de Educación y Cultura Dirección de Educación | AKG1: Ministerio de Educación y Cultura Dirección de Educación | AKO1: Ministerio de Educación y Cultura Dirección de Educación | AKW1: Ministerio de Educación y Cultura Dirección de Educación | ALE1: Ministerio de Educación y Cultura Dirección de Educación | ALM1: Ministerio de Educación y Cultura Dirección de Educación | ALU1: Ministerio de Educación y Cultura Dirección de Educación | AMC1: Ministerio de Educación y Cultura Dirección de Educación | AMK1: Ministerio de Educación y Cultura Dirección de Educación | AMS1: Ministerio de Educación y Cultura Dirección de Educación | ANA1: Ministerio de Educación y Cultura Dirección de Educación | ANI1: Ministerio de Educación y Cultura Dirección de Educación | ANQ1: Ministerio de Educación y Cultura Dirección de Educación | ANY1: Ministerio de Educación y Cultura Dirección de Educación | AOG1: Ministerio de Educación y Cultura Dirección de Educación | AOO1: Ministerio de Educación y Cultura Dirección de Educación | AOW1: Ministerio de Educación y Cultura Dirección de Educación | APE1: Ministerio de Educación y Cultura Dirección de Educación | APM1: Ministerio de Educación y Cultura Dirección de Educación | APU1: Ministerio de Educación y Cultura Dirección de Educación | AQC1: Ministerio de Educación y Cultura Dirección de Educación | AQK1: Ministerio de Educación y Cultura Dirección de Educación | AQS1: Ministerio de Educación y Cultura Dirección de Educación | ARA1: Ministerio de Educación y Cultura Dirección de Educación | ARI1: Ministerio de Educación y Cultura Dirección de Educación | ARQ1: Ministerio de Educación y Cultura Dirección de Educación | ARY1: Ministerio de Educación y Cultura Dirección de Educación | ASG1: Ministerio de Educación y Cultura Dirección de Educación | ASO1: Ministerio de Educación y Cultura Dirección de Educación | ASW1: Ministerio de Educación y Cultura Dirección de Educación | ATE1: Ministerio de Educación y Cultura Dirección de Educación | ATM1: Ministerio de Educación y Cultura Dirección de Educación | ATU1: Ministerio de Educación y Cultura Dirección de Educación | AUC1: Ministerio de Educación y Cultura Dirección de Educación | AUK1: Ministerio de Educación y Cultura Dirección de Educación | AUS1: Ministerio de Educación y Cultura Dirección de Educación | AVA1: Ministerio de Educación y Cultura Dirección de Educación | AVI1: Ministerio de Educación y Cultura Dirección de Educación | AVQ1: Ministerio de Educación y Cultura Dirección de Educación | AVY1: Ministerio de Educación y Cultura Dirección de Educación | AWG1: Ministerio de Educación y Cultura Dirección de Educación | AWO1: Ministerio de Educación y Cultura Dirección de Educación | AWW1: Ministerio de Educación y Cultura Dirección de Educación | AXE1: Ministerio de Educación y Cultura Dirección de Educación | AXM1: Ministerio de Educación y Cultura Dirección de Educación | AXU1: Ministerio de Educación y Cultura Dirección de Educación | AYC1: Ministerio de Educación y Cultura Dirección de Educación | AYK1: Ministerio de Educación y Cultura Dirección de Educación | AYS1: Ministerio de Educación y Cultura Dirección de Educación | AZA1: Ministerio de Educación y Cultura Dirección de Educación | AZI1: Ministerio de Educación y Cultura Dirección de Educación | AZQ1: Ministerio de Educación y Cultura Dirección de Educación | AZY1: Ministerio de Educación y Cultura Dirección de Educación | BAG1: Ministerio de Educación y Cultura Dirección de Educación | BAO1: Ministerio de Educación y Cultura Dirección de Educación | BAW1: Ministerio de Educación y Cultura Dirección de Educación | BBE1: Ministerio de Educación y Cultura Dirección de Educación | BBM1: Ministerio de Educación y Cultura Dirección de Educación | BBU1: Ministerio de Educación y Cultura Dirección de Educación | BCC1: Ministerio de Educación y Cultura Dirección de Educación | BCK1: Ministerio de Educación y Cultura Dirección de Educación | BCS1: Ministerio de Educación y Cultura Dirección de Educación | BDA1: Ministerio de Educación y Cultura Dirección de Educación | BDI1: Ministerio de Educación y Cultura Dirección de Educación | BDQ1: Ministerio de Educación y Cultura Dirección de Educación | BDY1: Ministerio de Educación y Cultura Dirección de Educación | BEG1: Ministerio de Educación y Cultura Dirección de Educación | BEO1: Ministerio de Educación y Cultura Dirección de Educación | BEW1: Ministerio de Educación y Cultura Dirección de Educación | BFE1: Ministerio de Educación y Cultura Dirección de Educación | BFM1: Ministerio de Educación y Cultura Dirección de Educación | BFU1: Ministerio de Educación y Cultura Dirección de Educación | BGC1: Ministerio de Educación y Cultura Dirección de Educación | BGK1: Ministerio de Educación y Cultura Dirección de Educación | BGS1: Ministerio de Educación y Cultura Dirección de Educación | BHA1: Ministerio de Educación y Cultura Dirección de Educación | BHI1: Ministerio de Educación y Cultura Dirección de Educación | BHQ1: Ministerio de Educación y Cultura Dirección de Educación | BHY1: Ministerio de Educación y Cultura Dirección de Educación | BIG1: Ministerio de Educación y Cultura Dirección de Educación | BIO1: Ministerio de Educación y Cultura Dirección de Educación | BIW1: Ministerio de Educación y Cultura Dirección de Educación | BJE1: Ministerio de Educación y Cultura Dirección de Educación | BJM1: Ministerio de Educación y Cultura Dirección de Educación | BJU1: Ministerio de Educación y Cultura Dirección de Educación | BKC1: Ministerio de Educación y Cultura Dirección de Educación | BKK1: Ministerio de Educación y Cultura Dirección de Educación | BKS1: Ministerio de Educación y Cultura Dirección de Educación | BLA1: Ministerio de Educación y Cultura Dirección de Educación | BLI1: Ministerio de Educación y Cultura Dirección de Educación | BLQ1: Ministerio de Educación y Cultura Dirección de Educación | BLY1: Ministerio de Educación y Cultura Dirección de Educación | BMG1: Ministerio de Educación y Cultura Dirección de Educación | BMO1: Ministerio de Educación y Cultura Dirección de Educación | BMW1: Ministerio de Educación y Cultura Dirección de Educación | BNE1: Ministerio de Educación y Cultura Dirección de Educación | BNM1: Ministerio de Educación y Cultura Dirección de Educación | BNU1: Ministerio de Educación y Cultura Dirección de Educación | BOC1: Ministerio de Educación y Cultura Dirección de Educación | BOK1: Ministerio de Educación y Cultura Dirección de Educación | BOS1: Ministerio de Educación y Cultura Dirección de Educación | BPA1: Ministerio de Educación y Cultura Dirección de Educación | BPI1: Ministerio de Educación y Cultura Dirección de Educación | BPQ1: Ministerio de Educación y Cultura Dirección de Educación | BPY1: Ministerio de Educación y Cultura Dirección de Educación | BQG1: Ministerio de Educación y Cultura Dirección de Educación | BQO1: Ministerio de Educación y Cultura Dirección de Educación | BQW1: Ministerio de Educación y Cultura Dirección de Educación | BRE1: Ministerio de Educación y Cultura Dirección de Educación | BRM1: Ministerio de Educación y Cultura Dirección de Educación | BRU1: Ministerio de Educación y Cultura Dirección de Educación | BSC1: Ministerio de Educación y Cultura Dirección de Educación | BSK1: Ministerio de Educación y Cultura Dirección de Educación | BSS1: Ministerio de Educación y Cultura Dirección de Educación | BTA1: Ministerio de Educación y Cultura Dirección de Educación | BTI1: Ministerio de Educación y Cultura Dirección de Educación | BTQ1: Ministerio de Educación y Cultura Dirección de Educación | BTY1: Ministerio de Educación y Cultura Dirección de Educación | BUG1: Ministerio de Educación y Cultura Dirección de Educación | BUO1: Ministerio de Educación y Cultura Dirección de Educación | BUW1: Ministerio de Educación y Cultura Dirección de Educación | BVE1: Ministerio de Educación y Cultura Dirección de Educación | BVM1: Ministerio de Educación y Cultura Dirección de Educación | BVU1: Ministerio de Educación y Cultura Dirección de Educación | BWC1: Ministerio de Educación y Cultura Dirección de Educación | BWK1: Ministerio de Educación y Cultura Dirección de Educación | BWS1: Ministerio de Educación y Cultura Dirección de Educación | BXA1: Ministerio de Educación y Cultura Dirección de Educación | BXI1: Ministerio de Educación y Cultura Dirección de Educación | BXQ1: Ministerio de Educación y Cultura Dirección de Educación | BXY1: Ministerio de Educación y Cultura Dirección de Educación | BYG1: Ministerio de Educación y Cultura Dirección de Educación | BYO1: Ministerio de Educación y Cultura Dirección de Educación | BYW1: Ministerio de Educación y Cultura Dirección de Educación | BZE1: Ministerio de Educación y Cultura Dirección de Educación | BZM1: Ministerio de Educación y Cultura Dirección de Educación | BZU1: Ministerio de Educación y Cultura Dirección de Educación | CAC1: Ministerio de Educación y Cultura Dirección de Educación | CAK1: Ministerio de Educación y Cultura Dirección de Educación | CAS1: Ministerio de Educación y Cultura Dirección de Educación | CBA1: Ministerio de Educación y Cultura Dirección de Educación | CBI1: Ministerio de Educación y Cultura Dirección de Educación | CBQ1: Ministerio de Educación y Cultura Dirección de Educación | CBY1: Ministerio de Educación y Cultura Dirección de Educación | CCG1: Ministerio de Educación y Cultura Dirección de Educación | CCO1: Ministerio de Educación y Cultura Dirección de Educación | CCW1: Ministerio de Educación y Cultura Dirección de Educación | CDE1: Ministerio de Educación y Cultura Dirección de Educación | CDM1: Ministerio de Educación y Cultura Dirección de Educación | CDU1: Ministerio de Educación y Cultura Dirección de Educación | CEC1: Ministerio de Educación y Cultura Dirección de Educación | CEK1: Ministerio de Educación y Cultura Dirección de Educación | CES1: Ministerio de Educación y Cultura Dirección de Educación | CFA1: Ministerio de Educación y Cultura Dirección de Educación | CFI1: Ministerio de Educación y Cultura Dirección de Educación | CFQ1: Ministerio de Educación y Cultura Dirección de Educación | CFY1: Ministerio de Educación y Cultura Dirección de Educación | CGG1: Ministerio de Educación y Cultura Dirección de Educación | CGO1: Ministerio de Educación y Cultura Dirección de Educación | CGW1: Ministerio de Educación y Cultura Dirección de Educación | CHE1: Ministerio de Educación y Cultura Dirección de Educación | CHM1: Ministerio de Educación y Cultura Dirección de Educación | CHU1: Ministerio de Educación y Cultura Dirección de Educación | CIC1: Ministerio de Educación y Cultura Dirección de Educación | CIK1: Ministerio de Educación y Cultura Dirección de Educación | CIS1: Ministerio de Educación y Cultura Dirección de Educación | CJA1: Ministerio de Educación y Cultura Dirección de Educación | CJI1: Ministerio de Educación y Cultura Dirección de Educación | CJQ1: Ministerio de Educación y Cultura Dirección de Educación | CJY1: Ministerio de Educación y Cultura Dirección de Educación | CKG1: Ministerio de Educación y Cultura Dirección de Educación | CKO1: Ministerio de Educación y Cultura Dirección de Educación | CKW1: Ministerio de Educación y Cultura Dirección de Educación | CLE1: Ministerio de Educación y Cultura Dirección de Educación | CLM1: Ministerio de Educación y Cultura Dirección de Educación | CLU1: Ministerio de Educación y Cultura Dirección de Educación | CMC1: Ministerio de Educación y Cultura Dirección de Educación | CMK1: Ministerio de Educación y Cultura Dirección de Educación | CMS1: Ministerio de Educación y Cultura Dirección de Educación | CNA1: Ministerio de Educación y Cultura Dirección de Educación | CNI1: Ministerio de Educación y Cultura Dirección de Educación | CNQ1: Ministerio de Educación y Cultura Dirección de Educación | CNY1: Ministerio de Educación y Cultura Dirección de Educación | COG1: Ministerio de Educación y Cultura Dirección de Educación | COO1: Ministerio de Educación y Cultura Dirección de Educación | COW1: Ministerio de Educación y Cultura Dirección de Educación | CPE1: Ministerio de Educación y Cultura Dirección de Educación | CPM1: Ministerio de Educación y Cultura Dirección de Educación | CPU1: Ministerio de Educación y Cultura Dirección de Educación | CQC1: Ministerio de Educación y Cultura Dirección de Educación | CQK1: Ministerio de Educación y Cultura Dirección de Educación | CQS1: Ministerio de Educación y Cultura Dirección de Educación | CRA1: Ministerio de Educación y Cultura Dirección de Educación | CRI1: Ministerio de Educación y Cultura Dirección de Educación | CRQ1: Ministerio de Educación y Cultura Dirección de Educación | CRY1: Ministerio de Educación y Cultura Dirección de Educación | CSG1: Ministerio de Educación y Cultura Dirección de Educación | CSO1: Ministerio de Educación y Cultura Dirección de Educación | CSW1: Ministerio de Educación y Cultura Dirección de Educación | CTE1: Ministerio de Educación y Cultura Dirección de Educación | CTM1: Ministerio de Educación y Cultura Dirección de Educación | CTU1: Ministerio de Educación y Cultura Dirección de Educación | CUC1: Ministerio de Educación y Cultura Dirección de Educación | CUK1: Ministerio de Educación y Cultura Dirección de Educación | CUS1: Ministerio de Educación y Cultura Dirección de Educación | CVA1: Ministerio de Educación y Cultura Dirección de Educación | CVI1: Ministerio de Educación y Cultura Dirección de Educación | CVQ1: Ministerio de Educación y Cultura Dirección de Educación | CVY1: Ministerio de Educación y Cultura Dirección de Educación | CWG1: Ministerio de Educación y Cultura Dirección de Educación | CWO1: Ministerio de Educación y Cultura Dirección de Educación | CWW1: Ministerio de Educación y Cultura Dirección de Educación | CXE1: Ministerio de Educación y Cultura Dirección de Educación | CXM1: Ministerio de Educación y Cultura Dirección de Educación | CXU1: Ministerio de Educación y Cultura Dirección de Educación | CYC1: Ministerio de Educación y Cultura Dirección de Educación | CYK1: Ministerio de Educación y Cultura Dirección de Educación | CYS1: Ministerio de Educación y Cultura Dirección de Educación | CZA1: Ministerio de Educación y Cultura Dirección de Educación | CZI1: Ministerio de Educación y Cultura Dirección de Educación | CZQ1: Ministerio de Educación y Cultura Dirección de Educación | CZY1: Ministerio de Educación y Cultura Dirección de Educación | DAG1: Ministerio de Educación y Cultura Dirección de Educación | DAO1: Ministerio de Educación y Cultura Dirección de Educación | DAW1: Ministerio de Educación y Cultura Dirección de Educación | DBE1: Ministerio de Educación y Cultura Dirección de Educación | DBM1: Ministerio de Educación y Cultura Dirección de Educación | DBU1: Ministerio de Educación y Cultura Dirección de Educación | DCC1: Ministerio de Educación y Cultura Dirección de Educación | DCK1: Ministerio de Educación y Cultura Dirección de Educación | DCS1: Ministerio de Educación y Cultura Dirección de Educación | DDA1: Ministerio de Educación y Cultura Dirección de Educación | DDI1: Ministerio de Educación y Cultura Dirección de Educación | DDQ1: Ministerio de Educación y Cultura Dirección de Educación | DDY1: Ministerio de Educación y Cultura Dirección de Educación | DEG1: Ministerio de Educación y Cultura Dirección de Educación | DEO1: Ministerio de Educación y Cultura Dirección de Educación | DEW1: Ministerio de Educación y Cultura Dirección de Educación | DFE1: Ministerio de Educación y Cultura Dirección de Educación | DFM1: Ministerio de Educación y Cultura Dirección de Educación | DFU1: Ministerio de Educación y Cultura Dirección de Educación | DGC1: Ministerio de Educación y Cultura Dirección de Educación | DGK1: Ministerio de Educación y Cultura Dirección de Educación | DGS1: Ministerio de Educación y Cultura Dirección de Educación | DHA1: Ministerio de Educación y Cultura Dirección de Educación | DHI1: Ministerio de Educación y Cultura Dirección de Educación | DHQ1: Ministerio de Educación y Cultura Dirección de Educación | DHY1: Ministerio de Educación y Cultura Dirección de Educación | DIG1: Ministerio de Educación y Cultura Dirección de Educación | DIO1: Ministerio de Educación y Cultura Dirección de Educación | DIW1: Ministerio de Educación y Cultura Dirección de Educación | DJE1: Ministerio de Educación y Cultura Dirección de Educación | DJM1: Ministerio de Educación y Cultura Dirección de Educación | DJU1: Ministerio de Educación y Cultura Dirección de Educación | DKC1: Ministerio de Educación y Cultura Dirección de Educación | DKK1: Ministerio de Educación y Cultura Dirección de Educación | DKS1: Ministerio de Educación y Cultura Dirección de Educación | DLA1: Ministerio de Educación y Cultura Dirección de Educación | DLI1: Ministerio de Educación y Cultura Dirección de Educación | DLQ1: Ministerio de Educación y Cultura Dirección de Educación | DLY1: Ministerio de Educación y Cultura Dirección de Educación | DMG1: Ministerio de Educación y Cultura Dirección de Educación | DMO1: Ministerio de Educación y Cultura Dirección de Educación | DMW1: Ministerio de Educación y Cultura Dirección de Educación | DNE1: Ministerio de Educación y Cultura Dirección de Educación | DNM1: Ministerio de Educación y Cultura Dirección de Educación | DNU1: Ministerio de Educación y Cultura Dirección de Educación | DOC1: Ministerio de Educación y Cultura Dirección de Educación | DOK1: Ministerio de Educación y Cultura Dirección de Educación | DOS1: Ministerio de Educación y Cultura Dirección de Educación | DPA1: Ministerio de Educación y Cultura Dirección de Educación | DPI1: Ministerio de Educación y Cultura Dirección de Educación | DPQ1: Ministerio de Educación y Cultura Dirección de Educación | DPY1: Ministerio de Educación y Cultura Dirección de Educación | DQG1: Ministerio de Educación y Cultura Dirección de Educación | DQO1: Ministerio de Educación y Cultura Dirección de Educación | DQW1: Ministerio de Educación y Cultura Dirección de Educación | DRE1: Ministerio de Educación y Cultura Dirección de Educación | DRM1: Ministerio de Educación y Cultura Dirección de Educación | DRU1: Ministerio de Educación y Cultura Dirección de Educación | DSC1: Ministerio de Educación y Cultura Dirección de Educación | DSK1: Ministerio de Educación y Cultura Dirección de Educación | DSS1: Ministerio de Educación y Cultura Dirección de Educación | DTA1: Ministerio de Educación y Cultura Dirección de Educación | DTI1: Ministerio de Educación y Cultura Dirección de Educación | DTQ1: Ministerio de Educación y Cultura Dirección de Educación | DTY1: Ministerio de Educación y Cultura Dirección de Educación | DUG1: Ministerio de Educación y Cultura Dirección de Educación | DUO1: Ministerio de Educación y Cultura Dirección de Educación | DUW1: Ministerio de Educación y Cultura Dirección de Educación | DVE1: Ministerio de Educación y Cultura Dirección de Educación | DVM1: Ministerio de Educación y Cultura Dirección de Educación | DVU1: Ministerio de Educación y Cultura Dirección de Educación | DWC1: Ministerio de Educación y Cultura Dirección de Educación | DWK1: Ministerio de Educación y Cultura Dirección de Educación | DWS1: Ministerio de Educación y Cultura Dirección de Educación | DXA1: Ministerio de Educación y Cultura Dirección de Educación | DXI1: Ministerio de Educación y Cultura Dirección de Educación | DXQ1: Ministerio de Educación y Cultura Dirección de Educación | DXY1: Ministerio de Educación y Cultura Dirección de Educación | DYG1: Ministerio de Educación y Cultura Dirección de Educación | DYO1: Ministerio de Educación y Cultura Dirección de Educación | DYW1: Ministerio de Educación y Cultura Dirección de Educación | DZE1: Ministerio de Educación y Cultura Dirección de Educación | DZM1: Ministerio de Educación y Cultura Dirección de Educación | DZU1: Ministerio de Educación y Cultura Dirección de Educación | EAC1: Ministerio de Educación y Cultura Dirección de Educación | EAK1: Ministerio de Educación y Cultura Dirección de Educación | EAS1: Ministerio de Educación y Cultura Dirección de Educación | EBA1: Ministerio de Educación y Cultura Dirección de Educación | EBI1: Ministerio de Educación y Cultura Dirección de Educación | EBQ1: Ministerio de Educación y Cultura Dirección de Educación | EBY1: Ministerio de Educación y Cultura Dirección de Educación | ECG1: Ministerio de Educación y Cultura Dirección de Educación | ECO1: Ministerio de Educación y Cultura Dirección de Educación | ECW1: Ministerio de Educación y Cultura Dirección de Educación | EDE1: Ministerio de Educación y Cultura Dirección de Educación | EDM1: Ministerio de Educación y Cultura Dirección de Educación | EDU1: Ministerio de Educación y Cultura Dirección de Educación | EEC1: Ministerio de Educación y Cultura Dirección de Educación | EEK1: Ministerio de Educación y Cultura Dirección de Educación | EES1: Ministerio de Educación y Cultura Dirección de Educación | EFA1: Ministerio de Educación y Cultura Dirección de Educación | EFI1: Ministerio de Educación y Cultura Dirección de Educación | EFQ1: Ministerio de Educación y Cultura Dirección de Educación | EFY1: Ministerio de Educación y Cultura Dirección de Educación | EGG1: Ministerio de Educación y Cultura Dirección de Educación | EGO1: Ministerio de Educación y Cultura Dirección de Educación | EGW1: Ministerio de Educación y Cultura Dirección de Educación | EHE1: Ministerio de Educación y Cultura Dirección de Educación | EHM1: Ministerio de Educación y Cultura Dirección de Educación | EHU1: Ministerio de Educación y Cultura Dirección de Educación | EIC1: Ministerio de Educación y Cultura Dirección de Educación | EIK1: Ministerio de Educación y Cultura Dirección de Educación | EIS1: Ministerio de Educación y Cultura Dirección de Educación | EJA1: Ministerio de Educación y Cultura Dirección de Educación | EJI1: Ministerio de Educación y Cultura Dirección de Educación | EJQ1: Ministerio de Educación y Cultura Dirección de Educación | EJY1: Ministerio de Educación y Cultura Dirección de Educación | EKG1: Ministerio de Educación y Cultura Dirección de Educación | EKO1: Ministerio de Educación y Cultura Dirección de Educación | EKW1: Ministerio de Educación y Cultura Dirección de Educación | ELE1: Ministerio de Educación y Cultura Dirección de Educación | ELM1: Ministerio de Educación y Cultura Dirección de Educación | ELU1: Ministerio de Educación y Cultura Dirección de Educación | EMC1: Ministerio de Educación y Cultura Dirección de Educación | EMK1: Ministerio de Educación y Cultura Dirección de Educación | EMS1: Ministerio de Educación y Cultura Dirección de Educación | ENA1: Ministerio de Educación y Cultura Dirección de Educación | ENI1: Ministerio de Educación y Cultura Dirección de Educación | ENQ1: Ministerio de Educación y Cultura Dirección de Educación | ENY1: Ministerio de Educación y Cultura Dirección de Educación | EOG1: Ministerio de Educación y Cultura Dirección de Educación | EOO1: Ministerio de Educación y Cultura Dirección de Educación | EOW1: Ministerio de Educación y Cultura Dirección de Educación | EPE1: Ministerio de Educación y Cultura Dirección de Educación | EPM1: Ministerio de Educación y Cultura Dirección de Educación | EPU1: Ministerio de Educación y Cultura Dirección de Educación | EQC1: Ministerio de Educación y Cultura Dirección de Educación | EQK1: Ministerio de Educación y Cultura Dirección de Educación | EQS1: Ministerio de Educación y Cultura Dirección de Educación | ERA1: Ministerio de Educación y Cultura Dirección de Educación | ERI1: Ministerio de Educación y Cultura Dirección de Educación | ERQ1: Ministerio de Educación y Cultura Dirección de Educación | ERY1: Ministerio de Educación y Cultura Dirección de Educación | ESG1: Ministerio de Educación y Cultura Dirección de Educación | ESO1: Ministerio de Educación y Cultura Dirección de Educación | ESW1: Ministerio de Educación y Cultura Dirección de Educación | ETE1: Ministerio de Educación y Cultura Dirección de Educación | ETM1: Ministerio de Educación y Cultura Dirección de Educación | ETU1: Ministerio de Educación y Cultura Dirección de Educación | EUC1: Ministerio de Educación y Cultura Dirección de Educación | EUK1: Ministerio de Educación y Cultura Dirección de Educación | EUS1: Ministerio de Educación y Cultura Dirección de Educación | EVA1: Ministerio de Educación y Cultura Dirección de Educación | EVI1: Ministerio de Educación y Cultura Dirección de Educación | EVQ1: Ministerio de Educación y Cultura Dirección de Educación | EVY1: Ministerio de Educación y Cultura Dirección de Educación | EWG1: Ministerio de Educación y Cultura Dirección de Educación | EWO1: Ministerio de Educación y Cultura Dirección de Educación | EWW1: Ministerio de Educación y Cultura Dirección de Educación | EXE1: Ministerio de Educación y Cultura Dirección de Educación | EXM1: Ministerio de Educación y Cultura Dirección de Educación | EXU1: Ministerio de Educación y Cultura Dirección de Educación | EYC1: Ministerio de Educación y Cultura Dirección de Educación | EYK1: Ministerio de Educación y Cultura Dirección de Educación | EYS1: Ministerio de Educación y Cultura Dirección de Educación | EZA1: Ministerio de Educación y Cultura Dirección de Educación | EZI1: Ministerio de Educación y Cultura Dirección de Educación | EZQ1: Ministerio de Educación y Cultura Dirección de Educación | EZY1: Ministerio de Educación y Cultura Dirección de Educación | FAG1: Ministerio de Educación y Cultura Dirección de Educación | FAO1: Ministerio de Educación y Cultura Dirección de Educación | FAW1: Ministerio de Educación y Cultura Dirección de Educación | FBE1: Ministerio de Educación y Cultura Dirección de Educación | FBM1: Ministerio de Educación y Cultura Dirección de Educación | FBU1: Ministerio de Educación y Cultura Dirección de Educación | FCC1: Ministerio de Educación y Cultura Dirección de Educación | FCK1: Ministerio de Educación y Cultura Dirección de Educación | FCS1: Ministerio de Educación y Cultura Dirección de Educación | FDA1: Ministerio de Educación y Cultura Dirección de Educación | FDI1: Ministerio de Educación y Cultura Dirección de Educación | FDQ1: Ministerio de Educación y Cultura Dirección de Educación | FDY1: Ministerio de Educación y Cultura Dirección de Educación | FEG1: Ministerio de Educación y Cultura Dirección de Educación | FEO1: Ministerio de Educación y Cultura Dirección de Educación | FEW1: Ministerio de Educación y Cultura Dirección de Educación | FFE1: Ministerio de Educación y Cultura Dirección de Educación | FFM1: Ministerio de Educación y Cultura Dirección de Educación | FFU1: Ministerio de Educación y Cultura Dirección de Educación | FGC1: Ministerio de Educación y Cultura Dirección de Educación | FGK1: Ministerio de Educación y Cultura Dirección de Educación | FGS1: Ministerio de Educación y Cultura Dirección de Educación | FHA1: Ministerio de Educación y Cultura Dirección de Educación | FHI1: Ministerio de Educación y Cultura Dirección de Educación | FHQ1: Ministerio de Educación y Cultura Dirección de Educación | FHY1: Ministerio de Educación y Cultura Dirección de Educación | FIG1: Ministerio de Educación y Cultura Dirección de Educación | FIO1: Ministerio de Educación y Cultura Dirección de Educación | FIW1: Ministerio de Educación y Cultura Dirección de Educación | FJE1: Ministerio de Educación y Cultura Dirección de Educación | FJM1: Ministerio de Educación y Cultura Dirección de Educación | FJU1: Ministerio de Educación y Cultura Dirección de Educación | FKC1: Ministerio de Educación y Cultura Dirección de Educación | FKK1: Ministerio de Educación y Cultura Dirección de Educación | FKS1: Ministerio de Educación y Cultura Dirección de Educación | FLA1: Ministerio de Educación y Cultura Dirección de Educación | FLI1: Ministerio de Educación y Cultura Dirección de Educación | FLQ1: Ministerio de Educación y Cultura Dirección de Educación | FLY1: Ministerio de Educación y Cultura Dirección de Educación | FMG1: Ministerio de Educación y Cultura Dirección de Educación | FMO1: Ministerio de Educación y Cultura Dirección de Educación | FMW1: Ministerio de Educación y Cultura Dirección de Educación | FNE1: Ministerio de Educación y Cultura Dirección de Educación | FNM1: Ministerio de Educación y Cultura Dirección de Educación | FNU1: Ministerio de Educación y Cultura Dirección de Educación | FOC1: Ministerio de Educación y Cultura Dirección de Educación | FOK1: Ministerio de Educación y Cultura Dirección de Educación | FOS1: Ministerio de Educación y Cultura Dirección de Educación | FPA1: Ministerio de Educación y Cultura Dirección de Educación | FPI1: Ministerio de Educación y Cultura Dirección de Educación | FPQ1: Ministerio de Educación y Cultura Dirección de Educación | FPY1: Ministerio de Educación y Cultura Dirección de Educación | FQG1: Ministerio de Educación y Cultura Dirección de Educación | FQO1: Ministerio de Educación y Cultura Dirección de Educación | FQW1: Ministerio de Educación y Cultura Dirección de Educación | FRE1: Ministerio de Educación y Cultura Dirección de Educación | FRM1: Ministerio de Educación y Cultura Dirección de Educación | FRU1: Ministerio de Educación y Cultura Dirección de Educación | FSC1: Ministerio de Educación y Cultura Dirección de Educación | FSK1: Ministerio de Educación y Cultura Dirección de Educación | FSS1: Ministerio de Educación y Cultura Dirección de Educación | FTA1: Ministerio de Educación y Cultura Dirección de Educación | FTI1: Ministerio de Educación y Cultura Dirección de Educación | FTQ1: Ministerio de Educación y Cultura Dirección de Educación | FTY1: Ministerio de Educación y Cultura Dirección de Educación | FUG1: Ministerio de Educación y Cultura Dirección de Educación | FUO1: Ministerio de Educación y Cultura Dirección de Educación | FUW1: Ministerio de Educación y Cultura Dirección de Educación | FVE1: Ministerio de Educación y Cultura Dirección de Educación | FVM1: Ministerio de Educación y Cultura Dirección de Educación | FVU1: Ministerio de Educación y Cultura Dirección de Educación | FWC1: Ministerio de Educación y Cultura Dirección de Educación | FWK1: Ministerio de Educación y Cultura Dirección de Educación | FWS1: Ministerio de Educación y Cultura Dirección de Educación | FXA1: Ministerio de Educación y Cultura Dirección de Educación | FXI1: Ministerio de Educación y Cultura Dirección de Educación | FXQ1: Ministerio de Educación y Cultura Dirección de Educación | FXY1: Ministerio de Educación y Cultura Dirección de Educación | FYG1: Ministerio de Educación y Cultura Dirección de Educación | FYO1: Ministerio de Educación y Cultura Dirección de Educación | FYW1: Ministerio de Educación y Cultura Dirección de Educación | FZE1: Ministerio de Educación y Cultura Dirección de Educación | FZM1: Ministerio de Educación y Cultura Dirección de Educación | FZU1: Ministerio de Educación y Cultura Dirección de Educación | GAC1: Ministerio de Educación y Cultura Dirección de Educación | GAK1: Ministerio de Educación y Cultura Dirección de Educación | GAS1: Ministerio de Educación y Cultura Dirección de Educación | GBA1: Ministerio de Educación y Cultura Dirección de Educación | GBI1: Ministerio de Educación y Cultura Dirección de Educación | GBQ1: Ministerio de Educación y Cultura Dirección de Educación | GBY1: Ministerio de Educación y Cultura Dirección de Educación | GCG1: Ministerio de Educación y Cultura Dirección de Educación | GCO1: Ministerio de Educación y Cultura Dirección de Educación | GCW1: Ministerio de Educación y Cultura Dirección de Educación | GDE1: Ministerio de Educación y Cultura Dirección de Educación | GDM1: Ministerio de Educación y Cultura Dirección de Educación | GDU1: Ministerio de Educación y Cultura Dirección de Educación | GEC1: Ministerio de Educación y Cultura Dirección de Educación | GEK1: Ministerio de Educación y Cultura Dirección de Educación | GES1: Ministerio de Educación y Cultura Dirección de Educación | GFA1: Ministerio de Educación y Cultura Dirección de Educación | GFI1: Ministerio de Educación y Cultura Dirección de Educación | GFQ1: Ministerio de Educación y Cultura Dirección de Educación | GFY1: Ministerio de Educación y Cultura Dirección de Educación | GGG1: Ministerio de Educación y Cultura Dirección de Educación | GGO1: Ministerio de Educación y Cultura Dirección de Educación | GGW1: Ministerio de Educación y Cultura Dirección de Educación | GHE1: Ministerio de Educación y Cultura Dirección de Educación | GHM1: Ministerio de Educación y Cultura Dirección de Educación | GHU1: Ministerio de Educación y Cultura Dirección de Educación | GIC1: Ministerio de Educación y Cultura Dirección de Educación | GIK1: Ministerio de Educación y Cultura Dirección de Educación | GIS1: Ministerio de Educación y Cultura Dirección de Educación | GJA1: Ministerio de Educación y Cultura Dirección de Educación | GJI1: Ministerio de Educación y Cultura Dirección de Educación | GJQ1: Ministerio de Educación y Cultura Dirección de Educación | GJY1: Ministerio de Educación y Cultura Dirección de Educación | GKG1: Ministerio de Educación y Cultura Dirección de Educación | GKO1: Ministerio de Educación y Cultura Dirección de Educación | GKW1: Ministerio de Educación y Cultura Dirección de Educación | GLE1: Ministerio de Educación y Cultura Dirección de Educación | GLM1: Ministerio de Educación y Cultura Dirección de Educación | GLU1: Ministerio de Educación y Cultura Dirección de Educación | GMC1: Ministerio de Educación y Cultura Dirección de Educación | GMK1: Ministerio de Educación y Cultura Dirección de Educación | GMS1: Ministerio de Educación y Cultura Dirección de Educación | GNA1: Ministerio de Educación y Cultura Dirección de Educación | GNI1: Ministerio de Educación y Cultura Dirección de Educación | GNQ1: Ministerio de Educación y Cultura Dirección de Educación | GNY1: Ministerio de Educación y Cultura Dirección de Educación | GOG1: Ministerio de Educación y Cultura Dirección de Educación | GOO1: Ministerio de Educación y Cultura Dirección de Educación | GOW1: Ministerio de Educación y Cultura Dirección de Educación | GPE1: Ministerio de Educación y Cultura Dirección de Educación | GPM1: Ministerio de Educación y Cultura Dirección de Educación | GPU1: Ministerio de Educación y Cultura Dirección de Educación | GQC1: Ministerio de Educación y Cultura Dirección de Educación | GQK1: Ministerio de Educación y Cultura Dirección de Educación | GQS1: Ministerio de Educación y Cultura Dirección de Educación | GRA1: Ministerio de Educación y Cultura Dirección de Educación | GRI1: Ministerio de Educación y Cultura Dirección de Educación | GRQ1: Ministerio de Educación y Cultura Dirección de Educación | GRY1: Ministerio de Educación y Cultura Dirección de Educación | GSG1: Ministerio de Educación y Cultura Dirección de Educación | GSO1: Ministerio de Educación y Cultura Dirección de Educación | GSW1: Ministerio de Educación y Cultura Dirección de Educación | GTE1: Ministerio de Educación y Cultura Dirección de Educación | GTM1: Ministerio de Educación y Cultura Dirección de Educación | GTU1: Ministerio de Educación y Cultura Dirección de Educación | GUC1: Ministerio de Educación y Cultura Dirección de Educación | GUK1: Ministerio de Educación y Cultura Dirección de Educación | GUS1: Ministerio de Educación y Cultura Dirección de Educación | GVA1: Ministerio de Educación y Cultura Dirección de Educación | GVI1: Ministerio de Educación y Cultura Dirección de Educación | GVQ1: Ministerio de Educación y Cultura Dirección de Educación | GVY1: Ministerio de Educación y Cultura Dirección de Educación | GWG1: Ministerio de Educación y Cultura Dirección de Educación | GWO1: Ministerio de Educación y Cultura Dirección de Educación | GWW1: Ministerio de Educación y Cultura Dirección de Educación | GXE1: Ministerio de Educación y Cultura Dirección de Educación | GXM1: Ministerio de Educación y Cultura Dirección de Educación | GXU1: Ministerio de Educación y Cultura Dirección de Educación | GYC1: Ministerio de Educación y Cultura Dirección de Educación | GYK1: Ministerio de Educación y Cultura Dirección de Educación | GYS1: Ministerio de Educación y Cultura Dirección de Educación | GZA1: Ministerio de Educación y Cultura Dirección de Educación | GZI1: Ministerio de Educación y Cultura Dirección de Educación | GZQ1: Ministerio de Educación y Cultura Dirección de Educación | GZY1: Ministerio de Educación y Cultura Dirección de Educación | HAG1: Ministerio de Educación y Cultura Dirección de Educación | HAO1: Ministerio de Educación y Cultura Dirección de Educación | HAW1: Ministerio de Educación y Cultura Dirección de Educación | HBE1: Ministerio de Educación y Cultura Dirección de Educación | HBM1: Ministerio de Educación y Cultura Dirección de Educación | HBU1: Ministerio de Educación y Cultura Dirección de Educación | HCC1: Ministerio de Educación y Cultura Dirección de Educación | HCK1: Ministerio de Educación y Cultura Dirección de Educación | HCS1: Ministerio de Educación y Cultura Dirección de Educación | HDA1: Ministerio de Educación y Cultura Dirección de Educación | HDI1: Ministerio de Educación y Cultura Dirección de Educación | HDQ1: Ministerio de Educación y Cultura Dirección de Educación | HDY1: Ministerio de Educación y Cultura Dirección de Educación | HEG1: Ministerio de Educación y Cultura Dirección de Educación | HEO1: Ministerio de Educación y Cultura Dirección de Educación | HEW1: Ministerio de Educación y Cultura Dirección de Educación | HFE1: Ministerio de Educación y Cultura Dirección de Educación | HFM1: Ministerio de Educación y Cultura Dirección de Educación | HFU1: Ministerio de Educación y Cultura Dirección de Educación | HGC1: Ministerio de Educación y Cultura Dirección de Educación | HGK1: Ministerio de Educación y Cultura Dirección de Educación | HGS1: Ministerio de Educación y Cultura Dirección de Educación | HHA1: Ministerio de Educación y Cultura Dirección de Educación | HHI1: Ministerio de Educación y Cultura Dirección de Educación | HHQ1: Ministerio de Educación y Cultura Dirección de Educación | HHY1: Ministerio de Educación y Cultura Dirección de Educación | HIG1: Ministerio de Educación y Cultura Dirección de Educación | HIO1: Ministerio de Educación y Cultura Dirección de Educación | HIW1: Ministerio de Educación y Cultura Dirección de Educación | HJE1: Ministerio de Educación y Cultura Dirección de Educación | HJM1: Ministerio de Educación y Cultura Dirección de Educación | HJU1: Ministerio de Educación y Cultura Dirección de Educación | HKC1: Ministerio de Educación y Cultura Dirección de Educación | HKK1: Ministerio de Educación y Cultura Dirección de Educación | HKS1: Ministerio de Educación y Cultura Dirección de Educación | HLA1: Ministerio de Educación y Cultura Dirección de Educación | HLI1: Ministerio de Educación y Cultura Dirección de Educación | HLQ1: Ministerio de Educación y Cultura Dirección de Educación | HLY1: Ministerio de Educación y Cultura Dirección de Educación | HMG1: Ministerio de Educación y Cultura Dirección de Educación | HMO1: Ministerio de Educación y Cultura Dirección de Educación | HMW1: Ministerio de Educación y Cultura Dirección de Educación | HNE1: Ministerio de Educación y Cultura Dirección de Educación | HNM1: Ministerio de Educación y Cultura Dirección de Educación | HNU1: Ministerio de Educación y Cultura Dirección de Educación | HOC1: Ministerio de Educación y Cultura Dirección de Educación | HOK1: Ministerio de Educación y Cultura Dirección de Educación | HOS1: Ministerio de Educación y Cultura Dirección de Educación | HPA1: Ministerio de Educación y Cultura Dirección de Educación | HPI1: Ministerio de Educación y Cultura Dirección de Educación | HPQ1: Ministerio de Educación y Cultura Dirección de Educación | HPY1: Ministerio de Educación y Cultura Dirección de Educación | HQG1: Ministerio de Educación y Cultura Dirección de Educación | HQO1: Ministerio de Educación y Cultura Dirección de Educación | HQW1: Ministerio de Educación y Cultura Dirección de Educación | HRE1: Ministerio de Educación y Cultura Dirección de Educación | HRM1: Ministerio de Educación y Cultura Dirección de Educación | HRU1: Ministerio de Educación y Cultura Dirección de Educación | HSC1: Ministerio de Educación y Cultura Dirección de Educación | HSK1: Ministerio de Educación y Cultura Dirección de Educación | HSS1: Ministerio de Educación y Cultura Dirección de Educación | HTA1: Ministerio de Educación y Cultura Dirección de Educación | HTI1: Ministerio de Educación y Cultura Dirección de Educación | HTQ1: Ministerio de Educación y Cultura Dirección de Educación | HTY1: Ministerio de Educación y Cultura Dirección de Educación | HUG1: Ministerio de Educación y Cultura Dirección de Educación | HUO1: Ministerio de Educación y Cultura Dirección de Educación | HUW1: Ministerio de Educación y Cultura Dirección de Educación | HVE1: Ministerio de Educación y Cultura Dirección de Educación | HVM1: Ministerio de Educación y Cultura Dirección de Educación | HVU1: Ministerio de Educación y Cultura Dirección de Educación | HWC1: Ministerio de Educación y Cultura Dirección de Educación | HWK1: Ministerio de Educación y Cultura Dirección de Educación | HWS1: Ministerio de Educación y Cultura Dirección de Educación | HXA1: Ministerio de Educación y Cultura Dirección de Educación | HXI1: Ministerio de Educación y Cultura Dirección de Educación | HXQ1: Ministerio de Educación y Cultura Dirección de Educación | HXY1: Ministerio de Educación y Cultura Dirección de Educación | HYG1: Ministerio de Educación y Cultura Dirección de Educación | HYO1: Ministerio de Educación y Cultura Dirección de Educación | HYW1: Ministerio de Educación y Cultura Dirección de Educación | HZE1: Ministerio de Educación y Cultura Dirección de Educación | HZM1: Ministerio de Educación y Cultura Dirección de Educación | HZU1: Ministerio de Educación y Cultura Dirección de Educación | IAC1: Ministerio de Educación y Cultura Dirección de Educación | IAK1: Ministerio de Educación y Cultura Dirección de Educación | IAS1: Ministerio de Educación y Cultura Dirección de Educación | IBA1: Ministerio de Educación y Cultura Dirección de Educación | IBI1: Ministerio de Educación y Cultura Dirección de Educación | IBQ1: Ministerio de Educación y Cultura Dirección de Educación | IBY1: Ministerio de Educación y Cultura Dirección de Educación | ICG1: Ministerio de Educación y Cultura Dirección de Educación | ICO1: Ministerio de Educación y Cultura Dirección de Educación | ICW1: Ministerio de Educación y Cultura Dirección de Educación | IDE1: Ministerio de Educación y Cultura Dirección de Educación | IDM1: Ministerio de Educación y Cultura Dirección de Educación | IDU1: Ministerio de Educación y Cultura Dirección de Educación | IEC1: Ministerio de Educación y Cultura Dirección de Educación | IEK1: Ministerio de Educación y Cultura Dirección de Educación | IES1: Ministerio de Educación y Cultura Dirección de Educación | IFA1: Ministerio de Educación y Cultura Dirección de Educación | IFI1: Ministerio de Educación y Cultura Dirección de Educación | IFQ1: Ministerio de Educación y Cultura Dirección de Educación | IFY1: Ministerio de Educación y Cultura Dirección de Educación | IGG1: Ministerio de Educación y Cultura Dirección de Educación | IGO1: Ministerio de Educación y Cultura Dirección de Educación | IGW1: Ministerio de Educación y Cultura Dirección de Educación | IHE1: Ministerio de Educación y Cultura Dirección de Educación | IHM1: Ministerio de Educación y Cultura Dirección de Educación | IHU1: Ministerio de Educación y Cultura Dirección de Educación | IIC1: Ministerio de Educación y Cultura Dirección de Educación | IIK1: Ministerio de Educación y Cultura Dirección de Educación | IIS1: Ministerio de Educación y Cultura Dirección de Educación | IJA1: Ministerio de Educación y Cultura Dirección de Educación | IJI1: Ministerio de Educación y Cultura Dirección de Educación | IJQ1: Ministerio de Educación y Cultura Dirección de Educación | IJY1: Ministerio de Educación y Cultura Dirección de Educación | IKG1: Ministerio de Educación y Cultura Dirección de Educación | IKO1: Ministerio de Educación y Cultura Dirección de Educación | IKW1: Ministerio de Educación y Cultura Dirección de Educación | ILE1: Ministerio de Educación y Cultura Dirección de Educación | ILM1: Ministerio de Educación y Cultura Dirección de Educación | ILU1: Ministerio de Educación y Cultura Dirección de Educación | IMC1: Ministerio de Educación y Cultura Dirección de Educación | IMK1: Ministerio de Educación y Cultura Dirección de Educación | IMS1: Ministerio de Educación y Cultura Dirección de Educación | INA1: Ministerio de Educación y Cultura Dirección de Educación | INI1: Ministerio de Educación y Cultura Dirección de Educación | INQ1: Ministerio de Educación y Cultura Dirección de Educación | INY1: Ministerio de Educación y Cultura Dirección de Educación | IOG1: Ministerio de Educación y Cultura Dirección de Educación | IOO1: Ministerio de Educación y Cultura Dirección de Educación | IOW1: Ministerio de Educación y Cultura Dirección de Educación | IPE1: Ministerio de Educación y Cultura Dirección de Educación | IPM1: Ministerio de Educación y Cultura Dirección de Educación | IPU1: Ministerio de Educación y Cultura Dirección de Educación | IQC1: Ministerio de Educación y Cultura Dirección de Educación | IQK1: Ministerio de Educación y Cultura Dirección de Educación | IQS1: Ministerio de Educación y Cultura Dirección de Educación | IRA1: Ministerio de Educación y Cultura Dirección de Educación | IRI1: Ministerio de Educación y Cultura Dirección de Educación | IRQ1: Ministerio de Educación y Cultura Dirección de Educación | IRY1: Ministerio de Educación y Cultura Dirección de Educación | ISG1: Ministerio de Educación y Cultura Dirección de Educación | ISO1: Ministerio de Educación y Cultura Dirección de Educación | ISW1: Ministerio de Educación y Cultura Dirección de Educación | ITE1: Ministerio de Educación y Cultura Dirección de Educación | ITM1: Ministerio de Educación y Cultura Dirección de Educación | ITU1: Ministerio de Educación y Cultura Dirección de Educación | IUC1: Ministerio de Educación y Cultura Dirección de Educación | IUK1: Ministerio de Educación y Cultura Dirección de Educación | IUS1: Ministerio de Educación y Cultura Dirección de Educación | IVA1: Ministerio de Educación y Cultura Dirección de Educación | IVI1: Ministerio de Educación y Cultura Dirección de Educación | IVQ1: Ministerio de Educación y Cultura Dirección de Educación | IVY1: Ministerio de Educación y Cultura Dirección de Educación | IWG1: Ministerio de Educación y Cultura Dirección de Educación | IWO1: Ministerio de Educación y Cultura Dirección de Educación | IWW1: Ministerio de Educación y Cultura Dirección de Educación | IXE1: Ministerio de Educación y Cultura Dirección de Educación | IXM1: Ministerio de Educación y Cultura Dirección de Educación | IXU1: Ministerio de Educación y Cultura Dirección de Educación | IYC1: Ministerio de Educación y Cultura Dirección de Educación | IYK1: Ministerio de Educación y Cultura Dirección de Educación | IYS1: Ministerio de Educación y Cultura Dirección de Educación | IZA1: Ministerio de Educación y Cultura Dirección de Educación | IZI1: Ministerio de Educación y Cultura Dirección de Educación | IZQ1: Ministerio de Educación y Cultura Dirección de Educación | IZY1: Ministerio de Educación y Cultura Dirección de Educación | JAG1: Ministerio de Educación y Cultura Dirección de Educación | JAO1: Ministerio de Educación y Cultura Dirección de Educación | JAW1: Ministerio de Educación y Cultura Dirección de Educación | JBE1: Ministerio de Educación y Cultura Dirección de Educación | JBM1: Ministerio de Educación y Cultura Dirección de Educación | JBU1: Ministerio de Educación y Cultura Dirección de Educación | JCC1: Ministerio de Educación y Cultura Dirección de Educación | JCK1: Ministerio de Educación y Cultura Dirección de Educación | JCS1: Ministerio de Educación y Cultura Dirección de Educación | JDA1: Ministerio de Educación y Cultura Dirección de Educación | JDI1: Ministerio de Educación y Cultura Dirección de Educación | JDQ1: Ministerio de Educación y Cultura Dirección de Educación | JDY1: Ministerio de Educación y Cultura Dirección de Educación | JEG1: Ministerio de Educación y Cultura Dirección de Educación | JEO1: Ministerio de Educación y Cultura Dirección de Educación | JEW1: Ministerio de Educación y Cultura Dirección de Educación | JFE1: Ministerio de Educación y Cultura Dirección de Educación | JFM1: Ministerio de Educación y Cultura Dirección de Educación | JFU1: Ministerio de Educación y Cultura Dirección de Educación | JGC1: Ministerio de Educación y Cultura Dirección de Educación | JGK1: Ministerio de Educación y Cultura Dirección de Educación | JGS1: Ministerio de Educación y Cultura Dirección de Educación | JHA1: Ministerio de Educación y Cultura Dirección de Educación | JHI1: Ministerio de Educación y Cultura Dirección de Educación | JHQ1: Ministerio de Educación y Cultura Dirección de Educación | JHY1: Ministerio de Educación y Cultura Dirección de Educación | JIG1: Ministerio de Educación y Cultura Dirección de Educación | JIO1: Ministerio de Educación y Cultura Dirección de Educación | JIW1: Ministerio de Educación y Cultura Dirección de Educación | JJE1: Ministerio de Educación y Cultura Dirección de Educación | JJM1: Ministerio de Educación y Cultura Dirección de Educación | JJU1: Ministerio de Educación y Cultura Dirección de Educación | JKC1: Ministerio de Educación y Cultura Dirección de Educación | JKK1: Ministerio de Educación y Cultura Dirección de Educación | JKS1: Ministerio de Educación y Cultura Dirección de Educación | JLA1: Ministerio de Educación y Cultura Dirección de Educación | JLI1: Ministerio de Educación y Cultura Dirección de Educación | JLQ1: Ministerio de Educación y Cultura Dirección de Educación | JLY1: Ministerio de Educación y Cultura Dirección de Educación | JMG1: Ministerio de Educación y Cultura Dirección de Educación | JMO1: Ministerio de Educación y Cultura Dirección de Educación | JMW1: Ministerio de Educación y Cultura Dirección de Educación | JNE1: Ministerio de Educación y Cultura Dirección de Educación | JNM1: Ministerio de Educación y Cultura Dirección de Educación | JNU1: Ministerio de Educación y Cultura Dirección de Educación | JOC1: Ministerio de Educación y Cultura Dirección de Educación | JOK1: Ministerio de Educación y Cultura Dirección de Educación | JOS1: Ministerio de Educación y Cultura Dirección de Educación | JPA1: Ministerio de Educación y Cultura Dirección de Educación | JPI1: Ministerio de Educación y Cultura Dirección de Educación | JPQ1: Ministerio de Educación y Cultura Dirección de Educación | JPY1: Ministerio de Educación y Cultura Dirección de Educación | JQG1: Ministerio de Educación y Cultura Dirección de Educación | JQO1: Ministerio de Educación y Cultura Dirección de Educación | JQW1: Ministerio de Educación y Cultura Dirección de Educación | JRE1: Ministerio de Educación y Cultura Dirección de Educación | JRM1: Ministerio de Educación y Cultura Dirección de Educación | JRU1: Ministerio de Educación y Cultura Dirección de Educación | JSC1: Ministerio de Educación y Cultura Dirección de Educación | JSK1: Ministerio de Educación y Cultura Dirección de Educación | JSS1: Ministerio de Educación y Cultura Dirección de Educación | JTA1: Ministerio de Educación y Cultura Dirección de Educación | JTI1: Ministerio de Educación y Cultura Dirección de Educación | JTQ1: Ministerio de Educación y Cultura Dirección de Educación | JTY1: Ministerio de Educación y Cultura Dirección de Educación | JUG1: Ministerio de Educación y Cultura Dirección de Educación | JUO1: Ministerio de Educación y Cultura Dirección de Educación | JUW1: Ministerio de Educación y Cultura Dirección de Educación | JVE1: Ministerio de Educación y Cultura Dirección de Educación | JVM1: Ministerio de Educación y Cultura Dirección de Educación | JVU1: Ministerio de Educación y Cultura Dirección de Educación | JWC1: Ministerio de Educación y Cultura Dirección de Educación | JWK1: Ministerio de Educación y Cultura Dirección de Educación | JWS1: Ministerio de Educación y Cultura Dirección de Educación | JXA1: Ministerio de Educación y Cultura Dirección de Educación | JXI1: Ministerio de Educación y Cultura Dirección de Educación | JXQ1: Ministerio de Educación y Cultura Dirección de Educación | JXY1: Ministerio de Educación y Cultura Dirección de Educación | JYG1: Ministerio de Educación y Cultura Dirección de Educación | JYO1: Ministerio de Educación y Cultura Dirección de Educación | JYW1: Ministerio de Educación y Cultura Dirección de Educación | JZE1: Ministerio de Educación y Cultura Dirección de Educación | JZM1: Ministerio de Educación y Cultura Dirección de Educación | JZU1: Ministerio de Educación y Cultura Dirección de Educación | KAC1: Ministerio de Educación y Cultura Dirección de Educación | KAK1: Ministerio de Educación y Cultura Dirección de Educación | KAS1: Ministerio de Educación y Cultura Dirección de Educación | KBA1: Ministerio de Educación y Cultura Dirección de Educación | KBI1: Ministerio de Educación y Cultura Dirección de Educación | KBQ1: Ministerio de Educación y Cultura Dirección de Educación | KBY1: Ministerio de Educación y Cultura Dirección de Educación | KCG1: Ministerio de Educación y Cultura Dirección de Educación | KCO1: Ministerio de Educación y Cultura Dirección de Educación | KCW1: Ministerio de Educación y Cultura Dirección de Educación | KDE1: Ministerio de Educación y Cultura Dirección de Educación | KDM1: Ministerio de Educación y Cultura Dirección de Educación | KDU1: Ministerio de Educación y Cultura Dirección de Educación | KEC1: Ministerio de Educación y Cultura Dirección de Educación | KEK1: Ministerio de Educación y Cultura Dirección de Educación | KES1: Ministerio de Educación y Cultura Dirección de Educación | KFA1: Ministerio de Educación y Cultura Dirección de Educación | KFI1: Ministerio de Educación y Cultura Dirección de Educación | KFQ1: Ministerio de Educación y Cultura Dirección de Educación | KFY1: Ministerio de Educación y Cultura Dirección de Educación | KGG1: Ministerio de Educación y Cultura Dirección de Educación | KGO1: Ministerio de Educación y Cultura Dirección de Educación | KGW1: Ministerio de Educación y Cultura Dirección de Educación | KHE1: Ministerio de Educación y Cultura Dirección de Educación | KHM1: Ministerio de Educación y Cultura Dirección de Educación | KHU1: Ministerio de Educación y Cultura Dirección de Educación | KIC1: Ministerio de Educación y Cultura Dirección de Educación | KIK1: Ministerio de Educación y Cultura Dirección de Educación | KIS1: Ministerio de Educación y Cultura Dirección de Educación | KJA1: Ministerio de Educación y Cultura Dirección de Educación | KJI1: Ministerio de Educación y Cultura Dirección de Educación | KJQ1: Ministerio de Educación y Cultura Dirección de Educación | KJY1: Ministerio de Educación y Cultura Dirección de Educación | KKG1: Ministerio de Educación y Cultura Dirección de Educación | KKO1: Ministerio de Educación y Cultura Dirección de Educación | KKW1: Ministerio de Educación y Cultura Dirección de Educación | KLE1: Ministerio de Educación y Cultura Dirección de Educación | KLM1: Ministerio de Educación y Cultura Dirección de Educación | KLU1: Ministerio de Educación y Cultura Dirección de Educación | KMC1: Ministerio de Educación y Cultura Dirección de Educación | KMK1: Ministerio de Educación y Cultura Dirección de Educación | KMS1: Ministerio de Educación y Cultura Dirección de Educación | KNA1: Ministerio de Educación y Cultura Dirección de Educación | KNI1: Ministerio de Educación y Cultura Dirección de Educación | KNQ1: Ministerio de Educación y Cultura Dirección de Educación | KNY1: Ministerio de Educación y Cultura Dirección de Educación | KOG1: Ministerio de Educación y Cultura Dirección de Educación | KOO1: Ministerio de Educación y Cultura Dirección de Educación | KOW1: Ministerio de Educación y Cultura Dirección de Educación | KPE1: Ministerio de Educación y Cultura Dirección de Educación | KPM1: Ministerio de Educación y Cultura Dirección de Educación | KPU1: Ministerio de Educación y Cultura Dirección de Educación | KQC1: Ministerio de Educación y Cultura Dirección de Educación | KQK1: Ministerio de Educación y Cultura Dirección de Educación | KQS1: Ministerio de Educación y Cultura Dirección de Educación | KRA1: Ministerio de Educación y Cultura Dirección de Educación | KRI1: Ministerio de Educación y Cultura Dirección de Educación | KRQ1: Ministerio de Educación y Cultura Dirección de Educación | KRY1: Ministerio de Educación y Cultura Dirección de Educación | KSG1: Ministerio de Educación y Cultura Dirección de Educación | KSO1: Ministerio de Educación y Cultura Dirección de Educación | KSW1: Ministerio de Educación y Cultura Dirección de Educación | KTE1: Ministerio de Educación y Cultura Dirección de Educación | KTM1: Ministerio de Educación y Cultura Dirección de Educación | KTU1: Ministerio de Educación y Cultura Dirección de Educación | KUC1: Ministerio de Educación y Cultura Dirección de Educación | KUK1: Ministerio de Educación y Cultura Dirección de Educación | KUS1: Ministerio de Educación y Cultura Dirección de Educación | KVA1: Ministerio de Educación y Cultura Dirección de Educación | KVI1: Ministerio de Educación y Cultura Dirección de Educación | KVQ1: Ministerio de Educación y Cultura Dirección de Educación | KVY1: Ministerio de Educación y Cultura Dirección de Educación | KWG1: Ministerio de Educación y Cultura Dirección de Educación | KWO1: Ministerio de Educación y Cultura Dirección de Educación | KWW1: Ministerio de Educación y Cultura Dirección de Educación | KXE1: Ministerio de Educación y Cultura Dirección de Educación | KXM1: Ministerio de Educación y Cultura Dirección de Educación | KXU1: Ministerio de Educación y Cultura Dirección de Educación | KYC1: Ministerio de Educación y Cultura Dirección de Educación | KYK1: Ministerio de Educación y Cultura Dirección de Educación | KYS1: Ministerio de Educación y Cultura Dirección de Educación | KZA1: Ministerio de Educación y Cultura Dirección de Educación | KZI1: Ministerio de Educación y Cultura Dirección de Educación | KZQ1: Ministerio de Educación y Cultura Dirección de Educación | KZY1: Ministerio de Educación y Cultura Dirección de Educación | LAG1: Ministerio de Educación y Cultura Dirección de Educación | LAO1: Ministerio de Educación y Cultura Dirección de Educación | LAW1: Ministerio de Educación y Cultura Dirección de Educación | LBE1: Ministerio de Educación y Cultura Dirección de Educación | LBM1: Ministerio de Educación y Cultura Dirección de Educación | LBU1: Ministerio de Educación y Cultura Dirección de Educación | LCC1: Ministerio de Educación y Cultura Dirección de Educación | LCK1: Ministerio de Educación y Cultura Dirección de Educación | LCS1: Ministerio de Educación y Cultura Dirección de Educación | LDA1: Ministerio de Educación y Cultura Dirección de Educación | LDI1: Ministerio de Educación y Cultura Dirección de Educación | LDQ1: Ministerio de Educación y Cultura Dirección de Educación | LDY1: Ministerio de Educación y Cultura Dirección de Educación | LEG1: Ministerio de Educación y Cultura Dirección de Educación | LEO1: Ministerio de Educación y Cultura Dirección de Educación | LEW1: Ministerio de Educación y Cultura Dirección de Educación | LFE1: Ministerio de Educación y Cultura Dirección de Educación | LFM1: Ministerio de Educación y Cultura Dirección de Educación | LFU1: Ministerio de Educación y Cultura Dirección de Educación | LGC1: Ministerio de Educación y Cultura Dirección de Educación | LGK1: Ministerio de Educación y Cultura Dirección de Educación | LGS1: Ministerio de Educación y Cultura Dirección de Educación | LHA1: Ministerio de Educación y Cultura Dirección de Educación | LHI1: Ministerio de Educación y Cultura Dirección de Educación | LHQ1: Ministerio de Educación y Cultura Dirección de Educación | LHY1: Ministerio de Educación y Cultura Dirección de Educación | LIG1: Ministerio de Educación y Cultura Dirección de Educación | LIO1: Ministerio de Educación y Cultura Dirección de Educación | LIW1: Ministerio de Educación y Cultura Dirección de Educación | LJE1: Ministerio de Educación y Cultura Dirección de Educación | LJM1: Ministerio de Educación y Cultura Dirección de Educación | LJU1: Ministerio de Educación y Cultura Dirección de Educación | LKC1: Ministerio de Educación y Cultura Dirección de Educación | LKK1: Ministerio de Educación y Cultura Dirección de Educación | LKS1: Ministerio de Educación y Cultura Dirección de Educación | LLA1: Ministerio de Educación y Cultura Dirección de Educación | LLI1: Ministerio de Educación y Cultura Dirección de Educación | LLQ1: Ministerio de Educación y Cultura Dirección de Educación | LLY1: Ministerio de Educación y Cultura Dirección de Educación | LMG1: Ministerio de Educación y Cultura Dirección de Educación | LMO1: Ministerio de Educación y Cultura Dirección de Educación | LMW1: Ministerio de Educación y Cultura Dirección de Educación | LNE1: Ministerio de Educación y Cultura Dirección de Educación | LNM1: Ministerio de Educación y Cultura Dirección de Educación | LNU1: Ministerio de Educación y Cultura Dirección de Educación | LOC1: Ministerio de Educación y Cultura Dirección de Educación | LOK1: Ministerio de Educación y Cultura Dirección de Educación | LOS1: Ministerio de Educación y Cultura Dirección de Educación | LPA1: Ministerio de Educación y Cultura Dirección de Educación | LPI1: Ministerio de Educación y Cultura Dirección de Educación | LPQ1: Ministerio de Educación y Cultura Dirección de Educación | LPY1: Ministerio de Educación y Cultura Dirección de Educación | LQG1: Ministerio de Educación y Cultura Dirección de Educación | LQO1: Ministerio de Educación y Cultura Dirección de Educación | LQW1: Ministerio de Educación y Cultura Dirección de Educación | LRE1: Ministerio de Educación y Cultura Dirección de Educación | LRM1: Ministerio de Educación y Cultura Dirección de Educación | LRU1: Ministerio de Educación y Cultura Dirección de Educación | LSC1: Ministerio de Educación y Cultura Dirección de Educación | LSK1: Ministerio de Educación y Cultura Dirección de Educación | LSS1: Ministerio de Educación y Cultura Dirección de Educación | LTA1: Ministerio de Educación y Cultura Dirección de Educación | LTI1: Ministerio de Educación y Cultura Dirección de Educación | LTQ1: Ministerio de Educación y Cultura Dirección de Educación | LTY1: Ministerio de Educación y Cultura Dirección de Educación | LUG1: Ministerio de Educación y Cultura Dirección de Educación | LUO1: Ministerio de Educación y Cultura Dirección de Educación | LUW1: Ministerio de Educación y Cultura Dirección de Educación | LVE1: Ministerio de Educación y Cultura Dirección de Educación | LVM1: Ministerio de Educación y Cultura Dirección de Educación | LVU1: Ministerio de Educación y Cultura Dirección de Educación | LWC1: Ministerio de Educación y Cultura Dirección de Educación | LWK1: Ministerio de Educación y Cultura Dirección de Educación | LWS1: Ministerio de Educación y Cultura Dirección de Educación | LXA1: Ministerio de Educación y Cultura Dirección de Educación | LXI1: Ministerio de Educación y Cultura Dirección de Educación | LXQ1: Ministerio de Educación y Cultura Dirección de Educación | LXY1: Ministerio de Educación y Cultura Dirección de Educación | LYG1: Ministerio de Educación y Cultura Dirección de Educación | LYO1: Ministerio de Educación y Cultura Dirección de Educación | LYW1: Ministerio de Educación y Cultura Dirección de Educación | LZE1: Ministerio de Educación y Cultura Dirección de Educación | LZM1: Ministerio de Educación y Cultura Dirección de Educación | LZU1: Ministerio de Educación y Cultura Dirección de Educación | MAC1: Ministerio de Educación y Cultura Dirección de Educación | MAK1: Ministerio de Educación y Cultura Dirección de Educación | MAS1: Ministerio de Educación y Cultura Dirección de Educación | MBA1: Ministerio de Educación y Cultura Dirección de Educación | MBI1: Ministerio de Educación y Cultura Dirección de Educación | MBQ1: Ministerio de Educación y Cultura Dirección de Educación | MBY1: Ministerio de Educación y Cultura Dirección de Educación | MCG1: Ministerio de Educación y Cultura Dirección de Educación | MCO1: Ministerio de Educación y Cultura Dirección de Educación | MCW1: Ministerio de Educación y Cultura Dirección de Educación | MDE1: Ministerio de Educación y Cultura Dirección de Educación | MDM1: Ministerio de Educación y Cultura Dirección de Educación | MDU1: Ministerio de Educación y Cultura Dirección de Educación | MEC1: Ministerio de Educación y Cultura Dirección de Educación | MEK1: Ministerio de Educación y Cultura Dirección de Educación | MES1: Ministerio de Educación y Cultura Dirección de Educación | MFA1: Ministerio de Educación y Cultura Dirección de Educación | MFI1: Ministerio de Educación y Cultura Dirección de Educación | MFQ1: Ministerio de Educación y Cultura Dirección de Educación | MFY1: Ministerio de Educación y Cultura Dirección de Educación | MGG1: Ministerio de Educación y Cultura Dirección de Educación | MGO1: Ministerio de Educación y Cultura Dirección de Educación | MGW1: Ministerio de Educación y Cultura Dirección de Educación | MHE1: Ministerio de Educación y Cultura Dirección de Educación | MHM1: Ministerio de Educación y Cultura Dirección de Educación | MHU1: Ministerio de Educación y Cultura Dirección de Educación | MIC1: Ministerio de Educación y Cultura Dirección de Educación | MIK1: Ministerio de Educación y Cultura Dirección de Educación | MIS1: Ministerio de Educación y Cultura Dirección de Educación | MJA1: Ministerio de Educación y Cultura Dirección de Educación | MJI1: Ministerio de Educación y Cultura Dirección de Educación | MJQ1: Ministerio de Educación y Cultura Dirección de Educación | MJY1: Ministerio de Educación y Cultura Dirección de Educación | MKG1: Ministerio de Educación y Cultura Dirección de Educación | MKO1: Ministerio de Educación y Cultura Dirección de Educación | MKW1: Ministerio de Educación y Cultura Dirección de Educación | MLE1: Ministerio de Educación y Cultura Dirección de Educación | MLM1: Ministerio de Educación y Cultura Dirección de Educación | MLU1: Ministerio de Educación y Cultura Dirección de Educación | MMC1: Ministerio de Educación y Cultura Dirección de Educación | MMK1: Ministerio de Educación y Cultura Dirección de Educación | MMS1: Ministerio de Educación y Cultura Dirección de Educación | MNA1: Ministerio de Educación y Cultura Dirección de Educación | MNI1: Ministerio de Educación y Cultura Dirección de Educación | MNQ1: Ministerio de Educación y Cultura Dirección de Educación | MNY1: Ministerio de Educación y Cultura Dirección de Educación | MOG1: Ministerio de Educación y Cultura Dirección de Educación | MOO1: Ministerio de Educación y Cultura Dirección de Educación | MOW1: Ministerio de Educación y Cultura Dirección de Educación | MPE1: Ministerio de Educación y Cultura Dirección de Educación | MPM1: Ministerio de Educación y Cultura Dirección de Educación | MPU1: Ministerio de Educación y Cultura Dirección de Educación | MQC1: Ministerio de Educación y Cultura Dirección de Educación | MQK1: Ministerio de Educación y Cultura Dirección de Educación | MQS1: Ministerio de Educación y Cultura Dirección de Educación | MRA1: Ministerio de Educación y Cultura Dirección de Educación | MRI1: Ministerio de Educación y Cultura Dirección de Educación | MRQ1: Ministerio de Educación y Cultura Dirección de Educación | MRY1: Ministerio de Educación y Cultura Dirección de Educación | MSG1: Ministerio de Educación y Cultura Dirección de Educación | MSO1: Ministerio de Educación y Cultura Dirección de Educación | MSW1: Ministerio de Educación y Cultura Dirección de Educación | MTE1: Ministerio de Educación y Cultura Dirección de Educación | MTM1: Ministerio de Educación y Cultura Dirección de Educación | MTU1: Ministerio de Educación y Cultura Dirección de Educación | MUC1: Ministerio de Educación y Cultura Dirección de Educación | MUK1: Ministerio de Educación y Cultura Dirección de Educación | MUS1: Ministerio de Educación y Cultura Dirección de Educación | MVA1: Ministerio de Educación y Cultura Dirección de Educación | MVI1: Ministerio de Educación y Cultura Dirección de Educación | MVQ1: Ministerio de Educación y Cultura Dirección de Educación | MVY1: Ministerio de Educación y Cultura Dirección de Educación | MWG1: Ministerio de Educación y Cultura Dirección de Educación | MWO1: Ministerio de Educación y Cultura Dirección de Educación | MWW1: Ministerio de Educación y Cultura Dirección de Educación | MXE1: Ministerio de Educación y Cultura Dirección de Educación | MXM1: Ministerio de Educación y Cultura Dirección de Educación | MXU1: Ministerio de Educación y Cultura Dirección de Educación | MYC1: Ministerio de Educación y Cultura Dirección de Educación | MYK1: Ministerio de Educación y Cultura Dirección de Educación | MYS1: Ministerio de Educación y Cultura Dirección de Educación | MZA1: Ministerio de Educación y Cultura Dirección de Educación | MZI1: Ministerio de Educación y Cultura Dirección de Educación | MZQ1: Ministerio de Educación y Cultura Dirección de Educación | MZY1: Ministerio de Educación y Cultura Dirección de Educación | NAG1: Ministerio de Educación y Cultura Dirección de Educación | NAO1: Ministerio de Educación y Cultura Dirección de Educación | NAW1: Ministerio de Educación y Cultura Dirección de Educación | NBE1: Ministerio de Educación y Cultura Dirección de Educación | NBM1: Ministerio de Educación y Cultura Dirección de Educación | NBU1: Ministerio de Educación y Cultura Dirección de Educación | NCC1: Ministerio de Educación y Cultura Dirección de Educación | NCK1: Ministerio de Educación y Cultura Dirección de Educación | NCS1: Ministerio de Educación y Cultura Dirección de Educación | NDA1: Ministerio de Educación y Cultura Dirección de Educación | NDI1: Ministerio de Educación y Cultura Dirección de Educación | NDQ1: Ministerio de Educación y Cultura Dirección de Educación | NDY1: Ministerio de Educación y Cultura Dirección de Educación | NEG1: Ministerio de Educación y Cultura Dirección de Educación | NEO1: Ministerio de Educación y Cultura Dirección de Educación | NEW1: Ministerio de Educación y Cultura Dirección de Educación | NFE1: Ministerio de Educación y Cultura Dirección de Educación | NFM1: Ministerio de Educación y Cultura Dirección de Educación | NFU1: Ministerio de Educación y Cultura Dirección de Educación | NGC1: Ministerio de Educación y Cultura Dirección de Educación | NGK1: Ministerio de Educación y Cultura Dirección de Educación | NGS1: Ministerio de Educación y Cultura Dirección de Educación | NHA1: Ministerio de Educación y Cultura Dirección de Educación | NHI1: Ministerio de Educación y Cultura Dirección de Educación | NHQ1: Ministerio de Educación y Cultura Dirección de Educación | NHY1: Ministerio de Educación y Cultura Dirección de Educación | NIG1: Ministerio de Educación y Cultura Dirección de Educación | NIO1: Ministerio de Educación y Cultura Dirección de Educación | NIW1: Ministerio de Educación y Cultura Dirección de Educación | NJE1: Ministerio de Educación y Cultura Dirección de Educación | NJM1: Ministerio de Educación y Cultura Dirección de Educación | NJU1: Ministerio de Educación y Cultura Dirección de Educación | NKC1: Ministerio de Educación y Cultura Dirección de Educación | NKK1: Ministerio de Educación y Cultura Dirección de Educación | NKS1: Ministerio de Educación y Cultura Dirección de Educación | NLA1: Ministerio de Educación y Cultura Dirección de Educación | NLI1: Ministerio de Educación y Cultura Dirección de Educación | NLQ1: Ministerio de Educación y Cultura Dirección de Educación | NLY1: Ministerio de Educación y Cultura Dirección de Educación | NMG1: Ministerio de Educación y Cultura Dirección de Educación | NMO1: Ministerio de Educación y Cultura Dirección de Educación | NMW1: Ministerio de Educación y Cultura Dirección de Educación | NNE1: Ministerio de Educación y Cultura Dirección de Educación | NNM1: Ministerio de Educación y Cultura Dirección de Educación | NNU1: Ministerio de Educación y Cultura Dirección de Educación | NOC1: Ministerio de Educación y Cultura Dirección de Educación | NOK1: Ministerio de Educación y Cultura Dirección de Educación | NOS1: Ministerio de Educación y Cultura Dirección de Educación | NPA1: Ministerio de Educación y Cultura Dirección de Educación | NPI1: Ministerio de Educación y Cultura Dirección de Educación | NPQ1: Ministerio de Educación y Cultura Dirección de Educación | NPY1: Ministerio de Educación y Cultura Dirección de Educación | NQG1: Ministerio de Educación y Cultura Dirección de Educación | NQO1: Ministerio de Educación y Cultura Dirección de Educación | NQW1: Ministerio de Educación y Cultura Dirección de Educación | NRE1: Ministerio de Educación y Cultura Dirección de Educación | NRM1: Ministerio de Educación y Cultura Dirección de Educación | NRU1: Ministerio de Educación y Cultura Dirección de Educación | NSC1: Ministerio de Educación y Cultura Dirección de Educación | NSK1: Ministerio de Educación y Cultura Dirección de Educación | NSS1: Ministerio de Educación y Cultura Dirección de Educación | NTA1: Ministerio de Educación y Cultura Dirección de Educación | NTI1: Ministerio de Educación y Cultura Dirección de Educación | NTQ1: Ministerio de Educación y Cultura Dirección de Educación | NTY1: Ministerio de Educación y Cultura Dirección de Educación | NUG1: Ministerio de Educación y Cultura Dirección de Educación | NUO1: Ministerio de Educación y Cultura Dirección de Educación | NUW1: Ministerio de Educación y Cultura Dirección de Educación | NVE1: Ministerio de Educación y Cultura Dirección de Educación | NVM1: Ministerio de Educación y Cultura Dirección de Educación | NVU1: Ministerio de Educación y Cultura Dirección de Educación | NWC1: Ministerio de Educación y Cultura Dirección de Educación | NWK1: Ministerio de Educación y Cultura Dirección de Educación | NWS1: Ministerio de Educación y Cultura Dirección de Educación | NXA1: Ministerio de Educación y Cultura Dirección de Educación | NXI1: Ministerio de Educación y Cultura Dirección de Educación | NXQ1: Ministerio de Educación y Cultura Dirección de Educación | NXY1: Ministerio de Educación y Cultura Dirección de Educación | NYG1: Ministerio de Educación y Cultura Dirección de Educación | NYO1: Ministerio de Educación y Cultura Dirección de Educación | NYW1: Ministerio de Educación y Cultura Dirección de Educación | NZE1: Ministerio de Educación y Cultura Dirección de Educación | NZM1: Ministerio de Educación y Cultura Dirección de Educación | NZU1: Ministerio de Educación y Cultura Dirección de Educación | OAC1: Ministerio de Educación y Cultura Dirección de Educación | OAK1: Ministerio de Educación y Cultura Dirección de Educación | OAS1: Ministerio de Educación y Cultura Dirección de Educación | OBA1: Ministerio de Educación y Cultura Dirección de Educación | OBI1: Ministerio de Educación y Cultura Dirección de Educación | OBQ1: Ministerio de Educación y Cultura Dirección de Educación | OBY1: Ministerio de Educación y Cultura Dirección de Educación | OCG1: Ministerio de Educación y Cultura Dirección de Educación | OCO1: Ministerio de Educación y Cultura Dirección de Educación | OCW1: Ministerio de Educación y Cultura Dirección de Educación | ODE1: Ministerio de Educación y Cultura Dirección de Educación | ODM1: Ministerio de Educación y Cultura Dirección de Educación | ODU1: Ministerio de Educación y Cultura Dirección de Educación | OEC1: Ministerio de Educación y Cultura Dirección de Educación | OEK1: Ministerio de Educación y Cultura Dirección de Educación | OES1: Ministerio de Educación y Cultura Dirección de Educación | OFA1: Ministerio de Educación y Cultura Dirección de Educación | OFI1: Ministerio de Educación y Cultura Dirección de Educación | OFQ1: Ministerio de Educación y Cultura Dirección de Educación | OFY1: Ministerio de Educación y Cultura Dirección de Educación | OGG1: Ministerio de Educación y Cultura Dirección de Educación | OGO1: Ministerio de Educación y Cultura Dirección de Educación | OGW1: Ministerio de Educación y Cultura Dirección de Educación | OHE1: Ministerio de Educación y Cultura Dirección de Educación | OHM1: Ministerio de Educación y Cultura Dirección de Educación | OHU1: Ministerio de Educación y Cultura Dirección de Educación | OIC1: Ministerio de Educación y Cultura Dirección de Educación | OIK1: Ministerio de Educación y Cultura Dirección de Educación | OIS1: Ministerio de Educación y Cultura Dirección de Educación | OJA1: Ministerio de Educación y Cultura Dirección de Educación | OJI1: Ministerio de Educación y Cultura Dirección de Educación | OJQ1: Ministerio de Educación y Cultura Dirección de Educación | OJY1: Ministerio de Educación y Cultura Dirección de Educación | OKG1: Ministerio de Educación y Cultura Dirección de Educación | OKO1: Ministerio de Educación y Cultura Dirección de Educación | OKW1: Ministerio de Educación y Cultura Dirección de Educación | OLE1: Ministerio de Educación y Cultura Dirección de Educación | OLM1: Ministerio de Educación y Cultura Dirección de Educación | OLU1: Ministerio de Educación y Cultura Dirección de Educación | OMC1: Ministerio de Educación y Cultura Dirección de Educación | OMK1: Ministerio de Educación y Cultura Dirección de Educación | OMS1: Ministerio de Educación y Cultura Dirección de Educación | ONA1: Ministerio de Educación y Cultura Dirección de Educación | ONI1: Ministerio de Educación y Cultura Dirección de Educación | ONQ1: Ministerio de Educación y Cultura Dirección de Educación | ONY1: Ministerio de Educación y Cultura Dirección de Educación | OOG1: Ministerio de Educación y Cultura Dirección de Educación | OOO1: Ministerio de Educación y Cultura Dirección de Educación | OOW1: Ministerio de Educación y Cultura Dirección de Educación | OPE1: Ministerio de Educación y Cultura Dirección de Educación | OPM1: Ministerio de Educación y Cultura Dirección de Educación | OPU1: Ministerio de Educación y Cultura Dirección de Educación | OQC1: Ministerio de Educación y Cultura Dirección de Educación | OQK1: Ministerio de Educación y Cultura Dirección de Educación | OQS1: Ministerio de Educación y Cultura Dirección de Educación | ORA1: Ministerio de Educación y Cultura Dirección de Educación | ORI1: Ministerio de Educación y Cultura Dirección de Educación | ORQ1: Ministerio de Educación y Cultura Dirección de Educación | ORY1: Ministerio de Educación y Cultura Dirección de Educación | OSG1: Ministerio de Educación y Cultura Dirección de Educación | OSO1: Ministerio de Educación y Cultura Dirección de Educación | OSW1: Ministerio de Educación y Cultura Dirección de Educación | OTE1: Ministerio de Educación y Cultura Dirección de Educación | OTM1: Ministerio de Educación y Cultura Dirección de Educación | OTU1: Ministerio de Educación y Cultura Dirección de Educación | OUC1: Ministerio de Educación y Cultura Dirección de Educación | OUK1: Ministerio de Educación y Cultura Dirección de Educación | OUS1: Ministerio de Educación y Cultura Dirección de Educación | OVA1: Ministerio de Educación y Cultura Dirección de Educación | OVI1: Ministerio de Educación y Cultura Dirección de Educación | OVQ1: Ministerio de Educación y Cultura Dirección de Educación | OVY1: Ministerio de Educación y Cultura Dirección de Educación | OWG1: Ministerio de Educación y Cultura Dirección de Educación | OWO1: Ministerio de Educación y Cultura Dirección de Educación | OWW1: Ministerio de Educación y Cultura Dirección de Educación | OXE1: Ministerio de Educación y Cultura Dirección de Educación | OXM1: Ministerio de Educación y Cultura Dirección de Educación | OXU1: Ministerio de Educación y Cultura Dirección de Educación | OYC1: Ministerio de Educación y Cultura Dirección de Educación | OYK1: Ministerio de Educación y Cultura Dirección de Educación | OYS1: Ministerio de Educación y Cultura Dirección de Educación | OZA1: Ministerio de Educación y Cultura Dirección de Educación | OZI1: Ministerio de Educación y Cultura Dirección de Educación | OZQ1: Ministerio de Educación y Cultura Dirección de Educación | OZY1: Ministerio de Educación y Cultura Dirección de Educación | PAG1: Ministerio de Educación y Cultura Dirección de Educación | PAO1: Ministerio de Educación y Cultura Dirección de Educación | PAW1: Ministerio de Educación y Cultura Dirección de Educación | PBE1: Ministerio de Educación y Cultura Dirección de Educación | PBM1: Ministerio de Educación y Cultura Dirección de Educación | PBU1: Ministerio de Educación y Cultura Dirección de Educación | PCC1: Ministerio de Educación y Cultura Dirección de Educación | PCK1: Ministerio de Educación y Cultura Dirección de Educación | PCS1: Ministerio de Educación y Cultura Dirección de Educación | PDA1: Ministerio de Educación y Cultura Dirección de Educación | PDI1: Ministerio de Educación y Cultura Dirección de Educación | PDQ1: Ministerio de Educación y Cultura Dirección de Educación | PDY1: Ministerio de Educación y Cultura Dirección de Educación | PEG1: Ministerio de Educación y Cultura Dirección de Educación | PEO1: Ministerio de Educación y Cultura Dirección de Educación | PEW1: Ministerio de Educación y Cultura Dirección de Educación | PFE1: Ministerio de Educación y Cultura Dirección de Educación | PFM1: Ministerio de Educación y Cultura Dirección de Educación | PFU1: Ministerio de Educación y Cultura Dirección de Educación | PGC1: Ministerio de Educación y Cultura Dirección de Educación | PGK1: Ministerio de Educación y Cultura Dirección de Educación | PGS1: Ministerio de Educación y Cultura Dirección de Educación | PHA1: Ministerio de Educación y Cultura Dirección de Educación | PHI1: Ministerio de Educación y Cultura Dirección de Educación | PHQ1: Ministerio de Educación y Cultura Dirección de Educación | PHY1: Ministerio de Educación y Cultura Dirección de Educación | PIG1: Ministerio de Educación y Cultura Dirección de Educación | PIO1: Ministerio de Educación y Cultura Dirección de Educación | PIW1: Ministerio de Educación y Cultura Dirección de Educación | PJE1: Ministerio de Educación y Cultura Dirección de Educación | PJM1: Ministerio de Educación y Cultura Dirección de Educación | PJU1: Ministerio de Educación y Cultura Dirección de Educación | PKC1: Ministerio de Educación y Cultura Dirección de Educación | PKK1: Ministerio de Educación y Cultura Dirección de Educación | PKS1: Ministerio de Educación y Cultura Dirección de Educación | PLA1: Ministerio de Educación y Cultura Dirección de Educación | PLI1: Ministerio de Educación y Cultura Dirección de Educación | PLQ1: Ministerio de Educación y Cultura Dirección de Educación | PLY1: Ministerio de Educación y Cultura Dirección de Educación | PMG1: Ministerio de Educación y Cultura Dirección de Educación | PMO1: Ministerio de Educación y Cultura Dirección de Educación | PMW1: Ministerio de Educación y Cultura Dirección de Educación | PNE1: Ministerio de Educación y Cultura Dirección de Educación | PNM1: Ministerio de Educación y Cultura Dirección de Educación | PNU1: Ministerio de Educación y Cultura Dirección de Educación | POC1: Ministerio de Educación y Cultura Dirección de Educación | POK1: Ministerio de Educación y Cultura Dirección de Educación | POS1: Ministerio de Educación y Cultura Dirección de Educación | PPA1: Ministerio de Educación y Cultura Dirección de Educación | PPI1: Ministerio de Educación y Cultura Dirección de Educación | PPQ1: Ministerio de Educación y Cultura Dirección de Educación | PPY1: Ministerio de Educación y Cultura Dirección de Educación | PQG1: Ministerio de Educación y Cultura Dirección de Educación | PQO1: Ministerio de Educación y Cultura Dirección de Educación | PQW1: Ministerio de Educación y Cultura Dirección de Educación | PRE1: Ministerio de Educación y Cultura Dirección de Educación | PRM1: Ministerio de Educación y Cultura Dirección de Educación | PRU1: Ministerio de Educación y Cultura Dirección de Educación | PSC1: Ministerio de Educación y Cultura Dirección de Educación | PSK1: Ministerio de Educación y Cultura Dirección de Educación | PSS1: Ministerio de Educación y Cultura Dirección de Educación | PTA1: Ministerio de Educación y Cultura Dirección de Educación | PTI1: Ministerio de Educación y Cultura Dirección de Educación | PTQ1: Ministerio de Educación y Cultura Dirección de Educación | PTY1: Ministerio de Educación y Cultura Dirección de Educación | PUG1: Ministerio de Educación y Cultura Dirección de Educación | PUO1: Ministerio de Educación y Cultura Dirección de Educación | PUW1: Ministerio de Educación y Cultura Dirección de Educación | PVE1: Ministerio de Educación y Cultura Dirección de Educación | PVM1: Ministerio de Educación y Cultura Dirección de Educación | PVU1: Ministerio de Educación y Cultura Dirección de Educación | PWC1: Ministerio de Educación y Cultura Dirección de Educación | PWK1: Ministerio de Educación y Cultura Dirección de Educación | PWS1: Ministerio de Educación y Cultura Dirección de Educación | PXA1: Ministerio de Educación y Cultura Dirección de Educación | PXI1: Ministerio de Educación y Cultura Dirección de Educación | PXQ1: Ministerio de Educación y Cultura Dirección de Educación | PXY1: Ministerio de Educación y Cultura Dirección de Educación | PYG1: Ministerio de Educación y Cultura Dirección de Educación | PYO1: Ministerio de Educación y Cultura Dirección de Educación | PYW1: Ministerio de Educación y Cultura Dirección de Educación | PZE1: Ministerio de Educación y Cultura Dirección de Educación | PZM1: Ministerio de Educación y Cultura Dirección de Educación | PZU1: Ministerio de Educación y Cultura Dirección de Educación | QAC1: Ministerio de Educación y Cultura Dirección de Educación | QAK1: Ministerio de Educación y Cultura Dirección de Educación | QAS1: Ministerio de Educación y Cultura Dirección de Educación | QBA1: Ministerio de Educación y Cultura Dirección de Educación | QBI1: Ministerio de Educación y Cultura Dirección de Educación | QBQ1: Ministerio de Educación y Cultura Dirección de Educación | QBY1: Ministerio de Educación y Cultura Dirección de Educación | QCG1: Ministerio de Educación y Cultura Dirección de Educación | QCO1: Ministerio de Educación y Cultura Dirección de Educación | QCW1: Ministerio de Educación y Cultura Dirección de Educación | QDE1: Ministerio de Educación y Cultura Dirección de Educación | QDM1: Ministerio de Educación y Cultura Dirección de Educación | QDU1: Ministerio de Educación y Cultura Dirección de Educación | QEC1: Ministerio de Educación y Cultura Dirección de Educación | QEK1: Ministerio de Educación y Cultura Dirección de Educación | QES1: Ministerio de Educación y Cultura Dirección de Educación | QFA1: Ministerio de Educación y Cultura Dirección de Educación | QFI1: Ministerio de Educación y Cultura Dirección de Educación | QFQ1: Ministerio de Educación y Cultura Dirección de Educación | QFY1: Ministerio de Educación y Cultura Dirección de Educación | QGG1: Ministerio de Educación y Cultura Dirección de Educación | QGO1: Ministerio de Educación y Cultura Dirección de Educación | QGW1: Ministerio de Educación y Cultura Dirección de Educación | QHE1: Ministerio de Educación y Cultura Dirección de Educación | QHM1: Ministerio de Educación y Cultura Dirección de Educación | QHU1: Ministerio de Educación y Cultura Dirección de Educación | QIC1: Ministerio de Educación y Cultura Dirección de Educación | QIK1: Ministerio de Educación y Cultura Dirección de Educación | QIS1: Ministerio de Educación y Cultura Dirección de Educación | QJA1: Ministerio de Educación y Cultura Dirección de Educación | QJI1: Ministerio de Educación y Cultura Dirección de Educación | QJQ1: Ministerio de Educación y Cultura Dirección de Educación | QJY1: Ministerio de Educación y Cultura Dirección de Educación | QKG1: Ministerio de Educación y Cultura Dirección de Educación | QKO1: Ministerio de Educación y Cultura Dirección de Educación | QKW1: Ministerio de Educación y Cultura Dirección de Educación | QLE1: Ministerio de Educación y Cultura Dirección de Educación | QLM1: Ministerio de Educación y Cultura Dirección de Educación | QLU1: Ministerio de Educación y Cultura Dirección de Educación | QMC1: Ministerio de Educación y Cultura Dirección de Educación | QMK1: Ministerio de Educación y Cultura Dirección de Educación | QMS1: Ministerio de Educación y Cultura Dirección de Educación | QNA1: Ministerio de Educación y Cultura Dirección de Educación | QNI1: Ministerio de Educación y Cultura Dirección de Educación | QNQ1: Ministerio de Educación y Cultura Dirección de Educación | QNY1: Ministerio de Educación y Cultura Dirección de Educación | QOG1: Ministerio de Educación y Cultura Dirección de Educación | QOO1: Ministerio de Educación y Cultura Dirección de Educación | QOW1: Ministerio de Educación y Cultura Dirección de Educación | QPE1: Ministerio de Educación y Cultura Dirección de Educación | QPM1: Ministerio de Educación y Cultura Dirección de Educación | QPU1: Ministerio de Educación y Cultura Dirección de Educación | QQC1: Ministerio de Educación y Cultura Dirección de Educación | QQK1: Ministerio de Educación y Cultura Dirección de Educación | QQS1: Ministerio de Educación y Cultura Dirección de Educación | QRA1: Ministerio de Educación y Cultura Dirección de Educación | QRI1: Ministerio de Educación y Cultura Dirección de Educación | QRQ1: Ministerio de Educación y Cultura Dirección de Educación | QRY1: Ministerio de Educación y Cultura Dirección de Educación | QSG1: Ministerio de Educación y Cultura Dirección de Educación | QSO1: Ministerio de Educación y Cultura Dirección de Educación | QSW1: Ministerio de Educación y Cultura Dirección de Educación | QTE1: Ministerio de Educación y Cultura Dirección de Educación | QTM1: Ministerio de Educación y Cultura Dirección de Educación | QTU1: Ministerio de Educación y Cultura Dirección de Educación | QUC1: Ministerio de Educación y Cultura Dirección de Educación | QUK1: Ministerio de Educación y Cultura Dirección de Educación | QUS1: Ministerio de Educación y Cultura Dirección de Educación | QVA1: Ministerio de Educación y Cultura Dirección de Educación | QVI1: Ministerio de Educación y Cultura Dirección de Educación | QVQ1: Ministerio de Educación y Cultura Dirección de Educación | QVY1: Ministerio de Educación y Cultura Dirección de Educación | QWG1: Ministerio de Educación y Cultura Dirección de Educación | QWO1: Ministerio de Educación y Cultura Dirección de Educación | QWW1: Ministerio de Educación y Cultura Dirección de Educación | QXE1: Ministerio de Educación y Cultura Dirección de Educación | QXM1: Ministerio de Educación y Cultura Dirección de Educación | QXU1: Ministerio de Educación y Cultura Dirección de Educación | QYC1: Ministerio de Educación y Cultura Dirección de Educación | QYK1: Ministerio de Educación y Cultura Dirección de Educación | QYS1: Ministerio de Educación y Cultura Dirección de Educación | QZA1: Ministerio de Educación y Cultura Dirección de Educación | QZI1: Ministerio de Educación y Cultura Dirección de Educación | QZQ1: Ministerio de Educación y Cultura Dirección de Educación | QZY1: Ministerio de Educación y Cultura Dirección de Educación | RAG1: Ministerio de Educación y Cultura Dirección de Educación | RAO1: Ministerio de Educación y Cultura Dirección de Educación | RAW1: Ministerio de Educación y Cultura Dirección de Educación | RBE1: Ministerio de Educación y Cultura Dirección de Educación | RBM1: Ministerio de Educación y Cultura Dirección de Educación | RBU1: Ministerio de Educación y Cultura Dirección de Educación | RCC1: Ministerio de Educación y Cultura Dirección de Educación | RCK1: Ministerio de Educación y Cultura Dirección de Educación | RCS1: Ministerio de Educación y Cultura Dirección de Educación | RDA1: Ministerio de Educación y Cultura Dirección de Educación | RDI1: Ministerio de Educación y Cultura Dirección de Educación | RDQ1: Ministerio de Educación y Cultura Dirección de Educación | RDY1: Ministerio de Educación y Cultura Dirección de Educación | REG1: Ministerio de Educación y Cultura Dirección de Educación | REO1: Ministerio de Educación y Cultura Dirección de Educación | REW1: Ministerio de Educación y Cultura Dirección de Educación | RFE1: Ministerio de Educación y Cultura Dirección de Educación | RFM1: Ministerio de Educación y Cultura Dirección de Educación | RFU1: Ministerio de Educación y Cultura Dirección de Educación | RGC1: Ministerio de Educación y Cultura Dirección de Educación | RGK1: Ministerio de Educación y Cultura Dirección de Educación | RGS1: Ministerio de Educación y Cultura Dirección de Educación | RHA1: Ministerio de Educación y Cultura Dirección de Educación | RHI1: Ministerio de Educación y Cultura Dirección de Educación | RHQ1: Ministerio de Educación y Cultura Dirección de Educación | RHY1: Ministerio de Educación y Cultura Dirección de Educación | RIG1: Ministerio de Educación y Cultura Dirección de Educación | RIO1: Ministerio de Educación y Cultura Dirección de Educación | RIW1: Ministerio de Educación y Cultura Dirección de Educación | RJE1: Ministerio de Educación y Cultura Dirección de Educación | RJM1: Ministerio de Educación y Cultura Dirección de Educación | RJU1: Ministerio de Educación y Cultura Dirección de Educación | RKC1: Ministerio de Educación y Cultura Dirección de Educación | RKK1: Ministerio de Educación y Cultura Dirección de Educación | RKS1: Ministerio de Educación y Cultura Dirección de Educación | RLA1: Ministerio de Educación y Cultura Dirección de Educación | RLI1: Ministerio de Educación y Cultura Dirección de Educación | RLQ1: Ministerio de Educación y Cultura Dirección de Educación | RLY1: Ministerio de Educación y Cultura Dirección de Educación | RMG1: Ministerio de Educación y Cultura Dirección de Educación | RMO1: Ministerio de Educación y Cultura Dirección de Educación | RMW1: Ministerio de Educación y Cultura Dirección de Educación | RNE1: Ministerio de Educación y Cultura Dirección de Educación | RNM1: Ministerio de Educación y Cultura Dirección de Educación | RNU1: Ministerio de Educación y Cultura Dirección de Educación | ROC1: Ministerio de Educación y Cultura Dirección de Educación | ROK1: Ministerio de Educación y Cultura Dirección de Educación | ROS1: Ministerio de Educación y Cultura Dirección de Educación | RPA1: Ministerio de Educación y Cultura Dirección de Educación | RPI1: Ministerio de Educación y Cultura Dirección de Educación | RPQ1: Ministerio de Educación y Cultura Dirección de Educación | RPY1: Ministerio de Educación y Cultura Dirección de Educación | RQG1: Ministerio de Educación y Cultura Dirección de Educación | RQO1: Ministerio de Educación y Cultura Dirección de Educación | RQW1: Ministerio de Educación y Cultura Dirección de Educación | RRE1: Ministerio de Educación y Cultura Dirección de Educación | RRM1: Ministerio de Educación y Cultura Dirección de Educación | RRU1: Ministerio de Educación y Cultura Dirección de Educación | RSC1: Ministerio de Educación y Cultura Dirección de Educación | RSK1: Ministerio de Educación y Cultura Dirección de Educación | RSS1: Ministerio de Educación y Cultura Dirección de Educación | RTA1: Ministerio de Educación y Cultura Dirección de Educación | RTI1: Ministerio de Educación y Cultura Dirección de Educación | RTQ1: Ministerio de Educación y Cultura Dirección de Educación | RTY1: Ministerio de Educación y Cultura Dirección de Educación | RUG1: Ministerio de Educación y Cultura Dirección de Educación | RUO1: Ministerio de Educación y Cultura Dirección de Educación | RUW1: Ministerio de Educación y Cultura Dirección de Educación | RVE1: Ministerio de Educación y Cultura Dirección de Educación | RVM1: Ministerio de Educación y Cultura Dirección de Educación | RVU1: Ministerio de Educación y Cultura Dirección de Educación | RWC1: Ministerio de Educación y Cultura Dirección de Educación | RWK1: Ministerio de Educación y Cultura Dirección de Educación | RWS1: Ministerio de Educación y Cultura Dirección de Educación | RXA1: Ministerio de Educación y Cultura Dirección de Educación | RXI1: Ministerio de Educación y Cultura Dirección de Educación | RXQ1: Ministerio de Educación y Cultura Dirección de Educación | RXY1: Ministerio de Educación y Cultura Dirección de Educación | RYG1: Ministerio de Educación y Cultura Dirección de Educación | RYO1: Ministerio de Educación y Cultura Dirección de Educación | RYW1: Ministerio de Educación y Cultura Dirección de Educación | RZE1: Ministerio de Educación y Cultura Dirección de Educación | RZM1: Ministerio de Educación y Cultura Dirección de Educación | RZU1: Ministerio de Educación y Cultura Dirección de Educación | SAC1: Ministerio de Educación y Cultura Dirección de Educación | SAK1: Ministerio de Educación y Cultura Dirección de Educación | SAS1: Ministerio de Educación y Cultura Dirección de Educación | SBA1: Ministerio de Educación y Cultura Dirección de Educación | SBI1: Ministerio de Educación y Cultura Dirección de Educación | SBQ1: Ministerio de Educación y Cultura Dirección de Educación | SBY1: Ministerio de Educación y Cultura Dirección de Educación | SCG1: Ministerio de Educación y Cultura Dirección de Educación | SCO1: Ministerio de Educación y Cultura Dirección de Educación | SCW1: Ministerio de Educación y Cultura Dirección de Educación | SDE1: Ministerio de Educación y Cultura Dirección de Educación | SDM1: Ministerio de Educación y Cultura Dirección de Educación | SDU1: Ministerio de Educación y Cultura Dirección de Educación | SEC1: Ministerio de Educación y Cultura Dirección de Educación | SEK1: Ministerio de Educación y Cultura Dirección de Educación | SES1: Ministerio de Educación y Cultura Dirección de Educación | SFA1: Ministerio de Educación y Cultura Dirección de Educación | SFI1: Ministerio de Educación y Cultura Dirección de Educación | SFQ1: Ministerio de Educación y Cultura Dirección de Educación | SFY1: Ministerio de Educación y Cultura Dirección de Educación | SGG1: Ministerio de Educación y Cultura Dirección de Educación | SGO1: Ministerio de Educación y Cultura Dirección de Educación | SGW1: Ministerio de Educación y Cultura Dirección de Educación | SHE1: Ministerio de Educación y Cultura Dirección de Educación | SHM1: Ministerio de Educación y Cultura Dirección de Educación | SHU1: Ministerio de Educación y Cultura Dirección de Educación | SIC1: Ministerio de Educación y Cultura Dirección de Educación | SIK1: Ministerio de Educación y Cultura Dirección de Educación | SIS1: Ministerio de Educación y Cultura Dirección de Educación | SJA1: Ministerio de Educación y Cultura Dirección de Educación | SJI1: Ministerio de Educación y Cultura Dirección de Educación | SJQ1: Ministerio de Educación y Cultura Dirección de Educación | SJY1: Ministerio de Educación y Cultura Dirección de Educación | SKG1: Ministerio de Educación y Cultura Dirección de Educación | SKO1: Ministerio de Educación y Cultura Dirección de Educación | SKW1: Ministerio de Educación y Cultura Dirección de Educación | SLE1: Ministerio de Educación y Cultura Dirección de Educación | SLM1: Ministerio de Educación y Cultura Dirección de Educación | SLU1: Ministerio de Educación y Cultura Dirección de Educación | SMC1: Ministerio de Educación y Cultura Dirección de Educación | SMK1: Ministerio de Educación y Cultura Dirección de Educación | SMS1: Ministerio de Educación y Cultura Dirección de Educación | SNA1: Ministerio de Educación y Cultura Dirección de Educación | SNI1: Ministerio de Educación y Cultura Dirección de Educación | SNQ1: Ministerio de Educación y Cultura Dirección de Educación | SNY1: Ministerio de Educación y Cultura Dirección de Educación | SOG1: Ministerio de Educación y Cultura Dirección de Educación | SOO1: Ministerio de Educación y Cultura Dirección de Educación | SOW1: Ministerio de Educación y Cultura Dirección de Educación | SPE1: Ministerio de Educación y Cultura Dirección de Educación | SPM1: Ministerio de Educación y Cultura Dirección de Educación | SPU1: Ministerio de Educación y Cultura Dirección de Educación | SQC1: Ministerio de Educación y Cultura Dirección de Educación | SQK1: Ministerio de Educación y Cultura Dirección de Educación | SQS1: Ministerio de Educación y Cultura Dirección de Educación | SRA1: Ministerio de Educación y Cultura Dirección de Educación | SRI1: Ministerio de Educación y Cultura Dirección de Educación | SRQ1: Ministerio de Educación y Cultura Dirección de Educación | SRY1: Ministerio de Educación y Cultura Dirección de Educación | SSG1: Ministerio de Educación y Cultura Dirección de Educación | SSO1: Ministerio de Educación y Cultura Dirección de Educación | SSW1: Ministerio de Educación y Cultura Dirección de Educación | STE1: Ministerio de Educación y Cultura Dirección de Educación | STM1: Ministerio de Educación y Cultura Dirección de Educación | STU1: Ministerio de Educación y Cultura Dirección de Educación | SUC1: Ministerio de Educación y Cultura Dirección de Educación | SUK1: Ministerio de Educación y Cultura Dirección de Educación | SUS1: Ministerio de Educación y Cultura Dirección de Educación | SVA1: Ministerio de Educación y Cultura Dirección de Educación | SVI1: Ministerio de Educación y Cultura Dirección de Educación | SVQ1: Ministerio de Educación y Cultura Dirección de Educación | SVY1: Ministerio de Educación y Cultura Dirección de Educación | SWG1: Ministerio de Educación y Cultura Dirección de Educación | SWO1: Ministerio de Educación y Cultura Dirección de Educación | SWW1: Ministerio de Educación y Cultura Dirección de Educación | SXE1: Ministerio de Educación y Cultura Dirección de Educación | SXM1: Ministerio de Educación y Cultura Dirección de Educación | SXU1: Ministerio de Educación y Cultura Dirección de Educación | SYC1: Ministerio de Educación y Cultura Dirección de Educación | SYK1: Ministerio de Educación y Cultura Dirección de Educación | SYS1: Ministerio de Educación y Cultura Dirección de Educación | SZA1: Ministerio de Educación y Cultura Dirección de Educación | SZI1: Ministerio de Educación y Cultura Dirección de Educación | SZQ1: Ministerio de Educación y Cultura Dirección de Educación | SZY1: Ministerio de Educación y Cultura Dirección de Educación | TAG1: Ministerio de Educación y Cultura Dirección de Educación | TAO1: Ministerio de Educación y Cultura Dirección de Educación | TAW1: Ministerio de Educación y Cultura Dirección de Educación | TBE1: Ministerio de Educación y Cultura Dirección de Educación | TBM1: Ministerio de Educación y Cultura Dirección de Educación | TBU1: Ministerio de Educación y Cultura Dirección de Educación | TCC1: Ministerio de Educación y Cultura Dirección de Educación | TCK1: Ministerio de Educación y Cultura Dirección de Educación | TCS1: Ministerio de Educación y Cultura Dirección de Educación | TDA1: Ministerio de Educación y Cultura Dirección de Educación | TDI1: Ministerio de Educación y Cultura Dirección de Educación | TDQ1: Ministerio de Educación y Cultura Dirección de Educación | TDY1: Ministerio de Educación y Cultura Dirección de Educación | TEG1: Ministerio de Educación y Cultura Dirección de Educación | TEO1: Ministerio de Educación y Cultura Dirección de Educación | TEW1: Ministerio de Educación y Cultura Dirección de Educación | TFE1: Ministerio de Educación y Cultura Dirección de Educación | TFM1: Ministerio de Educación y Cultura Dirección de Educación | TFU1: Ministerio de Educación y Cultura Dirección de Educación | TGC1: Ministerio de Educación y Cultura Dirección de Educación | TGK1: Ministerio de Educación y Cultura Dirección de Educación | TGS1: Ministerio de Educación y Cultura Dirección de Educación | THA1: Ministerio de Educación y Cultura Dirección de Educación | THI1: Ministerio de Educación y Cultura Dirección de Educación | THQ1: Ministerio de Educación y Cultura Dirección de Educación | THY1: Ministerio de Educación y Cultura Dirección de Educación | TIG1: Ministerio de Educación y Cultura Dirección de Educación | TIO1: Ministerio de Educación y Cultura Dirección de Educación | TIW1: Ministerio de Educación y Cultura Dirección de Educación | TJE1: Ministerio de Educación y Cultura Dirección de Educación | TJM1: Ministerio de Educación y Cultura Dirección de Educación | TJU1: Ministerio de Educación y Cultura Dirección de Educación | TKC1: Ministerio de Educación y Cultura Dirección de Educación | TKK1: Ministerio de Educación y Cultura Dirección de Educación | TKS1: Ministerio de Educación y Cultura Dirección de Educación | TLA1: Ministerio de Educación y Cultura Dirección de Educación | TLI1: Ministerio de Educación y Cultura Dirección de Educación | TLQ1: Ministerio de Educación y Cultura Dirección de Educación | TLY1: Ministerio de Educación y Cultura Dirección de Educación | TMG1: Ministerio de Educación y Cultura Dirección de Educación | TMO1: Ministerio de Educación y Cultura Dirección de Educación | TMW1: Ministerio de Educación y Cultura Dirección de Educación | TNE1: Ministerio de Educación y Cultura Dirección de Educación | TNM1: Ministerio de Educación y Cultura Dirección de Educación | TNU1: Ministerio de Educación y Cultura Dirección de Educación | TOC1: Ministerio de Educación y Cultura Dirección de Educación | TOK1: Ministerio de Educación y Cultura Dirección de Educación | TOS1: Ministerio de Educación y Cultura Dirección de Educación | TPA1: Ministerio de Educación y Cultura Dirección de Educación | TPI1: Ministerio de Educación y Cultura Dirección de Educación | TPQ1: Ministerio de Educación y Cultura Dirección de Educación | TPY1: Ministerio de Educación y Cultura Dirección de Educación | TQG1: Ministerio de Educación y Cultura Dirección de Educación | TQO1: Ministerio de Educación y Cultura Dirección de Educación | TQW1: Ministerio de Educación y Cultura Dirección de Educación | TRE1: Ministerio de Educación y Cultura Dirección de Educación | TRM1: Ministerio de Educación y Cultura Dirección de Educación | TRU1: Ministerio de Educación y Cultura Dirección de Educación | TSC1: Ministerio de Educación y Cultura Dirección de Educación | TSK1: Ministerio de Educación y Cultura Dirección de Educación | TSS1: Ministerio de Educación y Cultura Dirección de Educación | TTA1: Ministerio de Educación y Cultura Dirección de Educación | TTI1: Ministerio de Educación y Cultura Dirección de Educación | TTQ1: Ministerio de Educación y Cultura Dirección de Educación | TTY1: Ministerio de Educación y Cultura Dirección de Educación | TUG1: Ministerio de Educación y Cultura Dirección de Educación | TUO1: Ministerio de Educación y Cultura Dirección de Educación | TUW1: Ministerio de Educación y Cultura Dirección de Educación | TVE1: Ministerio de Educación y Cultura Dirección de Educación | TVM1: Ministerio de Educación y Cultura Dirección de Educación | TVU1: Ministerio de Educación y Cultura Dirección de Educación | TWC1: Ministerio de Educación y Cultura Dirección de Educación | TWK1: Ministerio de Educación y Cultura Dirección de Educación | TWS1: Ministerio de Educación y Cultura Dirección de Educación | TXA1: Ministerio de Educación y Cultura Dirección de Educación | TXI1: Ministerio de Educación y Cultura Dirección de Educación | TXQ1: Ministerio de Educación y Cultura Dirección de Educación | TXY1: Ministerio de Educación y Cultura Dirección de Educación | TYG1: Ministerio de Educación y Cultura Dirección de Educación | TYO1: Ministerio de Educación y Cultura Dirección de Educación | TYW1: Ministerio de Educación y Cultura Dirección de Educación | TZE1: Ministerio de Educación y Cultura Dirección de Educación | TZM1: Ministerio de Educación y Cultura Dirección de Educación | TZU1: Ministerio de Educación y Cultura Dirección de Educación | UAC1: Ministerio de Educación y Cultura Dirección de Educación | UAK1: Ministerio de Educación y Cultura Dirección de Educación | UAS1: Ministerio de Educación y Cultura Dirección de Educación | UBA1: Ministerio de Educación y Cultura Dirección de Educación | UBI1: Ministerio de Educación y Cultura Dirección de Educación | UBQ1: Ministerio de Educación y Cultura Dirección de Educación | UBY1: Ministerio de Educación y Cultura Dirección de Educación | UCG1: Ministerio de Educación y Cultura Dirección de Educación | UCO1: Ministerio de Educación y Cultura Dirección de Educación | UCW1: Ministerio de Educación y Cultura Dirección de Educación | UDE1: Ministerio de Educación y Cultura Dirección de Educación | UDM1: Ministerio de Educación y Cultura Dirección de Educación | UDU1: Ministerio de Educación y Cultura Dirección de Educación | UEC1: Ministerio de Educación y Cultura Dirección de Educación | UEK1: Ministerio de Educación y Cultura Dirección de Educación | UES1: Ministerio de Educación y Cultura Dirección de Educación | UFA1: Ministerio de Educación y Cultura Dirección de Educación | UFI1: Ministerio de Educación y Cultura Dirección de Educación | UFQ1: Ministerio de Educación y Cultura Dirección de Educación | UFY1: Ministerio de Educación y Cultura Dirección de Educación | UGG1: Ministerio de Educación y Cultura Dirección de Educación | UGO1: Ministerio de Educación y Cultura Dirección de Educación | UGW1: Ministerio de Educación y Cultura Dirección de Educación | UHE1: Ministerio de Educación y Cultura Dirección de Educación | UHM1: Ministerio de Educación y Cultura Dirección de Educación | UHU1: Ministerio de Educación y Cultura Dirección de Educación | UIC1: Ministerio de Educación y Cultura Dirección de Educación | UIK1: Ministerio de Educación y Cultura Dirección de Educación | UIS1: Ministerio de Educación y Cultura Dirección de Educación | UJA1: Ministerio de Educación y Cultura Dirección de Educación | UJI1: Ministerio de Educación y Cultura Dirección de Educación | UJQ1: Ministerio de Educación y Cultura Dirección de Educación | UJY1: Ministerio de Educación y Cultura Dirección de Educación | UKG1: Ministerio de Educación y Cultura Dirección de Educación | UKO1: Ministerio de Educación y Cultura Dirección de Educación | UKW1: Ministerio de Educación y Cultura Dirección de Educación | ULE1: Ministerio de Educación y Cultura Dirección de Educación | ULM1: Ministerio de Educación y Cultura Dirección de Educación | ULU1: Ministerio de Educación y Cultura Dirección de Educación | UMC1: Ministerio de Educación y Cultura Dirección de Educación | UMK1: Ministerio de Educación y Cultura Dirección de Educación | UMS1: Ministerio de Educación y Cultura Dirección de Educación | UNA1: Ministerio de Educación y Cultura Dirección de Educación | UNI1: Ministerio de Educación y Cultura Dirección de Educación | UNQ1: Ministerio de Educación y Cultura Dirección de Educación | UNY1: Ministerio de Educación y Cultura Dirección de Educación | UOG1: Ministerio de Educación y Cultura Dirección de Educación | UOO1: Ministerio de Educación y Cultura Dirección de Educación | UOW1: Ministerio de Educación y Cultura Dirección de Educación | UPE1: Ministerio de Educación y Cultura Dirección de Educación | UPM1: Ministerio de Educación y Cultura Dirección de Educación | UPU1: Ministerio de Educación y Cultura Dirección de Educación | UQC1: Ministerio de Educación y Cultura Dirección de Educación | UQK1: Ministerio de Educación y Cultura Dirección de Educación | UQS1: Ministerio de Educación y Cultura Dirección de Educación | URA1: Ministerio de Educación y Cultura Dirección de Educación | URI1: Ministerio de Educación y Cultura Dirección de Educación | URQ1: Ministerio de Educación y Cultura Dirección de Educación | URY1: Ministerio de Educación y Cultura Dirección de Educación | USG1: Ministerio de Educación y Cultura Dirección de Educación | USO1: Ministerio de Educación y Cultura Dirección de Educación | USW1: Ministerio de Educación y Cultura Dirección de Educación | UTE1: Ministerio de Educación y Cultura Dirección de Educación | UTM1: Ministerio de Educación y Cultura Dirección de Educación | UTU1: Ministerio de Educación y Cultura Dirección de Educación | UUC1: Ministerio de Educación y Cultura Dirección de Educación | UUK1: Ministerio de Educación y Cultura Dirección de Educación | UUS1: Ministerio de Educación y Cultura Dirección de Educación | UVA1: Ministerio de Educación y Cultura Dirección de Educación | UVI1: Ministerio de Educación y Cultura Dirección de Educación | UVQ1: Ministerio de Educación y Cultura Dirección de Educación | UVY1: Ministerio de Educación y Cultura Dirección de Educación | UWG1: Ministerio de Educación y Cultura Dirección de Educación | UWO1: Ministerio de Educación y Cultura Dirección de Educación | UWW1: Ministerio de Educación y Cultura Dirección de Educación | UXE1: Ministerio de Educación y Cultura Dirección de Educación | UXM1: Ministerio de Educación y Cultura Dirección de Educación | UXU1: Ministerio de Educación y Cultura Dirección de Educación | UYC1: Ministerio de Educación y Cultura Dirección de Educación | UYK1: Ministerio de Educación y Cultura Dirección de Educación | UYS1: Ministerio de Educación y Cultura Dirección de Educación | UZA1: Ministerio de Educación y Cultura Dirección de Educación | UZI1: Ministerio de Educación y Cultura Dirección de Educación | UZQ1: Ministerio de Educación y Cultura Dirección de Educación | UZY1: Ministerio de Educación y Cultura Dirección de Educación | VAG1: Ministerio de Educación y Cultura Dirección de Educación | VAO1: Ministerio de Educación y Cultura Dirección de Educación | VAW1: Ministerio de Educación y Cultura Dirección de Educación | VBE1: Ministerio de Educación y Cultura Dirección de Educación | VBM1: Ministerio de Educación y Cultura Dirección de Educación | VBU1: Ministerio de Educación y Cultura Dirección de Educación | VCC1: Ministerio de Educación y Cultura Dirección de Educación | VCK1: Ministerio de Educación y Cultura Dirección de Educación | VCS1: Ministerio de Educación y Cultura Dirección de Educación | VDA1: Ministerio de Educación y Cultura Dirección de Educación | VDI1: Ministerio de Educación y Cultura Dirección de Educación | VDQ1: Ministerio de Educación y Cultura Dirección de Educación | VDY1: Ministerio de Educación y Cultura Dirección de Educación | VEG1: Ministerio de Educación y Cultura Dirección de Educación | VEO1: Ministerio de Educación y Cultura Dirección de Educación | VEW1: Ministerio de Educación y Cultura Dirección de Educación | VFE1: Ministerio de Educación y Cultura Dirección de Educación | VFM1: Ministerio de Educación y Cultura Dirección de Educación | VFU1: Ministerio de Educación y Cultura Dirección de Educación | VGC1: Ministerio de Educación y Cultura Dirección de Educación | VGK1: Ministerio de Educación y Cultura Dirección de Educación | VGS1: Ministerio de Educación y Cultura Dirección de Educación | VHA1: Ministerio de Educación y Cultura Dirección de Educación | VHI1: Ministerio de Educación y Cultura Dirección de Educación | VHQ1: Ministerio de Educación y Cultura Dirección de Educación | VHY1: Ministerio de Educación y Cultura Dirección de Educación | VIG1: Ministerio de Educación y Cultura Dirección de Educación | VIO1: Ministerio de Educación y Cultura Dirección de Educación | VIW1: Ministerio de Educación y Cultura Dirección de Educación | VJE1: Ministerio de Educación y Cultura Dirección de Educación | VJM1: Ministerio de Educación y Cultura Dirección de Educación | VJU1: Ministerio de Educación y Cultura Dirección de Educación | VKC1: Ministerio de Educación y Cultura Dirección de Educación | VKK1: Ministerio de Educación y Cultura Dirección de Educación | VKS1: Ministerio de Educación y Cultura Dirección de Educación | VLA1: Ministerio de Educación y Cultura Dirección de Educación | VLI1: Ministerio de Educación y Cultura Dirección de Educación | VLQ1: Ministerio de Educación y Cultura Dirección de Educación | VLY1: Ministerio de Educación y Cultura Dirección de Educación | VMG1: Ministerio de Educación y Cultura Dirección de Educación | VMO1: Ministerio de Educación y Cultura Dirección de Educación | VMW1: Ministerio de Educación y Cultura Dirección de Educación | VNE1: Ministerio de Educación y Cultura Dirección de Educación | VNM1: Ministerio de Educación y Cultura Dirección de Educación | VNU1: Ministerio de Educación y Cultura Dirección de Educación | VOC1: Ministerio de Educación y Cultura Dirección de Educación | VOK1: Ministerio de Educación y Cultura Dirección de Educación | VOS1: Ministerio de Educación y Cultura Dirección de Educación | VPA1: Ministerio de Educación y Cultura Dirección de Educación | VPI1: Ministerio de Educación y Cultura Dirección de Educación | VPQ1: Ministerio de Educación y Cultura Dirección de Educación | VPY1: Ministerio de Educación y Cultura Dirección de Educación | VQG1: Ministerio de Educación y Cultura Dirección de Educación | VQO1: Ministerio de Educación y Cultura Dirección de Educación | VQW1: Ministerio de Educación y Cultura Dirección de Educación | VRE1: Ministerio de Educación y Cultura Dirección de Educación | VRM1: Ministerio de Educación y Cultura Dirección de Educación | VRU1: Ministerio de Educación y Cultura Dirección de Educación | VSC1: Ministerio de Educación y Cultura Dirección de Educación | VSK1: Ministerio de Educación y Cultura Dirección de Educación | VSS1: Ministerio de Educación y Cultura Dirección de Educación | VTA1: Ministerio de Educación y Cultura Dirección de Educación | VTI1: Ministerio de Educación y Cultura Dirección de Educación | VTQ1: Ministerio de Educación y Cultura Dirección de Educación | VTY1: Ministerio de Educación y Cultura Dirección de Educación | VUG1: Ministerio de Educación y Cultura Dirección de Educación | VUO1: Ministerio de Educación y Cultura Dirección de Educación | VUW1: Ministerio de Educación y Cultura Dirección de Educación | VVE1: Ministerio de Educación y Cultura Dirección de Educación | VVM1: Ministerio de Educación y Cultura Dirección de Educación | VVU1: Ministerio de Educación y Cultura Dirección de Educación | VWC1: Ministerio de Educación y Cultura Dirección de Educación | VWK1: Ministerio de Educación y Cultura Dirección de Educación | VWS1: Ministerio de Educación y Cultura Dirección de Educación | VXA1: Ministerio de Educación y Cultura Dirección de Educación | VXI1: Ministerio de Educación y Cultura Dirección de Educación | VXQ1: Ministerio de Educación y Cultura Dirección de Educación | VXY1: Ministerio de Educación y Cultura Dirección de Educación | VYG1: Ministerio de Educación y Cultura Dirección de Educación | VYO1: Ministerio de Educación y Cultura Dirección de Educación | VYW1: Ministerio de Educación y Cultura Dirección de Educación | VZE1: Ministerio de Educación y Cultura Dirección de Educación | VZM1: Ministerio de Educación y Cultura Dirección de Educación | VZU1: Ministerio de Educación y Cultura Dirección de Educación | WAC1: Ministerio de Educación y Cultura Dirección de Educación | WAK1: Ministerio de Educación y Cultura Dirección de Educación | WAS1: Ministerio de Educación y Cultura Dirección de Educación | WBA1: Ministerio de Educación y Cultura Dirección de Educación | WBI1: Ministerio de Educación y Cultura Dirección de Educación | WBQ1: Ministerio de Educación y Cultura Dirección de Educación | WBY1: Ministerio de Educación y Cultura Dirección de Educación | WCG1: Ministerio de Educación y Cultura Dirección de Educación | WCO1: Ministerio de Educación y Cultura Dirección de Educación | WCW1: Ministerio de Educación y Cultura Dirección de Educación | WDE1: Ministerio de Educación y Cultura Dirección de Educación | WDM1: Ministerio de Educación y Cultura Dirección de Educación | WDU1: Ministerio de Educación y Cultura Dirección de Educación | WEC1: Ministerio de Educación y Cultura Dirección de Educación | WEK1: Ministerio de Educación y Cultura Dirección de Educación | WES1: Ministerio de Educación y Cultura Dirección de Educación | WFA1: Ministerio de Educación y Cultura Dirección de Educación | WFI1: Ministerio de Educación y Cultura Dirección de Educación | WFQ1: Ministerio de Educación y Cultura Dirección de Educación | WFY1: Ministerio de Educación y Cultura Dirección de Educación | WGG1: Ministerio de Educación y Cultura Dirección de Educación | WGO1: Ministerio de Educación y Cultura Dirección de Educación | WGW1: Ministerio de Educación y Cultura Dirección de Educación | WHE1: Ministerio de Educación y Cultura Dirección de Educación | WHM1: Ministerio de Educación y Cultura Dirección de Educación | WHU1: Ministerio de Educación y Cultura Dirección de Educación | WIC1: Ministerio de Educación y Cultura Dirección de Educación | WIK1: Ministerio de Educación y Cultura Dirección de Educación | WIS1: Ministerio de Educación y Cultura Dirección de Educación | WJA1: Ministerio de Educación y Cultura Dirección de Educación | WJI1: Ministerio de Educación y Cultura Dirección de Educación | WJQ1: Ministerio de Educación y Cultura Dirección de Educación | WJY1: Ministerio de Educación y Cultura Dirección de Educación | WKG1: Ministerio de Educación y Cultura Dirección de Educación | WKO1: Ministerio de Educación y Cultura Dirección de Educación | WKW1: Ministerio de Educación y Cultura Dirección de Educación | WLE1: Ministerio de Educación y Cultura Dirección de Educación | WLM1: Ministerio de Educación y Cultura Dirección de Educación | WLU1: Ministerio de Educación y Cultura Dirección de Educación | WMC1: Ministerio de Educación y Cultura Dirección de Educación | WMK1: Ministerio de Educación y Cultura Dirección de Educación | WMS1: Ministerio de Educación y Cultura Dirección de Educación | WNA1: Ministerio de Educación y Cultura Dirección de Educación | WNI1: Ministerio de Educación y Cultura Dirección de Educación | WNQ1: Ministerio de Educación y Cultura Dirección de Educación | WNY1: Ministerio de Educación y Cultura Dirección de Educación | WOG1: Ministerio de Educación y Cultura Dirección de Educación | WOO1: Ministerio de Educación y Cultura Dirección de Educación | WOW1: Ministerio de Educación y Cultura Dirección de Educación | WPE1: Ministerio de Educación y Cultura Dirección de Educación | WPM1: Ministerio de Educación y Cultura Dirección de Educación | WPU1: Ministerio de Educación y Cultura Dirección de Educación | WQC1: Ministerio de Educación y Cultura Dirección de Educación | WQK1: Ministerio de Educación y Cultura Dirección de Educación | WQS1: Ministerio de Educación y Cultura Dirección de Educación | WRA1: Ministerio de Educación y Cultura Dirección de Educación | WRI1: Ministerio de Educación y Cultura Dirección de Educación | WRQ1: Ministerio de Educación y Cultura Dirección de Educación | WRY1: Ministerio de Educación y Cultura Dirección de Educación | WSG1: Ministerio de Educación y Cultura Dirección de Educación | WSO1: Ministerio de Educación y Cultura Dirección de Educación | WSW1: Ministerio de Educación y Cultura Dirección de Educación | WTE1: Ministerio de Educación y Cultura Dirección de Educación | WTM1: Ministerio de Educación y Cultura Dirección de Educación | WTU1: Ministerio de Educación y Cultura Dirección de Educación | WUC1: Ministerio de Educación y Cultura Dirección de Educación | WUK1: Ministerio de Educación y Cultura Dirección de Educación | WUS1: Ministerio de Educación y Cultura Dirección de Educación | WVA1: Ministerio de Educación y Cultura Dirección de Educación | WVI1: Ministerio de Educación y Cultura Dirección de Educación | WVQ1: Ministerio de Educación y Cultura Dirección de Educación | WVY1: Ministerio de Educación y Cultura Dirección de Educación | WWG1: Ministerio de Educación y Cultura Dirección de Educación | WWO1: Ministerio de Educación y Cultura Dirección de Educación | WWW1: Ministerio de Educación y Cultura Dirección de Educación | WXE1: Ministerio de Educación y Cultura Dirección de Educación | WXM1: Ministerio de Educación y Cultura Dirección de Educación | WXU1: Ministerio de Educación y Cultura Dirección de Educación | WYC1: Ministerio de Educación y Cultura Dirección de Educación | WYK1: Ministerio de Educación y Cultura Dirección de Educación | WYS1: Ministerio de Educación y Cultura Dirección de Educación | WZA1: Ministerio de Educación y Cultura Dirección de Educación | WZI1: Ministerio de Educación y Cultura Dirección de Educación | WZQ1: Ministerio de Educación y Cultura Dirección de Educación | WZY1: Ministerio de Educación y Cultura Dirección de Educación | XAG1: Ministerio de Educación y Cultura Dirección de Educación | XAO1: Ministerio de Educación y Cultura Dirección de Educación | XAW1: Ministerio de Educación y Cultura Dirección de Educación | XBE1: Ministerio de Educación y Cultura Dirección de Educación | XBM1: Ministerio de Educación y Cultura Dirección de Educación | XBU1: Ministerio de Educación y Cultura Dirección de Educación | XCC1: Ministerio de Educación y Cultura Dirección de Educación | XCK1: Ministerio de Educación y Cultura Dirección de Educación | XCS1: Ministerio de Educación y Cultura Dirección de Educación | XDA1: Ministerio de Educación y Cultura Dirección de Educación | XDI1: Ministerio de Educación y Cultura Dirección de Educación | XDQ1: Ministerio de Educación y Cultura Dirección de Educación | XDY1: Ministerio de Educación y Cultura Dirección de Educación | XEG1: Ministerio de Educación y Cultura Dirección de Educación | XEO1: Ministerio de Educación y Cultura Dirección de Educación | XEW1: Ministerio de Educación y Cultura Dirección de Educación
A3: Cuadro I-1.9.13
A4: ALUMNOS INGRESADOS, MATRICULADOS Y EGRESADOS EN CURSOS TÉCNICOS, ESCUELAS DE ENFERMERÍA Y CARRERAS NO TERCIARIAS DE UNIVERSIDADES PRIVADAS POR FORMA DE ADMINISTRACIÓN Y NIVEL EDUCATIVO. AÑO 2014.
A5: FORMA DE ADMINISTRACIÓN / NIVEL EDUCATIVO DE INGRESO | B5: INGRESADOS | C5: MATRICULADOS | D5: EGRESADOS | E5: PORCENTAJE DE ESTUDIANTES MATRICULADOS POR NIVEL EDUCATIVO EXIGIDO DE INGRESO
A7: TOTAL PRIVADA | B7: 66133 | C7: 80909 | D7: 46074 | E7: 1
A8: Primaria | B8: 13588 | C8: 16393 | D8: 8656 | E8: 0.203
A9: Media Básica | B9: 20232 | C9: 23675 | D9: 14381 | E9: 0.293
A10: Media Superior | B10: 6454 | C10: 10076 | D10: 4091 | E10: 0.125
A11: No exige | B11: 25245 | C11: 30105 | D11: 18491 | E11: 0.372
A12: Terciaria completa | B12: 614 | C12: 660 | D12: 455 | E12: 0.008
A13: TOTAL PÚBLICA | B13: 11767 | C13: 12211 | D13: 10833 | E13: 1
A14: Primaria | B14: 6025 | C14: 6458 | D14: 5544 | E14: 0.05
A15: Media Básica | B15: 1665 | C15: 1665 | D15: 1395 | E15: 0.136
A16: Media Superior | B16: 437 | C16: 448 | D16: 384 | E16: 0.037
A17: No exige | B17: 2801 | C17: 2801 | D17: 2801 | E17: 0.229
A18: Terciaria completa | B18: 839 | C18: 839 | D18: 709 | E18: 0.069
A19: TOTAL | B19: 77900 | C19: 93120 | D19: 56907 | E19: 1
A20: Primaria | B20: 19613 | C20: 22851 | D20: 14200 | E20: 0.245
A21: Media Básica | B21: 21897 | C21: 25340 | D21: 15776 | E21: 0.272
A22: Media Superior | B22: 6891 | C22: 10524 | D22: 4475 | E22: 0.113
A23: No exige | B23: 28046 | C23: 32906 | D23: 21292 | E23: 0.353
A24: Terciaria completa | B24: 1453 | C24: 1499 | D24: 1164 | E24: 0.016
A25: Nota: Se relevaron 31 Escuelas de Enfermería registradas en el MEC de un total de 36, quedando sin relevar 5 Escuelas.

Sheet CONTEXTO NACIONAL
B3: CONTEXTO NACIONAL
A8: Organigrama I 2.1.0 | B8: OFERTAS EDUCATIVAS FORMALES PARA EGRESADOS DE LA EDUCACIÓN ESPECIAL
A10: Mapa 1 | B10: CANTIDAD DE BECAS OTORGADAS EN EDUCACIÓN MEDIA TOD EL PAÍS AÑO 2014
A11: Mapa 2 | B11: CANTIDAD DE BECAS OTORGADAS EN EDUCACIÓN TERCIARIA TODO EL PAÍS AÑO 2014
A12: Mapa 3 | B12: CANTIDAD DE BENEFICIRIOS DE POLÍTICAS DE INCLUSIÓN SOCIOEDUCATIVA DE IMPACTO EDUCATIVO DISTRIBUIDAS EN EL TERRITORIO NACIONAL (EXCEPTUANDO BECAS) .AÑO 2014
A14: Cuadro I 2.1.1 | B14: INSCRIPCIONES EN EDUCACIÓN ESPECIAL SEGÚN MODALIDAD DE ATENCIÓN. TOTAL PAÍS AÑO 2014.
A15: Cuadro I 2.1.2 | B15: SITUACIÓN DE POBLACIÓN DE HASTA 65 AÑOS DE EDAD POR DISCAPACIDAD, SEGÙN SEXO, GRANDES ÀREAS Y NECESIDADES BÀSICAS INSATISFECHAS. TODO EL PAÍS. AÑO 2011
A16: Cuadro I-2.2.1 | B16: ESCUELAS, MAESTROS Y ALUMNOS ATENDIDOS POR EL PROGRAMA MAESTROS COMUNITARIOS SEGÚN AÑO LECTIVO. AÑO 2014.
A17: Cuadro I-2.2.2 | B17: MAESTROS Y ESCUELAS DEL PROGRAMA MAESTROS COMUNITARIOS SEGÚN REQUERIMIENTO (2014)
A18: Cuadro I-2.2.3 | B18: ESCUELAS, PROFESORES Y ALUMNOS ATENDIDOS POR EL PROGRAMA DE EDUCACIÓN FÍSICA ESCOLAR SEGÚN AÑO LECTIVO 2014
A19: Cuadro I-2.2.4 | B19: BECAS DE APOYO ECONÓMICO EN EDUCACIÓN MEDIA BÁSICA Y SUPERIOR OTORGADAS POR EL MEC, COMPROMISO EDUCATIVO Y BECAS OTORGADAS POR PUE EN 2014, SEGÚN SEXO Y GRANDES ÁREAS (AÑO 2014)
A20: Cuadro I-2.2.5 | B20: BECAS DE APOYO ECONÓMICO EN EDUCACIÓN TERCIARIA SEGÚN INSTITUCIONES QUE LAS OTORGA POR GRANDES ÁREAS. AÑO 2013.
A21: Cuadro I-2.2.6 | B21: BECAS DEL PROGRAMA URUGUAY ESTUDIA POR MODALIDAD SEGÚN AÑO LECTIVO.2014
A22: Cuadro I-2.2.7 | B22: BECAS OTORGADAS POR LA FUNDACIÓN CHAMANGÁ. AÑO 2014.
A23: Cuadro I-2.2.8 | B23: CANTIDAD DE CENTROS MEC Y TOTAL DE ALFABETIZADOS DIGITALES SEGÚN GRANDES ÁREAS Y DEPARTAMENTO – AÑO 2014
A24: Cuadro I-2.2.9 | B24: BECARIOS DEL PROGRAMA YO ESTUDIO Y TRABAJO SEGÚN GRANDES ÁREAS Y DEPARTAMENTO. AÑO 2014.
A25: Cuadro I-2.2.10 | B25: BECARIOS DEL PROGRAMA JÓVENES EN RED POR SEXO SEGÚN DEPARTAMENTO. AÑO 2014.
A26: Cuadro I-2.2.11 | B26: CENTROS Y BENEFICIARIOS CON EQUIPO DE CEIBAL POR TIPO DE USUARIO SEGÚN AÑO LECTIVO - 2014
A27: Cuadro I-.2.2.12 | B27: BECAS OTORGADAS POR EL FONDO DE SOLIDARIDAD SEGÚN AÑO LECTIVO. AÑO 2014
A28: Cuadro I-.2.2.13 | B28: CERTIFICADOS SEGÚN TIPO DE CURSOS EN ESCUELAS DE ENFERMERÍA. AÑO 2014
A29: Cuadro I-.2.2.14 | B29: INGRESOS EN ESCUELAS DE ENFERMERÍA POR TIPO DE CURSOS. AÑO 2014
A30: Cuadro I-.2.2.15 | B30: DISTRIBUCION DE CURSOS DE ESCUELAS DE ENFERMERÍA SEGÚN GRANDES ÁREAS AÑO 2014
A31: Cuadro I-.2.2.16 | B31: INGRESO A ESCUELAS DE ENFERMERÍA POR TIPO DE CURSO SEGÚN DEPARTAMENTO. AÑO 2014
A32: Cuadro I-.2.2.17 | B32: GASTO EN MILLONES DE PESOS CONSTANTES DE 2014 POR AÑO LECTIVO SEGÚN ÁMBITO DEL GASTO
A34: Gráfico I-2.2.1 | B34: BECAS OTORGADAS SEGÚN PROGRAMA POR AÑO LECTIVO (TODO EL PAÍS AÑOS 2005-2014)
A35: Gráfico I-2.2.2 | B35: BENEFICIARIOS CON EQUIPO CEIBAL POR CATEGORÍA SEGÚN AÑO LECTIVO 8TODO EL PAÍS AÑOS 2017-2014)
A36: Gráfico I-2.2.3 | B36: PORCENTAJE DE PERSONAS CON COMPUTADOR PERSONAL (INCLUÍDO PALPTOP),CON PC CEIBAL Y CON CONEXIÓN A INTERNET EN EL HOGAR POR QUINITLES DE INGRESOS EN LOS HOGARES (TODO EL PAÍS AÑO 2014)
A37: Gráfico I-2.2.4 | B37: PORCENTAJE DE PERSONAS CON MICROPROCESADOR EN EL HOGAR POR AÑO LECTIVO SEGÚN ORIGEN DEL MICROPROCESADOR (TODO EL PAÍS AÑO 2009-2014)
A38: Gráfico I-2.2.5 | B38: PORCENTAJE DE PERSONAS CON MICROPROCESADOR EN EL HOGAR POR AÑO LECTIVO SEGÚN ORIGEN DEL MICROPROCESADOR (TODO EL PAÍS AÑO 2009-2014)
A39: Gráfico I-2.2.6 | B39: BECAS OTROGADAS SEGÚN GRANDES ÁREAS POR AÑO LECTIVO (TODO EL PAÍS AÑO 2011-2014)
A40: Gráfico I-2.2.7 | B40: BECAS OTORGADAS SEGÚN SEXO POR AÑO LECTIVO (TODO EL PAÍS AÑO 2011 -2014)
A41: Gráfico I-2.2.8 | B41: EVOLUCIÓN DEL EGRESO DE ESCUELAS DE ENFERMERÍA PRIVADAS POR TIPO DE CURSO (TODO EL PAÍS AÑOS 2011-2014)
A42: Gráfico I-2.2.9 | B42: EVOLUCIÓN COMPARADA DEL EGRESO DE ESCUELAS DE ENFERMERÍA DE INSTITUCIONES PÚBLICAS Y PRIVADAS (TODO EL PAÍS AÑO 2011-2014)
A43: Gráfico I-2.3.1 | B43: SERIE DE GASTO PÚBLICO EN EDUCACIÓN EN MILLONES DE PESOS CONSTANTES DE 2014
A44: Gráfico I-2.3.2 | B44: EVOLUCIÓN CONJUNTA DEL GASTO EN EDUCACIÓN COMO PORCENTAJE DEL PBI Y DEL GASTO DEL GOBIERNO CENTRAL, Y EVOLUCIÓN DEL PBI EN MILLONES DE PESOS CONSTANTES DE 2014 (2004-2014)
A45: Gráfico I-2.3.3 | B45: GASTO PÚBLICO EN EDUCACIÓN DE ANEP Y UDELAR COMO PORCENTAJE DEL PBI (2004-2014).
A46: Gráfico I-2.3.4 | B46: COSTO POR ALUMNO TOTAL Y POR CONSEJO DESCONCENTRADO DE LA ANEP SEGÚN AÑO LECTIVO A PRECIOS CONSTANTES DE 2014 (1985-2014)
A47: Gráfico I-2.3.5 | B47: EVOLUCIÓN DEL SALARIO DE LOS MAESTROS 20 HORAS EFECTIVO POR GRADOS A VALORES CONSTANTES 2014. (TODO EL PAÍS, AÑOS 2000-2014).
A48: Gráfico I-2.3.6 | B48: EVOLUCIÓN DEL SALARIO DOCENTE DE PROFESORES PRIMER CICLO 20 HORAS EFECTIVOS POR GRADOS A VALORES CONSTANTES A 2014(TODO EL PAÍS, AÑOS 2000-2014)
A49: Gráfico I-2.3.7 | B49: EVOLUCIÓN DEL SALARIO DOCENTE DE PROFESORES DE SEGUNDO CICLO 20 HORAS TITULAR POR GRADOS (TODO EL PAÍS, 2000-2014)
A50: Gráfico I 2.1.1 | B50: CANTIDAD DE TIPOS DE DISCAPACIDADES SEGÚN TRAMOS DE EDAD (TODO EL PAÍS AÑO 2011)
A51: Gráfico I 2.1.2 | B51: ASISTENCIA ACTUAL A ALGÚN ESTABLECIMIENTO EDUCATIVO POR CONDICIÓN DE DISCAPACIDAD, SEGÚN TRAMOS DE EDAD (TODO EL PAÍS AÑO 2011)
A52: Gráfico I 2.1.3 | B52: NIVEL EDUCATIVO MÁXIMO ALCANDAZO EN PERSONAS DISCAPACITADAS DE 25 A 65 AÑOS. (TODO EL PAÍS AÑO 2011)
A53: Gráfico I 2.1.4 | B53: NIVEL EDUCATIVO MÁXIMO ALCANZADO DE POBLACIÓN DE 25 A 65 AÑOS DE EDAD, SEGÚN TIPO DE DISCAPACIDAD (TODO EL PAÍS AÑO 2011)
A54: Gráfico I 2.1.5 | B54: NIVEL EDUACTIVO MÁXIMO ALCANZADO DE POBLACIÓN DISCAPACITADA DE 25 A 65 AÑOS DE EDAD, SEGÚN NECESIDADES BÁSICAS INSATISFECHAS (TOD EL PAÍS AÑO 2011)
A55: Gráfico I 2.1.6 | B55: CANTIDAD DE ESCUELAS ESPECIALE S PÚBLICAS SEGÚN GRANDES ÁREAS (TODO EL PAÍS AÑOS 1990-2014)
A56: Gráfico I 2.1.7 | B56: CANTIDAD DE ESTABLECIMIENTOS PÚBLICOS DE EDUCACIÓN ESPECIAL POR TIPO DE DISCAPACIDAD (TODO EL PAÍS AÑO 1990-2014)
A57: Gráfico I 2.1.8 | B57: MATRÍCULA EN EDUCACIÓN PÚBLICA ESPECIAL SEGÚN GRANDES ÁREAS (TODO EL PAÍS AÑOS 1990-2014)
A58: Gráfico I 2.1.9 | B58: MATRÍCULA EN EDUCACIÓN ESPECIAL SEGÚN FORMA DE ADMINISTRACIÓN (TODO EL PAÍS AÑOS 1990-2014)
A59: Gráfico I 2.1.10 | B59: ALUMNOS MATRICULADOS EN EN EDUCACIÓN PRIMARIA PÚBLICA POR TIPO DE DISCAPACIDAD (TODO EL PAÍS AÑOS 1990-2014)
A60: Gráfico I 2.1.11 | B60: MATRÍCULA DE EDUCACIÓN ESPECIAL PÚBLICA POR EDADES SIMPLES SEGÚN SEXO (TODO EL PAÍS .AÑO 2014)

Sheet Organigrama I- 2.1.
A1: Ministerio de Educación y Cultura Dirección de Educación
A3: ORGANIGRAMA I-2.1 OFERTAS EDUCATIVAS FORMALES PARA EGRESADOS DE LA EDUCACIÓN ESPECIAL
A23: Fuente: Elaboración propia en base a datos de Comisión de Continuidad educativa y socio-profesional de los alumnos de escuelas especiales del CEIP.

Sheet Cuadro I-2.1.1
